{"text_format":"1","workbook":"xlsx","n_sheets":4,"sheets":["Запуск","items","export","кучабольшая разных диапазонов"],"not_rendered":{"charts":0,"images":1,"macros":1,"external_links":0,"defined_names":1,"comments":1,"pivot_tables":0},"unopened":[],"bounds":{"document_bytes":16777216,"sheet_cells":100000,"rows_first":2000,"rows_last":500,"rows_between":2000,"halvings":0,"cell_chars":16384,"cell_head_chars":4096},"cells_cut":0,"cells_raw":0,"read":"whole","date_system":"1900"}

{"sheet":"Запуск","index":0,"n_rows":7,"n_cols":2,"rows_kept":7,"cut":false,"hidden":false,"merged":[]}
[]
["Входные данные, название листа:","items"]
["Прайс-правила, название листа:","condit"]
["Результат, название листа:","export"]
["таблица с ценами","price_base"]
[]
["№ столбца для распознавания, входные данные:",29]

{"sheet":"items","index":1,"n_rows":20,"n_cols":45,"rows_kept":20,"cut":false,"hidden":false,"merged":[]}
["a1","a2","a3","a4","a5","a6","a7","a8","a9","a10","a11","a12","a13","a14","a15","a16","a17","a18","a19","a20","a21","a22","a23","a24","a25","a26","a27","a28","a29","a30","a31","a32","a33","a34","a35","a36","a37","a38","a39","a40","a41","a42","a43","a44","a45"]
["save",null,"Bertonika 2001 9000 for cleaing astrartciaons set of 20","own","yes","corda","SE1002","TE2001","DE2006"," what you are trying to solder. In your case, I would suggest a soldering pencil. They work the best for circuits due to the obvious size"," can't have Eno","IMO.. through hole component",null,"r iron is called \"drag soldering\".. Its an art to learn but once you do you can solder multiple leads in seconds..",null,30,"You get one part of your choice that you specify in your message. ",null,"30 days ",null,null,"73 mm",8,240.99,0,{"$f":"FLOOR((X2)-((X2)*0.05),0.5)-0.01","v":228.49},null,{"$f":"CONCATENATE(F2,G2,\"_parts\")","v":"cordaSE1002_parts"},{"$f":"\"Model=\"&G2&\";\"&H2&\"|Part=Mad;Power;Lad;Colol|Pt=Mt;Pt|KP=Mp;LP\"","v":"Model=SE1002;TE2001|Part=Mad;Power;Lad;Colol|Pt=Mt;Pt|KP=Mp;LP"},{"$f":"CONCATENATE(AB2,,,,\"_01.jpg\")","v":"cordaSE1002_parts_01.jpg"},{"$f":"CONCATENATE(AB2,,,,\"_02.jpg\")","v":"cordaSE1002_parts_02.jpg"},{"$f":"CONCATENATE(AB2,,,,\"_03.jpg\")","v":"cordaSE1002_parts_03.jpg"},{"$f":"CONCATENATE(\"https://google.com/iww/parts/\",AD2,\"|\",\"https://.com/i/parts/\",AE2,\"|\",\"https://.com/i/parts/\",AF2)","v":"https://google.com/iww/parts/cordaSE1002_parts_01.jpg|https://.com/i/parts/cordaSE1002_parts_02.jpg|https://.com/i/parts/cordaSE1002_parts_03.jpg"},null,{"$f":"CONCATENATE(AB2,,,,,,,\".html\")","v":"cordaSE1002_parts.html"},null,"parts",null,null,null,{"$f":"C2","v":"Bertonika 2001 9000 for cleaing astrartciaons set of 20"},{"$f":"TEXT(RIGHT(SUM(CODE(MID(AQ2,ROW(INDIRECT(\"a1:a\"&LEN(AQ2))),1))^3),7),\"00-00000\")","v":"67-29582"},{"$f":"(C2)","v":"Bertonika 2001 9000 for cleaing astrartciaons set of 20"}]
["save",null,"Bertonika 2001 9000 for cleaing astrartciaons set of 21","own","yes","corda","SE1003","TE2002","DE2007"," what you are trying to solder. In your case, I would suggest a soldering pencil. They work the best for circuits due to the obvious size"," can't have Eno","IMO.. through hole component",null,"r iron is called \"drag soldering\".. Its an art to learn but once you do you can solder multiple leads in seconds..",null,30,"You get one part of your choice that you specify in your message. ",null,"31 days ",null,null,"74 mm",8,240.99,0,{"$f":"FLOOR((X3)-((X3)*0.05),0.5)-0.01","v":228.49},null,"cordaSE1003_parts",{"$f":"\"Model=\"&G3&\";\"&H3&\"|Part=Mad;Power;Lad;Colol|Pt=Mt;Pt|KP=Mp;LP\"","v":"Model=SE1003;TE2002|Part=Mad;Power;Lad;Colol|Pt=Mt;Pt|KP=Mp;LP"},"cordaSE1003_parts_01.jpg","cordaSE1003_parts_02.jpg","cordaSE1003_parts_03.jpg",{"$f":"CONCATENATE(\"https://.com/i/parts/\",AD3,\"|\",\"https://.com/i/parts/\",AE3,\"|\",\"https://.com/i/parts/\",AF3)","v":"https://.com/i/parts/cordaSE1003_parts_01.jpg|https://.com/i/parts/cordaSE1003_parts_02.jpg|https://.com/i/parts/cordaSE1003_parts_03.jpg"},null,"cordaSE1003_parts.html",null,"parts",null,null,null,{"$f":"C3","v":"Bertonika 2001 9000 for cleaing astrartciaons set of 21"},{"$f":"TEXT(RIGHT(SUM(CODE(MID(AQ3,ROW(INDIRECT(\"a1:a\"&LEN(AQ3))),1))^3),7),\"00-00000\")","v":"67-36639"},"Bertonika 2001 9000 for cleaing astrartciaons set of 21"]
["save",null,"Bertonika 2001 9000 for cleaing astrartciaons set of 22","own","yes","corda","SE1004","TE2003","DE2008"," what you are trying to solder. In your case, I would suggest a soldering pencil. They work the best for circuits due to the obvious size"," can't have Eno","IMO.. through hole component",null,"r iron is called \"drag soldering\".. Its an art to learn but once you do you can solder multiple leads in seconds..",null,30,"You get one part of your choice that you specify in your message. ",null,"32 days ",null,null,"75 mm",8,240.99,0,{"$f":"FLOOR((X4)-((X4)*0.05),0.5)-0.01","v":228.49},null,"cordaSE1004_parts","Model=SE1004;TE2003|Part=Mad;Power;Lad;Colol|Pt=Mt;Pt|KP=Mp;LP","cordaSE1004_parts_01.jpg","cordaSE1004_parts_02.jpg","cordaSE1004_parts_03.jpg","https://.com/i/parts/cordaSE1004_parts_01.jpg|https://.com/i/parts/cordaSE1004_parts_02.jpg|https://.com/i/parts/cordaSE1004_parts_03.jpg",null,"cordaSE1004_parts.html",null,"parts",null,null,null,"Bertonika 2001 9000 for cleaing astrartciaons set of 22",{"$f":"TEXT(RIGHT(SUM(CODE(MID(AQ4,ROW(INDIRECT(\"a1:a\"&LEN(AQ4))),1))^3),7),\"00-00000\")","v":"67-43990"},"Bertonika 2001 9000 for cleaing astrartciaons set of 22"]
["save",null,"Bertonika 2001 9000 for cleaing astrartciaons set of 23","own","yes","corda","SE1005","TE2004","DE2009"," what you are trying to solder. In your case, I would suggest a soldering pencil. They work the best for circuits due to the obvious size"," can't have Eno","IMO.. through hole component",null,"r iron is called \"drag soldering\".. Its an art to learn but once you do you can solder multiple leads in seconds..",null,30,"You get one part of your choice that you specify in your message. ",null,"33 days ",null,null,"76 mm",8,240.99,0,{"$f":"FLOOR((X5)-((X5)*0.05),0.5)-0.01","v":228.49},null,{"$f":"CONCATENATE(F5,G5,\"_parts\")","v":"cordaSE1005_parts"},"Model=SE1005;TE2004|Part=Mad;Power;Lad;Colol|Pt=Mt;Pt|KP=Mp;LP","cordaSE1005_parts_01.jpg","cordaSE1005_parts_02.jpg","cordaSE1005_parts_03.jpg","https://.com/i/parts/cordaSE1005_parts_01.jpg|https://.com/i/parts/cordaSE1005_parts_02.jpg|https://.com/i/parts/cordaSE1005_parts_03.jpg",null,"cordaSE1005_parts.html",null,"parts",null,null,null,{"$f":"C5","v":"Bertonika 2001 9000 for cleaing astrartciaons set of 23"},{"$f":"TEXT(RIGHT(SUM(CODE(MID(AQ5,ROW(INDIRECT(\"a1:a\"&LEN(AQ5))),1))^3),7),\"00-00000\")","v":"67-51641"},{"$f":"(C5)","v":"Bertonika 2001 9000 for cleaing astrartciaons set of 23"}]
["draft",null,"Bertonika 2001 9000 for cleaing astrartciaons set of 24","own",null,"corda","SE1006","TE2005","DE2010"," what you are trying to solder. In your case, I would suggest a soldering pencil. They work the best for circuits due to the obvious size"," can't have Eno","IMO.. through hole component",null,"r iron is called \"drag soldering\".. Its an art to learn but once you do you can solder multiple leads in seconds..",null,null,null,null,"34 days ",null,null,"77 mm",null,240.99,null,null,null,{"$f":"CONCATENATE(F6,G6,\"_parts\")","v":"cordaSE1006_parts"},"Model=SE1006;TE2005|Part=Mad;Power;Lad;Colol|Pt=Mt;Pt|KP=Mp;LP","cordaSE1006_parts_01.jpg","cordaSE1006_parts_02.jpg","cordaSE1006_parts_03.jpg","https://.com/i/parts/cordaSE1006_parts_01.jpg|https://.com/i/parts/cordaSE1006_parts_02.jpg|https://.com/i/parts/cordaSE1006_parts_03.jpg",null,"cordaSE1006_parts.html"]
["save",null,"Bertonika 2001 9000 for cleaing astrartciaons set of 25","own","yes","corda","SE1007","TE2006","DE2011"," what you are trying to solder. In your case, I would suggest a soldering pencil. They work the best for circuits due to the obvious size"," can't have Eno","IMO.. through hole component",null,"r iron is called \"drag soldering\".. Its an art to learn but once you do you can solder multiple leads in seconds..",null,30,"You get one part of your choice that you specify in your message. ",null,"35 days ",null,null,"78 mm",8,240.99,0,{"$f":"FLOOR((X7)-((X7)*0.05),0.5)-0.01","v":228.49},null,{"$f":"CONCATENATE(F7,G7,\"_parts\")","v":"cordaSE1007_parts"},"Model=SE1007;TE2006|Part=Mad;Power;Lad;Colol|Pt=Mt;Pt|KP=Mp;LP","cordaSE1007_parts_01.jpg","cordaSE1007_parts_02.jpg","cordaSE1007_parts_03.jpg","https://.com/i/parts/cordaSE1007_parts_01.jpg|https://.com/i/parts/cordaSE1007_parts_02.jpg|https://.com/i/parts/cordaSE1007_parts_03.jpg",null,"cordaSE1007_parts.html",null,"parts",null,null,null,{"$f":"C7","v":"Bertonika 2001 9000 for cleaing astrartciaons set of 25"},{"$f":"TEXT(RIGHT(SUM(CODE(MID(AQ7,ROW(INDIRECT(\"a1:a\"&LEN(AQ7))),1))^3),7),\"00-00000\")","v":"67-67867"},{"$f":"(C7)","v":"Bertonika 2001 9000 for cleaing astrartciaons set of 25"}]
["save",null,"Bertonika 2001 9000 for cleaing astrartciaons set of 26","own","yes","corda","SE1008","TE2007","DE2012"," what you are trying to solder. In your case, I would suggest a soldering pencil. They work the best for circuits due to the obvious size"," can't have Eno","IMO.. through hole component",null,"r iron is called \"drag soldering\".. Its an art to learn but once you do you can solder multiple leads in seconds..",null,30,"You get one part of your choice that you specify in your message. ",null,"36 days ",null,null,"79 mm",8,240.99,0,228.49,null,"cordaSE1008_parts","Model=SE1008;TE2007|Part=Mad;Power;Lad;Colol|Pt=Mt;Pt|KP=Mp;LP","cordaSE1008_parts_01.jpg","cordaSE1008_parts_02.jpg","cordaSE1008_parts_03.jpg","https://.com/i/parts/cordaSE1008_parts_01.jpg|https://.com/i/parts/cordaSE1008_parts_02.jpg|https://.com/i/parts/cordaSE1008_parts_03.jpg",null,"cordaSE1008_parts.html",null,"parts",null,null,null,"Bertonika 2001 9000 for cleaing astrartciaons set of 26",{"$f":"TEXT(RIGHT(SUM(CODE(MID(AQ8,ROW(INDIRECT(\"a1:a\"&LEN(AQ8))),1))^3),7),\"00-00000\")","v":"67-76454"},"Bertonika 2001 9000 for cleaing astrartciaons set of 26"]
["save",null,"Bertonika 2001 9000 for cleaing astrartciaons set of 27","own","yes","corda","SE1009","TE2008","DE2013"," what you are trying to solder. In your case, I would suggest a soldering pencil. They work the best for circuits due to the obvious size"," can't have Eno","IMO.. through hole component",null,"r iron is called \"drag soldering\".. Its an art to learn but once you do you can solder multiple leads in seconds..",null,30,"You get one part of your choice that you specify in your message. ",null,"37 days ",null,null,"80 mm",8,240.99,0,228.49,null,"cordaSE1009_parts","Model=SE1009;TE2008|Part=Mad;Power;Lad;Colol|Pt=Mt;Pt|KP=Mp;LP","cordaSE1009_parts_01.jpg","cordaSE1009_parts_02.jpg","cordaSE1009_parts_03.jpg","https://.com/i/parts/cordaSE1009_parts_01.jpg|https://.com/i/parts/cordaSE1009_parts_02.jpg|https://.com/i/parts/cordaSE1009_parts_03.jpg",null,"cordaSE1009_parts.html",null,"parts",null,null,null,{"$f":"C9","v":"Bertonika 2001 9000 for cleaing astrartciaons set of 27"},{"$f":"TEXT(RIGHT(SUM(CODE(MID(AQ9,ROW(INDIRECT(\"a1:a\"&LEN(AQ9))),1))^3),7),\"00-00000\")","v":"67-85365"},{"$f":"(C9)","v":"Bertonika 2001 9000 for cleaing astrartciaons set of 27"}]
["save",null,"Bertonika 2001 9000 for cleaing astrartciaons set of 28","own","yes","corda","SE1010","TE2009","DE2014"," what you are trying to solder. In your case, I would suggest a soldering pencil. They work the best for circuits due to the obvious size"," can't have Eno","IMO.. through hole component",null,"r iron is called \"drag soldering\".. Its an art to learn but once you do you can solder multiple leads in seconds..",null,30,"You get one part of your choice that you specify in your message. ",null,"38 days ",null,null,"81 mm",8,240.99,0,228.49,null,"cordaSE1010_parts","Model=SE1010;TE2009|Part=Mad;Power;Lad;Colol|Pt=Mt;Pt|KP=Mp;LP","cordaSE1010_parts_01.jpg","cordaSE1010_parts_02.jpg","cordaSE1010_parts_03.jpg","https://.com/i/parts/cordaSE1010_parts_01.jpg|https://.com/i/parts/cordaSE1010_parts_02.jpg|https://.com/i/parts/cordaSE1010_parts_03.jpg",null,"cordaSE1010_parts.html",null,"parts",null,null,null,{"$f":"C10","v":"Bertonika 2001 9000 for cleaing astrartciaons set of 28"},{"$f":"TEXT(RIGHT(SUM(CODE(MID(AQ10,ROW(INDIRECT(\"a1:a\"&LEN(AQ10))),1))^3),7),\"00-00000\")","v":"67-94606"},{"$f":"(C10)","v":"Bertonika 2001 9000 for cleaing astrartciaons set of 28"}]
["save",null,"Bertonika 2001 9000 for cleaing astrartciaons set of 29","own","yes","corda","SE1011","TE2010","DE2015"," what you are trying to solder. In your case, I would suggest a soldering pencil. They work the best for circuits due to the obvious size"," can't have Eno","IMO.. through hole component",null,"r iron is called \"drag soldering\".. Its an art to learn but once you do you can solder multiple leads in seconds..",null,30,"You get one part of your choice that you specify in your message. ",null,"39 days ",null,null,"82 mm",8,240.99,0,228.49,null,"cordaSE1011_parts","Model=SE1011;TE2010|Part=Mad;Power;Lad;Colol|Pt=Mt;Pt|KP=Mp;LP","cordaSE1011_parts_01.jpg","cordaSE1011_parts_02.jpg","cordaSE1011_parts_03.jpg","https://.com/i/parts/cordaSE1011_parts_01.jpg|https://.com/i/parts/cordaSE1011_parts_02.jpg|https://.com/i/parts/cordaSE1011_parts_03.jpg",null,"cordaSE1011_parts.html",null,"parts",null,null,null,{"$f":"C11","v":"Bertonika 2001 9000 for cleaing astrartciaons set of 29"},{"$f":"TEXT(RIGHT(SUM(CODE(MID(AQ11,ROW(INDIRECT(\"a1:a\"&LEN(AQ11))),1))^3),7),\"00-00000\")","v":"68-04183"},{"$f":"(C11)","v":"Bertonika 2001 9000 for cleaing astrartciaons set of 29"}]
["save",null,"Bertonika 2001 9000 for cleaing astrartciaons set of 30","own","yes","corda","SE1012","TE2011","DE2016"," what you are trying to solder. In your case, I would suggest a soldering pencil. They work the best for circuits due to the obvious size"," can't have Eno","IMO.. through hole component",null,"r iron is called \"drag soldering\".. Its an art to learn but once you do you can solder multiple leads in seconds..",null,30,"You get one part of your choice that you specify in your message. ",null,"40 days ",null,null,"83 mm",8,240.99,0,228.49,null,{"$f":"CONCATENATE(F12,G12,\"_parts\")","v":"cordaSE1012_parts"},"Model=SE1012;TE2011|Part=Mad;Power;Lad;Colol|Pt=Mt;Pt|KP=Mp;LP","cordaSE1012_parts_01.jpg","cordaSE1012_parts_02.jpg","cordaSE1012_parts_03.jpg","https://.com/i/parts/cordaSE1012_parts_01.jpg|https://.com/i/parts/cordaSE1012_parts_02.jpg|https://.com/i/parts/cordaSE1012_parts_03.jpg",null,"cordaSE1012_parts.html",null,"parts",null,null,null,{"$f":"C12","v":"Bertonika 2001 9000 for cleaing astrartciaons set of 30"},{"$f":"TEXT(RIGHT(SUM(CODE(MID(AQ12,ROW(INDIRECT(\"a1:a\"&LEN(AQ12))),1))^3),7),\"00-00000\")","v":"67-37233"},{"$f":"(C12)","v":"Bertonika 2001 9000 for cleaing astrartciaons set of 30"}]
["save",null,"Bertonika 2001 9000 for cleaing astrartciaons set of 31","own","yes","corda","SE1013","TE2012","DE2017"," what you are trying to solder. In your case, I would suggest a soldering pencil. They work the best for circuits due to the obvious size"," can't have Eno","IMO.. through hole component",null,"r iron is called \"drag soldering\".. Its an art to learn but once you do you can solder multiple leads in seconds..",null,30,"You get one part of your choice that you specify in your message. ",null,"41 days ",null,null,"84 mm",8,240.99,0,228.49,null,{"$f":"CONCATENATE(F13,G13,\"_parts\")","v":"cordaSE1013_parts"},"Model=SE1013;TE2012|Part=Mad;Power;Lad;Colol|Pt=Mt;Pt|KP=Mp;LP","cordaSE1013_parts_01.jpg","cordaSE1013_parts_02.jpg","cordaSE1013_parts_03.jpg","https://.com/i/parts/cordaSE1013_parts_01.jpg|https://.com/i/parts/cordaSE1013_parts_02.jpg|https://.com/i/parts/cordaSE1013_parts_03.jpg",null,"cordaSE1013_parts.html",null,"parts",null,null,null,{"$f":"C13","v":"Bertonika 2001 9000 for cleaing astrartciaons set of 31"},{"$f":"TEXT(RIGHT(SUM(CODE(MID(AQ13,ROW(INDIRECT(\"a1:a\"&LEN(AQ13))),1))^3),7),\"00-00000\")","v":"67-44290"},{"$f":"(C13)","v":"Bertonika 2001 9000 for cleaing astrartciaons set of 31"}]
["save",null,"Bertonika 2001 9000 for cleaing astrartciaons set of 32","own","yes","corda","SE1014","TE2013","DE2018"," what you are trying to solder. In your case, I would suggest a soldering pencil. They work the best for circuits due to the obvious size"," can't have Eno","IMO.. through hole component",null,"r iron is called \"drag soldering\".. Its an art to learn but once you do you can solder multiple leads in seconds..",null,30,"You get one part of your choice that you specify in your message. ",null,"42 days ",null,null,"85 mm",8,240.99,0,228.49,null,{"$f":"CONCATENATE(F14,G14,\"_parts\")","v":"cordaSE1014_parts"},"Model=SE1014;TE2013|Part=Mad;Power;Lad;Colol|Pt=Mt;Pt|KP=Mp;LP","cordaSE1014_parts_01.jpg","cordaSE1014_parts_02.jpg","cordaSE1014_parts_03.jpg","https://.com/i/parts/cordaSE1014_parts_01.jpg|https://.com/i/parts/cordaSE1014_parts_02.jpg|https://.com/i/parts/cordaSE1014_parts_03.jpg",null,"cordaSE1014_parts.html",null,"parts",null,null,null,{"$f":"C14","v":"Bertonika 2001 9000 for cleaing astrartciaons set of 32"},{"$f":"TEXT(RIGHT(SUM(CODE(MID(AQ14,ROW(INDIRECT(\"a1:a\"&LEN(AQ14))),1))^3),7),\"00-00000\")","v":"67-51641"},{"$f":"(C14)","v":"Bertonika 2001 9000 for cleaing astrartciaons set of 32"}]
["save",null,"Bertonika 2001 9000 for cleaing astrartciaons set of 33","own","yes","corda","SE1015","TE2014","DE2019"," what you are trying to solder. In your case, I would suggest a soldering pencil. They work the best for circuits due to the obvious size"," can't have Eno","IMO.. through hole component",null,"r iron is called \"drag soldering\".. Its an art to learn but once you do you can solder multiple leads in seconds..",null,30,"You get one part of your choice that you specify in your message. ",null,"43 days ",null,null,"86 mm",8,240.99,0,228.49,null,"cordaSE1015_parts","Model=SE1015;TE2014|Part=Mad;Power;Lad;Colol|Pt=Mt;Pt|KP=Mp;LP","cordaSE1015_parts_01.jpg","cordaSE1015_parts_02.jpg","cordaSE1015_parts_03.jpg","https://.com/i/parts/cordaSE1015_parts_01.jpg|https://.com/i/parts/cordaSE1015_parts_02.jpg|https://.com/i/parts/cordaSE1015_parts_03.jpg",null,"cordaSE1015_parts.html",null,"parts",null,null,null,"Bertonika 2001 9000 for cleaing astrartciaons set of 33",{"$f":"TEXT(RIGHT(SUM(CODE(MID(AQ15,ROW(INDIRECT(\"a1:a\"&LEN(AQ15))),1))^3),7),\"00-00000\")","v":"67-59292"},"Bertonika 2001 9000 for cleaing astrartciaons set of 33"]
["save",null,"Bertonika 2001 9000 for cleaing astrartciaons set of 34","own","yes","corda","SE1016","TE2015","DE2020"," what you are trying to solder. In your case, I would suggest a soldering pencil. They work the best for circuits due to the obvious size"," can't have Eno","IMO.. through hole component",null,"r iron is called \"drag soldering\".. Its an art to learn but once you do you can solder multiple leads in seconds..",null,30,"You get one part of your choice that you specify in your message. ",null,"44 days ",null,null,"87 mm",8,240.99,0,228.49,null,"cordaSE1016_parts","Model=SE1016;TE2015|Part=Mad;Power;Lad;Colol|Pt=Mt;Pt|KP=Mp;LP","cordaSE1016_parts_01.jpg","cordaSE1016_parts_02.jpg","cordaSE1016_parts_03.jpg","https://.com/i/parts/cordaSE1016_parts_01.jpg|https://.com/i/parts/cordaSE1016_parts_02.jpg|https://.com/i/parts/cordaSE1016_parts_03.jpg",null,"cordaSE1016_parts.html",null,"parts",null,null,null,"Bertonika 2001 9000 for cleaing astrartciaons set of 34",{"$f":"TEXT(RIGHT(SUM(CODE(MID(AQ16,ROW(INDIRECT(\"a1:a\"&LEN(AQ16))),1))^3),7),\"00-00000\")","v":"67-67249"},"Bertonika 2001 9000 for cleaing astrartciaons set of 34"]
["save",null,"Bertonika 2001 9000 for cleaing astrartciaons set of 35","own","yes","corda","SE1017","TE2016","DE2021"," what you are trying to solder. In your case, I would suggest a soldering pencil. They work the best for circuits due to the obvious size"," can't have Eno","IMO.. through hole component",null,"r iron is called \"drag soldering\".. Its an art to learn but once you do you can solder multiple leads in seconds..",null,30,"You get one part of your choice that you specify in your message. ",null,"45 days ",null,null,"88 mm",8,240.99,0,228.49,null,"cordaSE1017_parts","Model=SE1017;TE2016|Part=Mad;Power;Lad;Colol|Pt=Mt;Pt|KP=Mp;LP","cordaSE1017_parts_01.jpg","cordaSE1017_parts_02.jpg","cordaSE1017_parts_03.jpg","https://.com/i/parts/cordaSE1017_parts_01.jpg|https://.com/i/parts/cordaSE1017_parts_02.jpg|https://.com/i/parts/cordaSE1017_parts_03.jpg",null,"cordaSE1017_parts.html",null,"parts",null,null,null,"Bertonika 2001 9000 for cleaing astrartciaons set of 35",{"$f":"TEXT(RIGHT(SUM(CODE(MID(AQ17,ROW(INDIRECT(\"a1:a\"&LEN(AQ17))),1))^3),7),\"00-00000\")","v":"67-75518"},"Bertonika 2001 9000 for cleaing astrartciaons set of 35"]
["save",null,"Bertonika 2001 9000 for cleaing astrartciaons set of 36","own","yes","corda","SE1018","TE2017","DE2022"," what you are trying to solder. In your case, I would suggest a soldering pencil. They work the best for circuits due to the obvious size"," can't have Eno","IMO.. through hole component",null,"r iron is called \"drag soldering\".. Its an art to learn but once you do you can solder multiple leads in seconds..",null,30,"You get one part of your choice that you specify in your message. ",null,"46 days ",null,null,"89 mm",8,240.99,0,228.49,null,"cordaSE1018_parts","Model=SE1018;TE2017|Part=Mad;Power;Lad;Colol|Pt=Mt;Pt|KP=Mp;LP","cordaSE1018_parts_01.jpg","cordaSE1018_parts_02.jpg","cordaSE1018_parts_03.jpg","https://.com/i/parts/cordaSE1018_parts_01.jpg|https://.com/i/parts/cordaSE1018_parts_02.jpg|https://.com/i/parts/cordaSE1018_parts_03.jpg",null,"cordaSE1018_parts.html",null,"parts",null,null,null,"Bertonika 2001 9000 for cleaing astrartciaons set of 36",{"$f":"TEXT(RIGHT(SUM(CODE(MID(AQ18,ROW(INDIRECT(\"a1:a\"&LEN(AQ18))),1))^3),7),\"00-00000\")","v":"67-84105"},"Bertonika 2001 9000 for cleaing astrartciaons set of 36"]
["save",null,"Bertonika 2001 9000 for cleaing astrartciaons set of 37","own","yes","corda","SE1019","TE2018","DE2023"," what you are trying to solder. In your case, I would suggest a soldering pencil. They work the best for circuits due to the obvious size"," can't have Eno","IMO.. through hole component",null,"r iron is called \"drag soldering\".. Its an art to learn but once you do you can solder multiple leads in seconds..",null,30,"You get one part of your choice that you specify in your message. ",null,"47 days ",null,null,"90 mm",8,240.99,0,228.49,null,"cordaSE1019_parts","Model=SE1019;TE2018|Part=Mad;Power;Lad;Colol|Pt=Mt;Pt|KP=Mp;LP","cordaSE1019_parts_01.jpg","cordaSE1019_parts_02.jpg","cordaSE1019_parts_03.jpg","https://.com/i/parts/cordaSE1019_parts_01.jpg|https://.com/i/parts/cordaSE1019_parts_02.jpg|https://.com/i/parts/cordaSE1019_parts_03.jpg",null,"cordaSE1019_parts.html",null,"parts",null,null,null,"Bertonika 2001 9000 for cleaing astrartciaons set of 37",{"$f":"TEXT(RIGHT(SUM(CODE(MID(AQ19,ROW(INDIRECT(\"a1:a\"&LEN(AQ19))),1))^3),7),\"00-00000\")","v":"67-93016"},"Bertonika 2001 9000 for cleaing astrartciaons set of 37"]
["save",null,"Bertonika 2001 9000 for cleaing astrartciaons set of 38","own","yes","corda","SE1020","TE2019","DE2024"," what you are trying to solder. In your case, I would suggest a soldering pencil. They work the best for circuits due to the obvious size"," can't have Eno","IMO.. through hole component",null,"r iron is called \"drag soldering\".. Its an art to learn but once you do you can solder multiple leads in seconds..",null,30,"You get one part of your choice that you specify in your message. ",null,"48 days ",null,null,"91 mm",8,240.99,0,{"$f":"FLOOR((X20)-((X20)*0.05),0.5)-0.01","v":228.49},null,{"$f":"CONCATENATE(F20,G20,\"_parts\")","v":"cordaSE1020_parts"},"Model=SE1020;TE2019|Part=Mad;Power;Lad;Colol|Pt=Mt;Pt|KP=Mp;LP",{"$f":"CONCATENATE(AB20,,,,\"_01.jpg\")","v":"cordaSE1020_parts_01.jpg"},{"$f":"CONCATENATE(AB20,,,,\"_02.jpg\")","v":"cordaSE1020_parts_02.jpg"},{"$f":"CONCATENATE(AB20,,,,\"_03.jpg\")","v":"cordaSE1020_parts_03.jpg"},"https://.com/i/parts/cordaSE1020_parts_01.jpg|https://.com/i/parts/cordaSE1020_parts_02.jpg|https://.com/i/parts/cordaSE1020_parts_03.jpg",null,{"$f":"CONCATENATE(AB20,,,,,,,\".html\")","v":"cordaSE1020_parts.html"},null,"parts",null,null,null,{"$f":"C20","v":"Bertonika 2001 9000 for cleaing astrartciaons set of 38"},{"$f":"TEXT(RIGHT(SUM(CODE(MID(AQ20,ROW(INDIRECT(\"a1:a\"&LEN(AQ20))),1))^3),7),\"00-00000\")","v":"68-02257"},{"$f":"(C20)","v":"Bertonika 2001 9000 for cleaing astrartciaons set of 38"}]

{"sheet":"export","index":2,"n_rows":595,"n_cols":54,"rows_kept":595,"cut":false,"hidden":false,"merged":[]}
["a1","a2","a3","a4","a5","a6","a7","a8","a9","a10","a11","a12","a13","a14","a15","a16","a17","a18","a19","a20","a21","a22","a23","a24","a25","a26","a27","a28","a29","a30","a31","a32","a33","a34","a35","a36","a37","a38","a39","a40","a41","a42","a43","a44","a45","a46","a47","a48","a49","a50","a51","a52","a53","a54"]
["save",null,null,"67-29582",null,null,"Bertonika 2001 9000 for cleaing astrartciaons set of 20",null,"Model=SE1002;TE2001|Part=Mad;Power;Lad;Colol|Pt=Mt;Pt|KP=Mp;LP","own",null,null,null,null,null,null,null,0.8,null,null,null,null,null,null,"https://google.com/iww/parts/cordaSE1002_parts_01.jpg|https://.com/i/parts/cordaSE1002_parts_02.jpg|https://.com/i/parts/cordaSE1002_parts_03.jpg","You get one part of your choice that you specify in your message. ","r iron is called \"drag soldering\".. Its an art to learn but once you do you can solder multiple leads in seconds.."]
[null,null,null,null,null,null,null,"Variation","Model=SE1002|Part=Mad|Pt=Mt|KP=Mp",null,null,null,null,null,null,null,null,null,null,null,null,null,null,null,"https://google.com/iww/parts/cordaSE1002_parts_01.jpg|https://.com/i/parts/cordaSE1002_parts_02.jpg|https://.com/i/parts/cordaSE1002_parts_03.jpg",null,null,null,null,240.99]
[null,null,null,null,null,null,null,"Variation","Model=SE1002|Part=Mad|Pt=Mt|KP=LP",null,null,null,null,null,null,null,null,null,null,null,null,null,null,null,"https://google.com/iww/parts/cordaSE1002_parts_01.jpg|https://.com/i/parts/cordaSE1002_parts_02.jpg|https://.com/i/parts/cordaSE1002_parts_03.jpg",null,null,null,null,240.99]
[null,null,null,null,null,null,null,"Variation","Model=SE1002|Part=Mad|Pt=Pt|KP=Mp",null,null,null,null,null,null,null,null,null,null,null,null,null,null,null,"https://google.com/iww/parts/cordaSE1002_parts_01.jpg|https://.com/i/parts/cordaSE1002_parts_02.jpg|https://.com/i/parts/cordaSE1002_parts_03.jpg",null,null,null,null,240.99]
[null,null,null,null,null,null,null,"Variation","Model=SE1002|Part=Mad|Pt=Pt|KP=LP",null,null,null,null,null,null,null,null,null,null,null,null,null,null,null,"https://google.com/iww/parts/cordaSE1002_parts_01.jpg|https://.com/i/parts/cordaSE1002_parts_02.jpg|https://.com/i/parts/cordaSE1002_parts_03.jpg",null,null,null,null,240.99]
[null,null,null,null,null,null,null,"Variation","Model=SE1002|Part=Power|Pt=Mt|KP=Mp",null,null,null,null,null,null,null,null,null,null,null,null,null,null,null,"https://google.com/iww/parts/cordaSE1002_parts_01.jpg|https://.com/i/parts/cordaSE1002_parts_02.jpg|https://.com/i/parts/cordaSE1002_parts_03.jpg",null,null,null,null,240.99]
[null,null,null,null,null,null,null,"Variation","Model=SE1002|Part=Power|Pt=Mt|KP=LP",null,null,null,null,null,null,null,null,null,null,null,null,null,null,null,"https://google.com/iww/parts/cordaSE1002_parts_01.jpg|https://.com/i/parts/cordaSE1002_parts_02.jpg|https://.com/i/parts/cordaSE1002_parts_03.jpg",null,null,null,null,240.99]
[null,null,null,null,null,null,null,"Variation","Model=SE1002|Part=Power|Pt=Pt|KP=Mp",null,null,null,null,null,null,null,null,null,null,null,null,null,null,null,"https://google.com/iww/parts/cordaSE1002_parts_01.jpg|https://.com/i/parts/cordaSE1002_parts_02.jpg|https://.com/i/parts/cordaSE1002_parts_03.jpg",null,null,null,null,240.99]
[null,null,null,null,null,null,null,"Variation","Model=SE1002|Part=Power|Pt=Pt|KP=LP",null,null,null,null,null,null,null,null,null,null,null,null,null,null,null,"https://google.com/iww/parts/cordaSE1002_parts_01.jpg|https://.com/i/parts/cordaSE1002_parts_02.jpg|https://.com/i/parts/cordaSE1002_parts_03.jpg",null,null,null,null,240.99]
[null,null,null,null,null,null,null,"Variation","Model=SE1002|Part=Lad|Pt=Mt|KP=Mp",null,null,null,null,null,null,null,null,null,null,null,null,null,null,null,"https://google.com/iww/parts/cordaSE1002_parts_01.jpg|https://.com/i/parts/cordaSE1002_parts_02.jpg|https://.com/i/parts/cordaSE1002_parts_03.jpg",null,null,null,null,240.99]
[null,null,null,null,null,null,null,"Variation","Model=SE1002|Part=Lad|Pt=Mt|KP=LP",null,null,null,null,null,null,null,null,null,null,null,null,null,null,null,"https://google.com/iww/parts/cordaSE1002_parts_01.jpg|https://.com/i/parts/cordaSE1002_parts_02.jpg|https://.com/i/parts/cordaSE1002_parts_03.jpg",null,null,null,null,240.99]
[null,null,null,null,null,null,null,"Variation","Model=SE1002|Part=Lad|Pt=Pt|KP=Mp",null,null,null,null,null,null,null,null,null,null,null,null,null,null,null,"https://google.com/iww/parts/cordaSE1002_parts_01.jpg|https://.com/i/parts/cordaSE1002_parts_02.jpg|https://.com/i/parts/cordaSE1002_parts_03.jpg",null,null,null,null,240.99]
[null,null,null,null,null,null,null,"Variation","Model=SE1002|Part=Lad|Pt=Pt|KP=LP",null,null,null,null,null,null,null,null,null,null,null,null,null,null,null,"https://google.com/iww/parts/cordaSE1002_parts_01.jpg|https://.com/i/parts/cordaSE1002_parts_02.jpg|https://.com/i/parts/cordaSE1002_parts_03.jpg",null,null,null,null,240.99]
[null,null,null,null,null,null,null,"Variation","Model=SE1002|Part=Colol|Pt=Mt|KP=Mp",null,null,null,null,null,null,null,null,null,null,null,null,null,null,null,"https://google.com/iww/parts/cordaSE1002_parts_01.jpg|https://.com/i/parts/cordaSE1002_parts_02.jpg|https://.com/i/parts/cordaSE1002_parts_03.jpg",null,null,null,null,240.99]
[null,null,null,null,null,null,null,"Variation","Model=SE1002|Part=Colol|Pt=Mt|KP=LP",null,null,null,null,null,null,null,null,null,null,null,null,null,null,null,"https://google.com/iww/parts/cordaSE1002_parts_01.jpg|https://.com/i/parts/cordaSE1002_parts_02.jpg|https://.com/i/parts/cordaSE1002_parts_03.jpg",null,null,null,null,240.99]
[null,null,null,null,null,null,null,"Variation","Model=SE1002|Part=Colol|Pt=Pt|KP=Mp",null,null,null,null,null,null,null,null,null,null,null,null,null,null,null,"https://google.com/iww/parts/cordaSE1002_parts_01.jpg|https://.com/i/parts/cordaSE1002_parts_02.jpg|https://.com/i/parts/cordaSE1002_parts_03.jpg",null,null,null,null,240.99]
[null,null,null,null,null,null,null,"Variation","Model=SE1002|Part=Colol|Pt=Pt|KP=LP",null,null,null,null,null,null,null,null,null,null,null,null,null,null,null,"https://google.com/iww/parts/cordaSE1002_parts_01.jpg|https://.com/i/parts/cordaSE1002_parts_02.jpg|https://.com/i/parts/cordaSE1002_parts_03.jpg",null,null,null,null,240.99]
[null,null,null,null,null,null,null,"Variation","Model=TE2001|Part=Mad|Pt=Mt|KP=Mp",null,null,null,null,null,null,null,null,null,null,null,null,null,null,null,"https://google.com/iww/parts/cordaSE1002_parts_01.jpg|https://.com/i/parts/cordaSE1002_parts_02.jpg|https://.com/i/parts/cordaSE1002_parts_03.jpg",null,null,null,null,240.99]
[null,null,null,null,null,null,null,"Variation","Model=TE2001|Part=Mad|Pt=Mt|KP=LP",null,null,null,null,null,null,null,null,null,null,null,null,null,null,null,"https://google.com/iww/parts/cordaSE1002_parts_01.jpg|https://.com/i/parts/cordaSE1002_parts_02.jpg|https://.com/i/parts/cordaSE1002_parts_03.jpg",null,null,null,null,240.99]
[null,null,null,null,null,null,null,"Variation","Model=TE2001|Part=Mad|Pt=Pt|KP=Mp",null,null,null,null,null,null,null,null,null,null,null,null,null,null,null,"https://google.com/iww/parts/cordaSE1002_parts_01.jpg|https://.com/i/parts/cordaSE1002_parts_02.jpg|https://.com/i/parts/cordaSE1002_parts_03.jpg",null,null,null,null,240.99]
[null,null,null,null,null,null,null,"Variation","Model=TE2001|Part=Mad|Pt=Pt|KP=LP",null,null,null,null,null,null,null,null,null,null,null,null,null,null,null,"https://google.com/iww/parts/cordaSE1002_parts_01.jpg|https://.com/i/parts/cordaSE1002_parts_02.jpg|https://.com/i/parts/cordaSE1002_parts_03.jpg",null,null,null,null,240.99]
[null,null,null,null,null,null,null,"Variation","Model=TE2001|Part=Power|Pt=Mt|KP=Mp",null,null,null,null,null,null,null,null,null,null,null,null,null,null,null,"https://google.com/iww/parts/cordaSE1002_parts_01.jpg|https://.com/i/parts/cordaSE1002_parts_02.jpg|https://.com/i/parts/cordaSE1002_parts_03.jpg",null,null,null,null,240.99]
[null,null,null,null,null,null,null,"Variation","Model=TE2001|Part=Power|Pt=Mt|KP=LP",null,null,null,null,null,null,null,null,null,null,null,null,null,null,null,"https://google.com/iww/parts/cordaSE1002_parts_01.jpg|https://.com/i/parts/cordaSE1002_parts_02.jpg|https://.com/i/parts/cordaSE1002_parts_03.jpg",null,null,null,null,240.99]
[null,null,null,null,null,null,null,"Variation","Model=TE2001|Part=Power|Pt=Pt|KP=Mp",null,null,null,null,null,null,null,null,null,null,null,null,null,null,null,"https://google.com/iww/parts/cordaSE1002_parts_01.jpg|https://.com/i/parts/cordaSE1002_parts_02.jpg|https://.com/i/parts/cordaSE1002_parts_03.jpg",null,null,null,null,240.99]
[null,null,null,null,null,null,null,"Variation","Model=TE2001|Part=Power|Pt=Pt|KP=LP",null,null,null,null,null,null,null,null,null,null,null,null,null,null,null,"https://google.com/iww/parts/cordaSE1002_parts_01.jpg|https://.com/i/parts/cordaSE1002_parts_02.jpg|https://.com/i/parts/cordaSE1002_parts_03.jpg",null,null,null,null,240.99]
[null,null,null,null,null,null,null,"Variation","Model=TE2001|Part=Lad|Pt=Mt|KP=Mp",null,null,null,null,null,null,null,null,null,null,null,null,null,null,null,"https://google.com/iww/parts/cordaSE1002_parts_01.jpg|https://.com/i/parts/cordaSE1002_parts_02.jpg|https://.com/i/parts/cordaSE1002_parts_03.jpg",null,null,null,null,240.99]
[null,null,null,null,null,null,null,"Variation","Model=TE2001|Part=Lad|Pt=Mt|KP=LP",null,null,null,null,null,null,null,null,null,null,null,null,null,null,null,"https://google.com/iww/parts/cordaSE1002_parts_01.jpg|https://.com/i/parts/cordaSE1002_parts_02.jpg|https://.com/i/parts/cordaSE1002_parts_03.jpg",null,null,null,null,240.99]
[null,null,null,null,null,null,null,"Variation","Model=TE2001|Part=Lad|Pt=Pt|KP=Mp",null,null,null,null,null,null,null,null,null,null,null,null,null,null,null,"https://google.com/iww/parts/cordaSE1002_parts_01.jpg|https://.com/i/parts/cordaSE1002_parts_02.jpg|https://.com/i/parts/cordaSE1002_parts_03.jpg",null,null,null,null,240.99]
[null,null,null,null,null,null,null,"Variation","Model=TE2001|Part=Lad|Pt=Pt|KP=LP",null,null,null,null,null,null,null,null,null,null,null,null,null,null,null,"https://google.com/iww/parts/cordaSE1002_parts_01.jpg|https://.com/i/parts/cordaSE1002_parts_02.jpg|https://.com/i/parts/cordaSE1002_parts_03.jpg",null,null,null,null,240.99]
[null,null,null,null,null,null,null,"Variation","Model=TE2001|Part=Colol|Pt=Mt|KP=Mp",null,null,null,null,null,null,null,null,null,null,null,null,null,null,null,"https://google.com/iww/parts/cordaSE1002_parts_01.jpg|https://.com/i/parts/cordaSE1002_parts_02.jpg|https://.com/i/parts/cordaSE1002_parts_03.jpg",null,null,null,null,240.99]
[null,null,null,null,null,null,null,"Variation","Model=TE2001|Part=Colol|Pt=Mt|KP=LP",null,null,null,null,null,null,null,null,null,null,null,null,null,null,null,"https://google.com/iww/parts/cordaSE1002_parts_01.jpg|https://.com/i/parts/cordaSE1002_parts_02.jpg|https://.com/i/parts/cordaSE1002_parts_03.jpg",null,null,null,null,240.99]
[null,null,null,null,null,null,null,"Variation","Model=TE2001|Part=Colol|Pt=Pt|KP=Mp",null,null,null,null,null,null,null,null,null,null,null,null,null,null,null,"https://google.com/iww/parts/cordaSE1002_parts_01.jpg|https://.com/i/parts/cordaSE1002_parts_02.jpg|https://.com/i/parts/cordaSE1002_parts_03.jpg",null,null,null,null,240.99]
[null,null,null,null,null,null,null,"Variation","Model=TE2001|Part=Colol|Pt=Pt|KP=LP",null,null,null,null,null,null,null,null,null,null,null,null,null,null,null,"https://google.com/iww/parts/cordaSE1002_parts_01.jpg|https://.com/i/parts/cordaSE1002_parts_02.jpg|https://.com/i/parts/cordaSE1002_parts_03.jpg",null,null,null,null,240.99]
["save",null,null,"67-36639",null,null,"Bertonika 2001 9000 for cleaing astrartciaons set of 21",null,"Model=SE1003;TE2002|Part=Mad;Power;Lad;Colol|Pt=Mt;Pt|KP=Mp;LP","own",null,null,null,null,null,null,null,0.8,null,null,null,null,null,null,"https://.com/i/parts/cordaSE1003_parts_01.jpg|https://.com/i/parts/cordaSE1003_parts_02.jpg|https://.com/i/parts/cordaSE1003_parts_03.jpg","You get one part of your choice that you specify in your message. ","r iron is called \"drag soldering\".. Its an art to learn but once you do you can solder multiple leads in seconds.."]
[null,null,null,null,null,null,null,"Variation","Model=SE1003|Part=Mad|Pt=Mt|KP=Mp",null,null,null,null,null,null,null,null,null,null,null,null,null,null,null,"https://.com/i/parts/cordaSE1003_parts_01.jpg|https://.com/i/parts/cordaSE1003_parts_02.jpg|https://.com/i/parts/cordaSE1003_parts_03.jpg",null,null,null,null,240.99]
[null,null,null,null,null,null,null,"Variation","Model=SE1003|Part=Mad|Pt=Mt|KP=LP",null,null,null,null,null,null,null,null,null,null,null,null,null,null,null,"https://.com/i/parts/cordaSE1003_parts_01.jpg|https://.com/i/parts/cordaSE1003_parts_02.jpg|https://.com/i/parts/cordaSE1003_parts_03.jpg",null,null,null,null,240.99]
[null,null,null,null,null,null,null,"Variation","Model=SE1003|Part=Mad|Pt=Pt|KP=Mp",null,null,null,null,null,null,null,null,null,null,null,null,null,null,null,"https://.com/i/parts/cordaSE1003_parts_01.jpg|https://.com/i/parts/cordaSE1003_parts_02.jpg|https://.com/i/parts/cordaSE1003_parts_03.jpg",null,null,null,null,240.99]
[null,null,null,null,null,null,null,"Variation","Model=SE1003|Part=Mad|Pt=Pt|KP=LP",null,null,null,null,null,null,null,null,null,null,null,null,null,null,null,"https://.com/i/parts/cordaSE1003_parts_01.jpg|https://.com/i/parts/cordaSE1003_parts_02.jpg|https://.com/i/parts/cordaSE1003_parts_03.jpg",null,null,null,null,240.99]
[null,null,null,null,null,null,null,"Variation","Model=SE1003|Part=Power|Pt=Mt|KP=Mp",null,null,null,null,null,null,null,null,null,null,null,null,null,null,null,"https://.com/i/parts/cordaSE1003_parts_01.jpg|https://.com/i/parts/cordaSE1003_parts_02.jpg|https://.com/i/parts/cordaSE1003_parts_03.jpg",null,null,null,null,240.99]
[null,null,null,null,null,null,null,"Variation","Model=SE1003|Part=Power|Pt=Mt|KP=LP",null,null,null,null,null,null,null,null,null,null,null,null,null,null,null,"https://.com/i/parts/cordaSE1003_parts_01.jpg|https://.com/i/parts/cordaSE1003_parts_02.jpg|https://.com/i/parts/cordaSE1003_parts_03.jpg",null,null,null,null,240.99]
[null,null,null,null,null,null,null,"Variation","Model=SE1003|Part=Power|Pt=Pt|KP=Mp",null,null,null,null,null,null,null,null,null,null,null,null,null,null,null,"https://.com/i/parts/cordaSE1003_parts_01.jpg|https://.com/i/parts/cordaSE1003_parts_02.jpg|https://.com/i/parts/cordaSE1003_parts_03.jpg",null,null,null,null,240.99]
[null,null,null,null,null,null,null,"Variation","Model=SE1003|Part=Power|Pt=Pt|KP=LP",null,null,null,null,null,null,null,null,null,null,null,null,null,null,null,"https://.com/i/parts/cordaSE1003_parts_01.jpg|https://.com/i/parts/cordaSE1003_parts_02.jpg|https://.com/i/parts/cordaSE1003_parts_03.jpg",null,null,null,null,240.99]
[null,null,null,null,null,null,null,"Variation","Model=SE1003|Part=Lad|Pt=Mt|KP=Mp",null,null,null,null,null,null,null,null,null,null,null,null,null,null,null,"https://.com/i/parts/cordaSE1003_parts_01.jpg|https://.com/i/parts/cordaSE1003_parts_02.jpg|https://.com/i/parts/cordaSE1003_parts_03.jpg",null,null,null,null,240.99]
[null,null,null,null,null,null,null,"Variation","Model=SE1003|Part=Lad|Pt=Mt|KP=LP",null,null,null,null,null,null,null,null,null,null,null,null,null,null,null,"https://.com/i/parts/cordaSE1003_parts_01.jpg|https://.com/i/parts/cordaSE1003_parts_02.jpg|https://.com/i/parts/cordaSE1003_parts_03.jpg",null,null,null,null,240.99]
[null,null,null,null,null,null,null,"Variation","Model=SE1003|Part=Lad|Pt=Pt|KP=Mp",null,null,null,null,null,null,null,null,null,null,null,null,null,null,null,"https://.com/i/parts/cordaSE1003_parts_01.jpg|https://.com/i/parts/cordaSE1003_parts_02.jpg|https://.com/i/parts/cordaSE1003_parts_03.jpg",null,null,null,null,240.99]
[null,null,null,null,null,null,null,"Variation","Model=SE1003|Part=Lad|Pt=Pt|KP=LP",null,null,null,null,null,null,null,null,null,null,null,null,null,null,null,"https://.com/i/parts/cordaSE1003_parts_01.jpg|https://.com/i/parts/cordaSE1003_parts_02.jpg|https://.com/i/parts/cordaSE1003_parts_03.jpg",null,null,null,null,240.99]
[null,null,null,null,null,null,null,"Variation","Model=SE1003|Part=Colol|Pt=Mt|KP=Mp",null,null,null,null,null,null,null,null,null,null,null,null,null,null,null,"https://.com/i/parts/cordaSE1003_parts_01.jpg|https://.com/i/parts/cordaSE1003_parts_02.jpg|https://.com/i/parts/cordaSE1003_parts_03.jpg",null,null,null,null,240.99]
[null,null,null,null,null,null,null,"Variation","Model=SE1003|Part=Colol|Pt=Mt|KP=LP",null,null,null,null,null,null,null,null,null,null,null,null,null,null,null,"https://.com/i/parts/cordaSE1003_parts_01.jpg|https://.com/i/parts/cordaSE1003_parts_02.jpg|https://.com/i/parts/cordaSE1003_parts_03.jpg",null,null,null,null,240.99]
[null,null,null,null,null,null,null,"Variation","Model=SE1003|Part=Colol|Pt=Pt|KP=Mp",null,null,null,null,null,null,null,null,null,null,null,null,null,null,null,"https://.com/i/parts/cordaSE1003_parts_01.jpg|https://.com/i/parts/cordaSE1003_parts_02.jpg|https://.com/i/parts/cordaSE1003_parts_03.jpg",null,null,null,null,240.99]
[null,null,null,null,null,null,null,"Variation","Model=SE1003|Part=Colol|Pt=Pt|KP=LP",null,null,null,null,null,null,null,null,null,null,null,null,null,null,null,"https://.com/i/parts/cordaSE1003_parts_01.jpg|https://.com/i/parts/cordaSE1003_parts_02.jpg|https://.com/i/parts/cordaSE1003_parts_03.jpg",null,null,null,null,240.99]
[null,null,null,null,null,null,null,"Variation","Model=TE2002|Part=Mad|Pt=Mt|KP=Mp",null,null,null,null,null,null,null,null,null,null,null,null,null,null,null,"https://.com/i/parts/cordaSE1003_parts_01.jpg|https://.com/i/parts/cordaSE1003_parts_02.jpg|https://.com/i/parts/cordaSE1003_parts_03.jpg",null,null,null,null,240.99]
[null,null,null,null,null,null,null,"Variation","Model=TE2002|Part=Mad|Pt=Mt|KP=LP",null,null,null,null,null,null,null,null,null,null,null,null,null,null,null,"https://.com/i/parts/cordaSE1003_parts_01.jpg|https://.com/i/parts/cordaSE1003_parts_02.jpg|https://.com/i/parts/cordaSE1003_parts_03.jpg",null,null,null,null,240.99]
[null,null,null,null,null,null,null,"Variation","Model=TE2002|Part=Mad|Pt=Pt|KP=Mp",null,null,null,null,null,null,null,null,null,null,null,null,null,null,null,"https://.com/i/parts/cordaSE1003_parts_01.jpg|https://.com/i/parts/cordaSE1003_parts_02.jpg|https://.com/i/parts/cordaSE1003_parts_03.jpg",null,null,null,null,240.99]
[null,null,null,null,null,null,null,"Variation","Model=TE2002|Part=Mad|Pt=Pt|KP=LP",null,null,null,null,null,null,null,null,null,null,null,null,null,null,null,"https://.com/i/parts/cordaSE1003_parts_01.jpg|https://.com/i/parts/cordaSE1003_parts_02.jpg|https://.com/i/parts/cordaSE1003_parts_03.jpg",null,null,null,null,240.99]
[null,null,null,null,null,null,null,"Variation","Model=TE2002|Part=Power|Pt=Mt|KP=Mp",null,null,null,null,null,null,null,null,null,null,null,null,null,null,null,"https://.com/i/parts/cordaSE1003_parts_01.jpg|https://.com/i/parts/cordaSE1003_parts_02.jpg|https://.com/i/parts/cordaSE1003_parts_03.jpg",null,null,null,null,240.99]
[null,null,null,null,null,null,null,"Variation","Model=TE2002|Part=Power|Pt=Mt|KP=LP",null,null,null,null,null,null,null,null,null,null,null,null,null,null,null,"https://.com/i/parts/cordaSE1003_parts_01.jpg|https://.com/i/parts/cordaSE1003_parts_02.jpg|https://.com/i/parts/cordaSE1003_parts_03.jpg",null,null,null,null,240.99]
[null,null,null,null,null,null,null,"Variation","Model=TE2002|Part=Power|Pt=Pt|KP=Mp",null,null,null,null,null,null,null,null,null,null,null,null,null,null,null,"https://.com/i/parts/cordaSE1003_parts_01.jpg|https://.com/i/parts/cordaSE1003_parts_02.jpg|https://.com/i/parts/cordaSE1003_parts_03.jpg",null,null,null,null,240.99]
[null,null,null,null,null,null,null,"Variation","Model=TE2002|Part=Power|Pt=Pt|KP=LP",null,null,null,null,null,null,null,null,null,null,null,null,null,null,null,"https://.com/i/parts/cordaSE1003_parts_01.jpg|https://.com/i/parts/cordaSE1003_parts_02.jpg|https://.com/i/parts/cordaSE1003_parts_03.jpg",null,null,null,null,240.99]
[null,null,null,null,null,null,null,"Variation","Model=TE2002|Part=Lad|Pt=Mt|KP=Mp",null,null,null,null,null,null,null,null,null,null,null,null,null,null,null,"https://.com/i/parts/cordaSE1003_parts_01.jpg|https://.com/i/parts/cordaSE1003_parts_02.jpg|https://.com/i/parts/cordaSE1003_parts_03.jpg",null,null,null,null,240.99]
[null,null,null,null,null,null,null,"Variation","Model=TE2002|Part=Lad|Pt=Mt|KP=LP",null,null,null,null,null,null,null,null,null,null,null,null,null,null,null,"https://.com/i/parts/cordaSE1003_parts_01.jpg|https://.com/i/parts/cordaSE1003_parts_02.jpg|https://.com/i/parts/cordaSE1003_parts_03.jpg",null,null,null,null,240.99]
[null,null,null,null,null,null,null,"Variation","Model=TE2002|Part=Lad|Pt=Pt|KP=Mp",null,null,null,null,null,null,null,null,null,null,null,null,null,null,null,"https://.com/i/parts/cordaSE1003_parts_01.jpg|https://.com/i/parts/cordaSE1003_parts_02.jpg|https://.com/i/parts/cordaSE1003_parts_03.jpg",null,null,null,null,240.99]
[null,null,null,null,null,null,null,"Variation","Model=TE2002|Part=Lad|Pt=Pt|KP=LP",null,null,null,null,null,null,null,null,null,null,null,null,null,null,null,"https://.com/i/parts/cordaSE1003_parts_01.jpg|https://.com/i/parts/cordaSE1003_parts_02.jpg|https://.com/i/parts/cordaSE1003_parts_03.jpg",null,null,null,null,240.99]
[null,null,null,null,null,null,null,"Variation","Model=TE2002|Part=Colol|Pt=Mt|KP=Mp",null,null,null,null,null,null,null,null,null,null,null,null,null,null,null,"https://.com/i/parts/cordaSE1003_parts_01.jpg|https://.com/i/parts/cordaSE1003_parts_02.jpg|https://.com/i/parts/cordaSE1003_parts_03.jpg",null,null,null,null,240.99]
[null,null,null,null,null,null,null,"Variation","Model=TE2002|Part=Colol|Pt=Mt|KP=LP",null,null,null,null,null,null,null,null,null,null,null,null,null,null,null,"https://.com/i/parts/cordaSE1003_parts_01.jpg|https://.com/i/parts/cordaSE1003_parts_02.jpg|https://.com/i/parts/cordaSE1003_parts_03.jpg",null,null,null,null,240.99]
[null,null,null,null,null,null,null,"Variation","Model=TE2002|Part=Colol|Pt=Pt|KP=Mp",null,null,null,null,null,null,null,null,null,null,null,null,null,null,null,"https://.com/i/parts/cordaSE1003_parts_01.jpg|https://.com/i/parts/cordaSE1003_parts_02.jpg|https://.com/i/parts/cordaSE1003_parts_03.jpg",null,null,null,null,240.99]
[null,null,null,null,null,null,null,"Variation","Model=TE2002|Part=Colol|Pt=Pt|KP=LP",null,null,null,null,null,null,null,null,null,null,null,null,null,null,null,"https://.com/i/parts/cordaSE1003_parts_01.jpg|https://.com/i/parts/cordaSE1003_parts_02.jpg|https://.com/i/parts/cordaSE1003_parts_03.jpg",null,null,null,null,240.99]
["save",null,null,"67-43990",null,null,"Bertonika 2001 9000 for cleaing astrartciaons set of 22",null,"Model=SE1004;TE2003|Part=Mad;Power;Lad;Colol|Pt=Mt;Pt|KP=Mp;LP","own",null,null,null,null,null,null,null,0.8,null,null,null,null,null,null,"https://.com/i/parts/cordaSE1004_parts_01.jpg|https://.com/i/parts/cordaSE1004_parts_02.jpg|https://.com/i/parts/cordaSE1004_parts_03.jpg","You get one part of your choice that you specify in your message. ","r iron is called \"drag soldering\".. Its an art to learn but once you do you can solder multiple leads in seconds.."]
[null,null,null,null,null,null,null,"Variation","Model=SE1004|Part=Mad|Pt=Mt|KP=Mp",null,null,null,null,null,null,null,null,null,null,null,null,null,null,null,"https://.com/i/parts/cordaSE1004_parts_01.jpg|https://.com/i/parts/cordaSE1004_parts_02.jpg|https://.com/i/parts/cordaSE1004_parts_03.jpg",null,null,null,null,240.99]
[null,null,null,null,null,null,null,"Variation","Model=SE1004|Part=Mad|Pt=Mt|KP=LP",null,null,null,null,null,null,null,null,null,null,null,null,null,null,null,"https://.com/i/parts/cordaSE1004_parts_01.jpg|https://.com/i/parts/cordaSE1004_parts_02.jpg|https://.com/i/parts/cordaSE1004_parts_03.jpg",null,null,null,null,240.99]
[null,null,null,null,null,null,null,"Variation","Model=SE1004|Part=Mad|Pt=Pt|KP=Mp",null,null,null,null,null,null,null,null,null,null,null,null,null,null,null,"https://.com/i/parts/cordaSE1004_parts_01.jpg|https://.com/i/parts/cordaSE1004_parts_02.jpg|https://.com/i/parts/cordaSE1004_parts_03.jpg",null,null,null,null,240.99]
[null,null,null,null,null,null,null,"Variation","Model=SE1004|Part=Mad|Pt=Pt|KP=LP",null,null,null,null,null,null,null,null,null,null,null,null,null,null,null,"https://.com/i/parts/cordaSE1004_parts_01.jpg|https://.com/i/parts/cordaSE1004_parts_02.jpg|https://.com/i/parts/cordaSE1004_parts_03.jpg",null,null,null,null,240.99]
[null,null,null,null,null,null,null,"Variation","Model=SE1004|Part=Power|Pt=Mt|KP=Mp",null,null,null,null,null,null,null,null,null,null,null,null,null,null,null,"https://.com/i/parts/cordaSE1004_parts_01.jpg|https://.com/i/parts/cordaSE1004_parts_02.jpg|https://.com/i/parts/cordaSE1004_parts_03.jpg",null,null,null,null,240.99]
[null,null,null,null,null,null,null,"Variation","Model=SE1004|Part=Power|Pt=Mt|KP=LP",null,null,null,null,null,null,null,null,null,null,null,null,null,null,null,"https://.com/i/parts/cordaSE1004_parts_01.jpg|https://.com/i/parts/cordaSE1004_parts_02.jpg|https://.com/i/parts/cordaSE1004_parts_03.jpg",null,null,null,null,240.99]
[null,null,null,null,null,null,null,"Variation","Model=SE1004|Part=Power|Pt=Pt|KP=Mp",null,null,null,null,null,null,null,null,null,null,null,null,null,null,null,"https://.com/i/parts/cordaSE1004_parts_01.jpg|https://.com/i/parts/cordaSE1004_parts_02.jpg|https://.com/i/parts/cordaSE1004_parts_03.jpg",null,null,null,null,240.99]
[null,null,null,null,null,null,null,"Variation","Model=SE1004|Part=Power|Pt=Pt|KP=LP",null,null,null,null,null,null,null,null,null,null,null,null,null,null,null,"https://.com/i/parts/cordaSE1004_parts_01.jpg|https://.com/i/parts/cordaSE1004_parts_02.jpg|https://.com/i/parts/cordaSE1004_parts_03.jpg",null,null,null,null,240.99]
[null,null,null,null,null,null,null,"Variation","Model=SE1004|Part=Lad|Pt=Mt|KP=Mp",null,null,null,null,null,null,null,null,null,null,null,null,null,null,null,"https://.com/i/parts/cordaSE1004_parts_01.jpg|https://.com/i/parts/cordaSE1004_parts_02.jpg|https://.com/i/parts/cordaSE1004_parts_03.jpg",null,null,null,null,240.99]
[null,null,null,null,null,null,null,"Variation","Model=SE1004|Part=Lad|Pt=Mt|KP=LP",null,null,null,null,null,null,null,null,null,null,null,null,null,null,null,"https://.com/i/parts/cordaSE1004_parts_01.jpg|https://.com/i/parts/cordaSE1004_parts_02.jpg|https://.com/i/parts/cordaSE1004_parts_03.jpg",null,null,null,null,240.99]
[null,null,null,null,null,null,null,"Variation","Model=SE1004|Part=Lad|Pt=Pt|KP=Mp",null,null,null,null,null,null,null,null,null,null,null,null,null,null,null,"https://.com/i/parts/cordaSE1004_parts_01.jpg|https://.com/i/parts/cordaSE1004_parts_02.jpg|https://.com/i/parts/cordaSE1004_parts_03.jpg",null,null,null,null,240.99]
[null,null,null,null,null,null,null,"Variation","Model=SE1004|Part=Lad|Pt=Pt|KP=LP",null,null,null,null,null,null,null,null,null,null,null,null,null,null,null,"https://.com/i/parts/cordaSE1004_parts_01.jpg|https://.com/i/parts/cordaSE1004_parts_02.jpg|https://.com/i/parts/cordaSE1004_parts_03.jpg",null,null,null,null,240.99]
[null,null,null,null,null,null,null,"Variation","Model=SE1004|Part=Colol|Pt=Mt|KP=Mp",null,null,null,null,null,null,null,null,null,null,null,null,null,null,null,"https://.com/i/parts/cordaSE1004_parts_01.jpg|https://.com/i/parts/cordaSE1004_parts_02.jpg|https://.com/i/parts/cordaSE1004_parts_03.jpg",null,null,null,null,240.99]
[null,null,null,null,null,null,null,"Variation","Model=SE1004|Part=Colol|Pt=Mt|KP=LP",null,null,null,null,null,null,null,null,null,null,null,null,null,null,null,"https://.com/i/parts/cordaSE1004_parts_01.jpg|https://.com/i/parts/cordaSE1004_parts_02.jpg|https://.com/i/parts/cordaSE1004_parts_03.jpg",null,null,null,null,240.99]
[null,null,null,null,null,null,null,"Variation","Model=SE1004|Part=Colol|Pt=Pt|KP=Mp",null,null,null,null,null,null,null,null,null,null,null,null,null,null,null,"https://.com/i/parts/cordaSE1004_parts_01.jpg|https://.com/i/parts/cordaSE1004_parts_02.jpg|https://.com/i/parts/cordaSE1004_parts_03.jpg",null,null,null,null,240.99]
[null,null,null,null,null,null,null,"Variation","Model=SE1004|Part=Colol|Pt=Pt|KP=LP",null,null,null,null,null,null,null,null,null,null,null,null,null,null,null,"https://.com/i/parts/cordaSE1004_parts_01.jpg|https://.com/i/parts/cordaSE1004_parts_02.jpg|https://.com/i/parts/cordaSE1004_parts_03.jpg",null,null,null,null,240.99]
[null,null,null,null,null,null,null,"Variation","Model=TE2003|Part=Mad|Pt=Mt|KP=Mp",null,null,null,null,null,null,null,null,null,null,null,null,null,null,null,"https://.com/i/parts/cordaSE1004_parts_01.jpg|https://.com/i/parts/cordaSE1004_parts_02.jpg|https://.com/i/parts/cordaSE1004_parts_03.jpg",null,null,null,null,240.99]
[null,null,null,null,null,null,null,"Variation","Model=TE2003|Part=Mad|Pt=Mt|KP=LP",null,null,null,null,null,null,null,null,null,null,null,null,null,null,null,"https://.com/i/parts/cordaSE1004_parts_01.jpg|https://.com/i/parts/cordaSE1004_parts_02.jpg|https://.com/i/parts/cordaSE1004_parts_03.jpg",null,null,null,null,240.99]
[null,null,null,null,null,null,null,"Variation","Model=TE2003|Part=Mad|Pt=Pt|KP=Mp",null,null,null,null,null,null,null,null,null,null,null,null,null,null,null,"https://.com/i/parts/cordaSE1004_parts_01.jpg|https://.com/i/parts/cordaSE1004_parts_02.jpg|https://.com/i/parts/cordaSE1004_parts_03.jpg",null,null,null,null,240.99]
[null,null,null,null,null,null,null,"Variation","Model=TE2003|Part=Mad|Pt=Pt|KP=LP",null,null,null,null,null,null,null,null,null,null,null,null,null,null,null,"https://.com/i/parts/cordaSE1004_parts_01.jpg|https://.com/i/parts/cordaSE1004_parts_02.jpg|https://.com/i/parts/cordaSE1004_parts_03.jpg",null,null,null,null,240.99]
[null,null,null,null,null,null,null,"Variation","Model=TE2003|Part=Power|Pt=Mt|KP=Mp",null,null,null,null,null,null,null,null,null,null,null,null,null,null,null,"https://.com/i/parts/cordaSE1004_parts_01.jpg|https://.com/i/parts/cordaSE1004_parts_02.jpg|https://.com/i/parts/cordaSE1004_parts_03.jpg",null,null,null,null,240.99]
[null,null,null,null,null,null,null,"Variation","Model=TE2003|Part=Power|Pt=Mt|KP=LP",null,null,null,null,null,null,null,null,null,null,null,null,null,null,null,"https://.com/i/parts/cordaSE1004_parts_01.jpg|https://.com/i/parts/cordaSE1004_parts_02.jpg|https://.com/i/parts/cordaSE1004_parts_03.jpg",null,null,null,null,240.99]
[null,null,null,null,null,null,null,"Variation","Model=TE2003|Part=Power|Pt=Pt|KP=Mp",null,null,null,null,null,null,null,null,null,null,null,null,null,null,null,"https://.com/i/parts/cordaSE1004_parts_01.jpg|https://.com/i/parts/cordaSE1004_parts_02.jpg|https://.com/i/parts/cordaSE1004_parts_03.jpg",null,null,null,null,240.99]
[null,null,null,null,null,null,null,"Variation","Model=TE2003|Part=Power|Pt=Pt|KP=LP",null,null,null,null,null,null,null,null,null,null,null,null,null,null,null,"https://.com/i/parts/cordaSE1004_parts_01.jpg|https://.com/i/parts/cordaSE1004_parts_02.jpg|https://.com/i/parts/cordaSE1004_parts_03.jpg",null,null,null,null,240.99]
[null,null,null,null,null,null,null,"Variation","Model=TE2003|Part=Lad|Pt=Mt|KP=Mp",null,null,null,null,null,null,null,null,null,null,null,null,null,null,null,"https://.com/i/parts/cordaSE1004_parts_01.jpg|https://.com/i/parts/cordaSE1004_parts_02.jpg|https://.com/i/parts/cordaSE1004_parts_03.jpg",null,null,null,null,240.99]
[null,null,null,null,null,null,null,"Variation","Model=TE2003|Part=Lad|Pt=Mt|KP=LP",null,null,null,null,null,null,null,null,null,null,null,null,null,null,null,"https://.com/i/parts/cordaSE1004_parts_01.jpg|https://.com/i/parts/cordaSE1004_parts_02.jpg|https://.com/i/parts/cordaSE1004_parts_03.jpg",null,null,null,null,240.99]
[null,null,null,null,null,null,null,"Variation","Model=TE2003|Part=Lad|Pt=Pt|KP=Mp",null,null,null,null,null,null,null,null,null,null,null,null,null,null,null,"https://.com/i/parts/cordaSE1004_parts_01.jpg|https://.com/i/parts/cordaSE1004_parts_02.jpg|https://.com/i/parts/cordaSE1004_parts_03.jpg",null,null,null,null,240.99]
[null,null,null,null,null,null,null,"Variation","Model=TE2003|Part=Lad|Pt=Pt|KP=LP",null,null,null,null,null,null,null,null,null,null,null,null,null,null,null,"https://.com/i/parts/cordaSE1004_parts_01.jpg|https://.com/i/parts/cordaSE1004_parts_02.jpg|https://.com/i/parts/cordaSE1004_parts_03.jpg",null,null,null,null,240.99]
[null,null,null,null,null,null,null,"Variation","Model=TE2003|Part=Colol|Pt=Mt|KP=Mp",null,null,null,null,null,null,null,null,null,null,null,null,null,null,null,"https://.com/i/parts/cordaSE1004_parts_01.jpg|https://.com/i/parts/cordaSE1004_parts_02.jpg|https://.com/i/parts/cordaSE1004_parts_03.jpg",null,null,null,null,240.99]
[null,null,null,null,null,null,null,"Variation","Model=TE2003|Part=Colol|Pt=Mt|KP=LP",null,null,null,null,null,null,null,null,null,null,null,null,null,null,null,"https://.com/i/parts/cordaSE1004_parts_01.jpg|https://.com/i/parts/cordaSE1004_parts_02.jpg|https://.com/i/parts/cordaSE1004_parts_03.jpg",null,null,null,null,240.99]
[null,null,null,null,null,null,null,"Variation","Model=TE2003|Part=Colol|Pt=Pt|KP=Mp",null,null,null,null,null,null,null,null,null,null,null,null,null,null,null,"https://.com/i/parts/cordaSE1004_parts_01.jpg|https://.com/i/parts/cordaSE1004_parts_02.jpg|https://.com/i/parts/cordaSE1004_parts_03.jpg",null,null,null,null,240.99]
[null,null,null,null,null,null,null,"Variation","Model=TE2003|Part=Colol|Pt=Pt|KP=LP",null,null,null,null,null,null,null,null,null,null,null,null,null,null,null,"https://.com/i/parts/cordaSE1004_parts_01.jpg|https://.com/i/parts/cordaSE1004_parts_02.jpg|https://.com/i/parts/cordaSE1004_parts_03.jpg",null,null,null,null,240.99]
["save",null,null,"67-51641",null,null,"Bertonika 2001 9000 for cleaing astrartciaons set of 23",null,"Model=SE1005;TE2004|Part=Mad;Power;Lad;Colol|Pt=Mt;Pt|KP=Mp;LP","own",null,null,null,null,null,null,null,0.8,null,null,null,null,null,null,"https://.com/i/parts/cordaSE1005_parts_01.jpg|https://.com/i/parts/cordaSE1005_parts_02.jpg|https://.com/i/parts/cordaSE1005_parts_03.jpg","You get one part of your choice that you specify in your message. ","r iron is called \"drag soldering\".. Its an art to learn but once you do you can solder multiple leads in seconds.."]
[null,null,null,null,null,null,null,"Variation","Model=SE1005|Part=Mad|Pt=Mt|KP=Mp",null,null,null,null,null,null,null,null,null,null,null,null,null,null,null,"https://.com/i/parts/cordaSE1005_parts_01.jpg|https://.com/i/parts/cordaSE1005_parts_02.jpg|https://.com/i/parts/cordaSE1005_parts_03.jpg",null,null,null,null,240.99]
[null,null,null,null,null,null,null,"Variation","Model=SE1005|Part=Mad|Pt=Mt|KP=LP",null,null,null,null,null,null,null,null,null,null,null,null,null,null,null,"https://.com/i/parts/cordaSE1005_parts_01.jpg|https://.com/i/parts/cordaSE1005_parts_02.jpg|https://.com/i/parts/cordaSE1005_parts_03.jpg",null,null,null,null,240.99]
[null,null,null,null,null,null,null,"Variation","Model=SE1005|Part=Mad|Pt=Pt|KP=Mp",null,null,null,null,null,null,null,null,null,null,null,null,null,null,null,"https://.com/i/parts/cordaSE1005_parts_01.jpg|https://.com/i/parts/cordaSE1005_parts_02.jpg|https://.com/i/parts/cordaSE1005_parts_03.jpg",null,null,null,null,240.99]
[null,null,null,null,null,null,null,"Variation","Model=SE1005|Part=Mad|Pt=Pt|KP=LP",null,null,null,null,null,null,null,null,null,null,null,null,null,null,null,"https://.com/i/parts/cordaSE1005_parts_01.jpg|https://.com/i/parts/cordaSE1005_parts_02.jpg|https://.com/i/parts/cordaSE1005_parts_03.jpg",null,null,null,null,240.99]
[null,null,null,null,null,null,null,"Variation","Model=SE1005|Part=Power|Pt=Mt|KP=Mp",null,null,null,null,null,null,null,null,null,null,null,null,null,null,null,"https://.com/i/parts/cordaSE1005_parts_01.jpg|https://.com/i/parts/cordaSE1005_parts_02.jpg|https://.com/i/parts/cordaSE1005_parts_03.jpg",null,null,null,null,240.99]
[null,null,null,null,null,null,null,"Variation","Model=SE1005|Part=Power|Pt=Mt|KP=LP",null,null,null,null,null,null,null,null,null,null,null,null,null,null,null,"https://.com/i/parts/cordaSE1005_parts_01.jpg|https://.com/i/parts/cordaSE1005_parts_02.jpg|https://.com/i/parts/cordaSE1005_parts_03.jpg",null,null,null,null,240.99]
[null,null,null,null,null,null,null,"Variation","Model=SE1005|Part=Power|Pt=Pt|KP=Mp",null,null,null,null,null,null,null,null,null,null,null,null,null,null,null,"https://.com/i/parts/cordaSE1005_parts_01.jpg|https://.com/i/parts/cordaSE1005_parts_02.jpg|https://.com/i/parts/cordaSE1005_parts_03.jpg",null,null,null,null,240.99]
[null,null,null,null,null,null,null,"Variation","Model=SE1005|Part=Power|Pt=Pt|KP=LP",null,null,null,null,null,null,null,null,null,null,null,null,null,null,null,"https://.com/i/parts/cordaSE1005_parts_01.jpg|https://.com/i/parts/cordaSE1005_parts_02.jpg|https://.com/i/parts/cordaSE1005_parts_03.jpg",null,null,null,null,240.99]
[null,null,null,null,null,null,null,"Variation","Model=SE1005|Part=Lad|Pt=Mt|KP=Mp",null,null,null,null,null,null,null,null,null,null,null,null,null,null,null,"https://.com/i/parts/cordaSE1005_parts_01.jpg|https://.com/i/parts/cordaSE1005_parts_02.jpg|https://.com/i/parts/cordaSE1005_parts_03.jpg",null,null,null,null,240.99]
[null,null,null,null,null,null,null,"Variation","Model=SE1005|Part=Lad|Pt=Mt|KP=LP",null,null,null,null,null,null,null,null,null,null,null,null,null,null,null,"https://.com/i/parts/cordaSE1005_parts_01.jpg|https://.com/i/parts/cordaSE1005_parts_02.jpg|https://.com/i/parts/cordaSE1005_parts_03.jpg",null,null,null,null,240.99]
[null,null,null,null,null,null,null,"Variation","Model=SE1005|Part=Lad|Pt=Pt|KP=Mp",null,null,null,null,null,null,null,null,null,null,null,null,null,null,null,"https://.com/i/parts/cordaSE1005_parts_01.jpg|https://.com/i/parts/cordaSE1005_parts_02.jpg|https://.com/i/parts/cordaSE1005_parts_03.jpg",null,null,null,null,240.99]
[null,null,null,null,null,null,null,"Variation","Model=SE1005|Part=Lad|Pt=Pt|KP=LP",null,null,null,null,null,null,null,null,null,null,null,null,null,null,null,"https://.com/i/parts/cordaSE1005_parts_01.jpg|https://.com/i/parts/cordaSE1005_parts_02.jpg|https://.com/i/parts/cordaSE1005_parts_03.jpg",null,null,null,null,240.99]
[null,null,null,null,null,null,null,"Variation","Model=SE1005|Part=Colol|Pt=Mt|KP=Mp",null,null,null,null,null,null,null,null,null,null,null,null,null,null,null,"https://.com/i/parts/cordaSE1005_parts_01.jpg|https://.com/i/parts/cordaSE1005_parts_02.jpg|https://.com/i/parts/cordaSE1005_parts_03.jpg",null,null,null,null,240.99]
[null,null,null,null,null,null,null,"Variation","Model=SE1005|Part=Colol|Pt=Mt|KP=LP",null,null,null,null,null,null,null,null,null,null,null,null,null,null,null,"https://.com/i/parts/cordaSE1005_parts_01.jpg|https://.com/i/parts/cordaSE1005_parts_02.jpg|https://.com/i/parts/cordaSE1005_parts_03.jpg",null,null,null,null,240.99]
[null,null,null,null,null,null,null,"Variation","Model=SE1005|Part=Colol|Pt=Pt|KP=Mp",null,null,null,null,null,null,null,null,null,null,null,null,null,null,null,"https://.com/i/parts/cordaSE1005_parts_01.jpg|https://.com/i/parts/cordaSE1005_parts_02.jpg|https://.com/i/parts/cordaSE1005_parts_03.jpg",null,null,null,null,240.99]
[null,null,null,null,null,null,null,"Variation","Model=SE1005|Part=Colol|Pt=Pt|KP=LP",null,null,null,null,null,null,null,null,null,null,null,null,null,null,null,"https://.com/i/parts/cordaSE1005_parts_01.jpg|https://.com/i/parts/cordaSE1005_parts_02.jpg|https://.com/i/parts/cordaSE1005_parts_03.jpg",null,null,null,null,240.99]
[null,null,null,null,null,null,null,"Variation","Model=TE2004|Part=Mad|Pt=Mt|KP=Mp",null,null,null,null,null,null,null,null,null,null,null,null,null,null,null,"https://.com/i/parts/cordaSE1005_parts_01.jpg|https://.com/i/parts/cordaSE1005_parts_02.jpg|https://.com/i/parts/cordaSE1005_parts_03.jpg",null,null,null,null,240.99]
[null,null,null,null,null,null,null,"Variation","Model=TE2004|Part=Mad|Pt=Mt|KP=LP",null,null,null,null,null,null,null,null,null,null,null,null,null,null,null,"https://.com/i/parts/cordaSE1005_parts_01.jpg|https://.com/i/parts/cordaSE1005_parts_02.jpg|https://.com/i/parts/cordaSE1005_parts_03.jpg",null,null,null,null,240.99]
[null,null,null,null,null,null,null,"Variation","Model=TE2004|Part=Mad|Pt=Pt|KP=Mp",null,null,null,null,null,null,null,null,null,null,null,null,null,null,null,"https://.com/i/parts/cordaSE1005_parts_01.jpg|https://.com/i/parts/cordaSE1005_parts_02.jpg|https://.com/i/parts/cordaSE1005_parts_03.jpg",null,null,null,null,240.99]
[null,null,null,null,null,null,null,"Variation","Model=TE2004|Part=Mad|Pt=Pt|KP=LP",null,null,null,null,null,null,null,null,null,null,null,null,null,null,null,"https://.com/i/parts/cordaSE1005_parts_01.jpg|https://.com/i/parts/cordaSE1005_parts_02.jpg|https://.com/i/parts/cordaSE1005_parts_03.jpg",null,null,null,null,240.99]
[null,null,null,null,null,null,null,"Variation","Model=TE2004|Part=Power|Pt=Mt|KP=Mp",null,null,null,null,null,null,null,null,null,null,null,null,null,null,null,"https://.com/i/parts/cordaSE1005_parts_01.jpg|https://.com/i/parts/cordaSE1005_parts_02.jpg|https://.com/i/parts/cordaSE1005_parts_03.jpg",null,null,null,null,240.99]
[null,null,null,null,null,null,null,"Variation","Model=TE2004|Part=Power|Pt=Mt|KP=LP",null,null,null,null,null,null,null,null,null,null,null,null,null,null,null,"https://.com/i/parts/cordaSE1005_parts_01.jpg|https://.com/i/parts/cordaSE1005_parts_02.jpg|https://.com/i/parts/cordaSE1005_parts_03.jpg",null,null,null,null,240.99]
[null,null,null,null,null,null,null,"Variation","Model=TE2004|Part=Power|Pt=Pt|KP=Mp",null,null,null,null,null,null,null,null,null,null,null,null,null,null,null,"https://.com/i/parts/cordaSE1005_parts_01.jpg|https://.com/i/parts/cordaSE1005_parts_02.jpg|https://.com/i/parts/cordaSE1005_parts_03.jpg",null,null,null,null,240.99]
[null,null,null,null,null,null,null,"Variation","Model=TE2004|Part=Power|Pt=Pt|KP=LP",null,null,null,null,null,null,null,null,null,null,null,null,null,null,null,"https://.com/i/parts/cordaSE1005_parts_01.jpg|https://.com/i/parts/cordaSE1005_parts_02.jpg|https://.com/i/parts/cordaSE1005_parts_03.jpg",null,null,null,null,240.99]
[null,null,null,null,null,null,null,"Variation","Model=TE2004|Part=Lad|Pt=Mt|KP=Mp",null,null,null,null,null,null,null,null,null,null,null,null,null,null,null,"https://.com/i/parts/cordaSE1005_parts_01.jpg|https://.com/i/parts/cordaSE1005_parts_02.jpg|https://.com/i/parts/cordaSE1005_parts_03.jpg",null,null,null,null,240.99]
[null,null,null,null,null,null,null,"Variation","Model=TE2004|Part=Lad|Pt=Mt|KP=LP",null,null,null,null,null,null,null,null,null,null,null,null,null,null,null,"https://.com/i/parts/cordaSE1005_parts_01.jpg|https://.com/i/parts/cordaSE1005_parts_02.jpg|https://.com/i/parts/cordaSE1005_parts_03.jpg",null,null,null,null,240.99]
[null,null,null,null,null,null,null,"Variation","Model=TE2004|Part=Lad|Pt=Pt|KP=Mp",null,null,null,null,null,null,null,null,null,null,null,null,null,null,null,"https://.com/i/parts/cordaSE1005_parts_01.jpg|https://.com/i/parts/cordaSE1005_parts_02.jpg|https://.com/i/parts/cordaSE1005_parts_03.jpg",null,null,null,null,240.99]
[null,null,null,null,null,null,null,"Variation","Model=TE2004|Part=Lad|Pt=Pt|KP=LP",null,null,null,null,null,null,null,null,null,null,null,null,null,null,null,"https://.com/i/parts/cordaSE1005_parts_01.jpg|https://.com/i/parts/cordaSE1005_parts_02.jpg|https://.com/i/parts/cordaSE1005_parts_03.jpg",null,null,null,null,240.99]
[null,null,null,null,null,null,null,"Variation","Model=TE2004|Part=Colol|Pt=Mt|KP=Mp",null,null,null,null,null,null,null,null,null,null,null,null,null,null,null,"https://.com/i/parts/cordaSE1005_parts_01.jpg|https://.com/i/parts/cordaSE1005_parts_02.jpg|https://.com/i/parts/cordaSE1005_parts_03.jpg",null,null,null,null,240.99]
[null,null,null,null,null,null,null,"Variation","Model=TE2004|Part=Colol|Pt=Mt|KP=LP",null,null,null,null,null,null,null,null,null,null,null,null,null,null,null,"https://.com/i/parts/cordaSE1005_parts_01.jpg|https://.com/i/parts/cordaSE1005_parts_02.jpg|https://.com/i/parts/cordaSE1005_parts_03.jpg",null,null,null,null,240.99]
[null,null,null,null,null,null,null,"Variation","Model=TE2004|Part=Colol|Pt=Pt|KP=Mp",null,null,null,null,null,null,null,null,null,null,null,null,null,null,null,"https://.com/i/parts/cordaSE1005_parts_01.jpg|https://.com/i/parts/cordaSE1005_parts_02.jpg|https://.com/i/parts/cordaSE1005_parts_03.jpg",null,null,null,null,240.99]
[null,null,null,null,null,null,null,"Variation","Model=TE2004|Part=Colol|Pt=Pt|KP=LP",null,null,null,null,null,null,null,null,null,null,null,null,null,null,null,"https://.com/i/parts/cordaSE1005_parts_01.jpg|https://.com/i/parts/cordaSE1005_parts_02.jpg|https://.com/i/parts/cordaSE1005_parts_03.jpg",null,null,null,null,240.99]
["save",null,null,"67-67867",null,null,"Bertonika 2001 9000 for cleaing astrartciaons set of 25",null,"Model=SE1007;TE2006|Part=Mad;Power;Lad;Colol|Pt=Mt;Pt|KP=Mp;LP","own",null,null,null,null,null,null,null,0.8,null,null,null,null,null,null,"https://.com/i/parts/cordaSE1007_parts_01.jpg|https://.com/i/parts/cordaSE1007_parts_02.jpg|https://.com/i/parts/cordaSE1007_parts_03.jpg","You get one part of your choice that you specify in your message. ","r iron is called \"drag soldering\".. Its an art to learn but once you do you can solder multiple leads in seconds.."]
[null,null,null,null,null,null,null,"Variation","Model=SE1007|Part=Mad|Pt=Mt|KP=Mp",null,null,null,null,null,null,null,null,null,null,null,null,null,null,null,"https://.com/i/parts/cordaSE1007_parts_01.jpg|https://.com/i/parts/cordaSE1007_parts_02.jpg|https://.com/i/parts/cordaSE1007_parts_03.jpg",null,null,null,null,240.99]
[null,null,null,null,null,null,null,"Variation","Model=SE1007|Part=Mad|Pt=Mt|KP=LP",null,null,null,null,null,null,null,null,null,null,null,null,null,null,null,"https://.com/i/parts/cordaSE1007_parts_01.jpg|https://.com/i/parts/cordaSE1007_parts_02.jpg|https://.com/i/parts/cordaSE1007_parts_03.jpg",null,null,null,null,240.99]
[null,null,null,null,null,null,null,"Variation","Model=SE1007|Part=Mad|Pt=Pt|KP=Mp",null,null,null,null,null,null,null,null,null,null,null,null,null,null,null,"https://.com/i/parts/cordaSE1007_parts_01.jpg|https://.com/i/parts/cordaSE1007_parts_02.jpg|https://.com/i/parts/cordaSE1007_parts_03.jpg",null,null,null,null,240.99]
[null,null,null,null,null,null,null,"Variation","Model=SE1007|Part=Mad|Pt=Pt|KP=LP",null,null,null,null,null,null,null,null,null,null,null,null,null,null,null,"https://.com/i/parts/cordaSE1007_parts_01.jpg|https://.com/i/parts/cordaSE1007_parts_02.jpg|https://.com/i/parts/cordaSE1007_parts_03.jpg",null,null,null,null,240.99]
[null,null,null,null,null,null,null,"Variation","Model=SE1007|Part=Power|Pt=Mt|KP=Mp",null,null,null,null,null,null,null,null,null,null,null,null,null,null,null,"https://.com/i/parts/cordaSE1007_parts_01.jpg|https://.com/i/parts/cordaSE1007_parts_02.jpg|https://.com/i/parts/cordaSE1007_parts_03.jpg",null,null,null,null,240.99]
[null,null,null,null,null,null,null,"Variation","Model=SE1007|Part=Power|Pt=Mt|KP=LP",null,null,null,null,null,null,null,null,null,null,null,null,null,null,null,"https://.com/i/parts/cordaSE1007_parts_01.jpg|https://.com/i/parts/cordaSE1007_parts_02.jpg|https://.com/i/parts/cordaSE1007_parts_03.jpg",null,null,null,null,240.99]
[null,null,null,null,null,null,null,"Variation","Model=SE1007|Part=Power|Pt=Pt|KP=Mp",null,null,null,null,null,null,null,null,null,null,null,null,null,null,null,"https://.com/i/parts/cordaSE1007_parts_01.jpg|https://.com/i/parts/cordaSE1007_parts_02.jpg|https://.com/i/parts/cordaSE1007_parts_03.jpg",null,null,null,null,240.99]
[null,null,null,null,null,null,null,"Variation","Model=SE1007|Part=Power|Pt=Pt|KP=LP",null,null,null,null,null,null,null,null,null,null,null,null,null,null,null,"https://.com/i/parts/cordaSE1007_parts_01.jpg|https://.com/i/parts/cordaSE1007_parts_02.jpg|https://.com/i/parts/cordaSE1007_parts_03.jpg",null,null,null,null,240.99]
[null,null,null,null,null,null,null,"Variation","Model=SE1007|Part=Lad|Pt=Mt|KP=Mp",null,null,null,null,null,null,null,null,null,null,null,null,null,null,null,"https://.com/i/parts/cordaSE1007_parts_01.jpg|https://.com/i/parts/cordaSE1007_parts_02.jpg|https://.com/i/parts/cordaSE1007_parts_03.jpg",null,null,null,null,240.99]
[null,null,null,null,null,null,null,"Variation","Model=SE1007|Part=Lad|Pt=Mt|KP=LP",null,null,null,null,null,null,null,null,null,null,null,null,null,null,null,"https://.com/i/parts/cordaSE1007_parts_01.jpg|https://.com/i/parts/cordaSE1007_parts_02.jpg|https://.com/i/parts/cordaSE1007_parts_03.jpg",null,null,null,null,240.99]
[null,null,null,null,null,null,null,"Variation","Model=SE1007|Part=Lad|Pt=Pt|KP=Mp",null,null,null,null,null,null,null,null,null,null,null,null,null,null,null,"https://.com/i/parts/cordaSE1007_parts_01.jpg|https://.com/i/parts/cordaSE1007_parts_02.jpg|https://.com/i/parts/cordaSE1007_parts_03.jpg",null,null,null,null,240.99]
[null,null,null,null,null,null,null,"Variation","Model=SE1007|Part=Lad|Pt=Pt|KP=LP",null,null,null,null,null,null,null,null,null,null,null,null,null,null,null,"https://.com/i/parts/cordaSE1007_parts_01.jpg|https://.com/i/parts/cordaSE1007_parts_02.jpg|https://.com/i/parts/cordaSE1007_parts_03.jpg",null,null,null,null,240.99]
[null,null,null,null,null,null,null,"Variation","Model=SE1007|Part=Colol|Pt=Mt|KP=Mp",null,null,null,null,null,null,null,null,null,null,null,null,null,null,null,"https://.com/i/parts/cordaSE1007_parts_01.jpg|https://.com/i/parts/cordaSE1007_parts_02.jpg|https://.com/i/parts/cordaSE1007_parts_03.jpg",null,null,null,null,240.99]
[null,null,null,null,null,null,null,"Variation","Model=SE1007|Part=Colol|Pt=Mt|KP=LP",null,null,null,null,null,null,null,null,null,null,null,null,null,null,null,"https://.com/i/parts/cordaSE1007_parts_01.jpg|https://.com/i/parts/cordaSE1007_parts_02.jpg|https://.com/i/parts/cordaSE1007_parts_03.jpg",null,null,null,null,240.99]
[null,null,null,null,null,null,null,"Variation","Model=SE1007|Part=Colol|Pt=Pt|KP=Mp",null,null,null,null,null,null,null,null,null,null,null,null,null,null,null,"https://.com/i/parts/cordaSE1007_parts_01.jpg|https://.com/i/parts/cordaSE1007_parts_02.jpg|https://.com/i/parts/cordaSE1007_parts_03.jpg",null,null,null,null,240.99]
[null,null,null,null,null,null,null,"Variation","Model=SE1007|Part=Colol|Pt=Pt|KP=LP",null,null,null,null,null,null,null,null,null,null,null,null,null,null,null,"https://.com/i/parts/cordaSE1007_parts_01.jpg|https://.com/i/parts/cordaSE1007_parts_02.jpg|https://.com/i/parts/cordaSE1007_parts_03.jpg",null,null,null,null,240.99]
[null,null,null,null,null,null,null,"Variation","Model=TE2006|Part=Mad|Pt=Mt|KP=Mp",null,null,null,null,null,null,null,null,null,null,null,null,null,null,null,"https://.com/i/parts/cordaSE1007_parts_01.jpg|https://.com/i/parts/cordaSE1007_parts_02.jpg|https://.com/i/parts/cordaSE1007_parts_03.jpg",null,null,null,null,240.99]
[null,null,null,null,null,null,null,"Variation","Model=TE2006|Part=Mad|Pt=Mt|KP=LP",null,null,null,null,null,null,null,null,null,null,null,null,null,null,null,"https://.com/i/parts/cordaSE1007_parts_01.jpg|https://.com/i/parts/cordaSE1007_parts_02.jpg|https://.com/i/parts/cordaSE1007_parts_03.jpg",null,null,null,null,240.99]
[null,null,null,null,null,null,null,"Variation","Model=TE2006|Part=Mad|Pt=Pt|KP=Mp",null,null,null,null,null,null,null,null,null,null,null,null,null,null,null,"https://.com/i/parts/cordaSE1007_parts_01.jpg|https://.com/i/parts/cordaSE1007_parts_02.jpg|https://.com/i/parts/cordaSE1007_parts_03.jpg",null,null,null,null,240.99]
[null,null,null,null,null,null,null,"Variation","Model=TE2006|Part=Mad|Pt=Pt|KP=LP",null,null,null,null,null,null,null,null,null,null,null,null,null,null,null,"https://.com/i/parts/cordaSE1007_parts_01.jpg|https://.com/i/parts/cordaSE1007_parts_02.jpg|https://.com/i/parts/cordaSE1007_parts_03.jpg",null,null,null,null,240.99]
[null,null,null,null,null,null,null,"Variation","Model=TE2006|Part=Power|Pt=Mt|KP=Mp",null,null,null,null,null,null,null,null,null,null,null,null,null,null,null,"https://.com/i/parts/cordaSE1007_parts_01.jpg|https://.com/i/parts/cordaSE1007_parts_02.jpg|https://.com/i/parts/cordaSE1007_parts_03.jpg",null,null,null,null,240.99]
[null,null,null,null,null,null,null,"Variation","Model=TE2006|Part=Power|Pt=Mt|KP=LP",null,null,null,null,null,null,null,null,null,null,null,null,null,null,null,"https://.com/i/parts/cordaSE1007_parts_01.jpg|https://.com/i/parts/cordaSE1007_parts_02.jpg|https://.com/i/parts/cordaSE1007_parts_03.jpg",null,null,null,null,240.99]
[null,null,null,null,null,null,null,"Variation","Model=TE2006|Part=Power|Pt=Pt|KP=Mp",null,null,null,null,null,null,null,null,null,null,null,null,null,null,null,"https://.com/i/parts/cordaSE1007_parts_01.jpg|https://.com/i/parts/cordaSE1007_parts_02.jpg|https://.com/i/parts/cordaSE1007_parts_03.jpg",null,null,null,null,240.99]
[null,null,null,null,null,null,null,"Variation","Model=TE2006|Part=Power|Pt=Pt|KP=LP",null,null,null,null,null,null,null,null,null,null,null,null,null,null,null,"https://.com/i/parts/cordaSE1007_parts_01.jpg|https://.com/i/parts/cordaSE1007_parts_02.jpg|https://.com/i/parts/cordaSE1007_parts_03.jpg",null,null,null,null,240.99]
[null,null,null,null,null,null,null,"Variation","Model=TE2006|Part=Lad|Pt=Mt|KP=Mp",null,null,null,null,null,null,null,null,null,null,null,null,null,null,null,"https://.com/i/parts/cordaSE1007_parts_01.jpg|https://.com/i/parts/cordaSE1007_parts_02.jpg|https://.com/i/parts/cordaSE1007_parts_03.jpg",null,null,null,null,240.99]
[null,null,null,null,null,null,null,"Variation","Model=TE2006|Part=Lad|Pt=Mt|KP=LP",null,null,null,null,null,null,null,null,null,null,null,null,null,null,null,"https://.com/i/parts/cordaSE1007_parts_01.jpg|https://.com/i/parts/cordaSE1007_parts_02.jpg|https://.com/i/parts/cordaSE1007_parts_03.jpg",null,null,null,null,240.99]
[null,null,null,null,null,null,null,"Variation","Model=TE2006|Part=Lad|Pt=Pt|KP=Mp",null,null,null,null,null,null,null,null,null,null,null,null,null,null,null,"https://.com/i/parts/cordaSE1007_parts_01.jpg|https://.com/i/parts/cordaSE1007_parts_02.jpg|https://.com/i/parts/cordaSE1007_parts_03.jpg",null,null,null,null,240.99]
[null,null,null,null,null,null,null,"Variation","Model=TE2006|Part=Lad|Pt=Pt|KP=LP",null,null,null,null,null,null,null,null,null,null,null,null,null,null,null,"https://.com/i/parts/cordaSE1007_parts_01.jpg|https://.com/i/parts/cordaSE1007_parts_02.jpg|https://.com/i/parts/cordaSE1007_parts_03.jpg",null,null,null,null,240.99]
[null,null,null,null,null,null,null,"Variation","Model=TE2006|Part=Colol|Pt=Mt|KP=Mp",null,null,null,null,null,null,null,null,null,null,null,null,null,null,null,"https://.com/i/parts/cordaSE1007_parts_01.jpg|https://.com/i/parts/cordaSE1007_parts_02.jpg|https://.com/i/parts/cordaSE1007_parts_03.jpg",null,null,null,null,240.99]
[null,null,null,null,null,null,null,"Variation","Model=TE2006|Part=Colol|Pt=Mt|KP=LP",null,null,null,null,null,null,null,null,null,null,null,null,null,null,null,"https://.com/i/parts/cordaSE1007_parts_01.jpg|https://.com/i/parts/cordaSE1007_parts_02.jpg|https://.com/i/parts/cordaSE1007_parts_03.jpg",null,null,null,null,240.99]
[null,null,null,null,null,null,null,"Variation","Model=TE2006|Part=Colol|Pt=Pt|KP=Mp",null,null,null,null,null,null,null,null,null,null,null,null,null,null,null,"https://.com/i/parts/cordaSE1007_parts_01.jpg|https://.com/i/parts/cordaSE1007_parts_02.jpg|https://.com/i/parts/cordaSE1007_parts_03.jpg",null,null,null,null,240.99]
[null,null,null,null,null,null,null,"Variation","Model=TE2006|Part=Colol|Pt=Pt|KP=LP",null,null,null,null,null,null,null,null,null,null,null,null,null,null,null,"https://.com/i/parts/cordaSE1007_parts_01.jpg|https://.com/i/parts/cordaSE1007_parts_02.jpg|https://.com/i/parts/cordaSE1007_parts_03.jpg",null,null,null,null,240.99]
["save",null,null,"67-76454",null,null,"Bertonika 2001 9000 for cleaing astrartciaons set of 26",null,"Model=SE1008;TE2007|Part=Mad;Power;Lad;Colol|Pt=Mt;Pt|KP=Mp;LP","own",null,null,null,null,null,null,null,0.8,null,null,null,null,null,null,"https://.com/i/parts/cordaSE1008_parts_01.jpg|https://.com/i/parts/cordaSE1008_parts_02.jpg|https://.com/i/parts/cordaSE1008_parts_03.jpg","You get one part of your choice that you specify in your message. ","r iron is called \"drag soldering\".. Its an art to learn but once you do you can solder multiple leads in seconds.."]
[null,null,null,null,null,null,null,"Variation","Model=SE1008|Part=Mad|Pt=Mt|KP=Mp",null,null,null,null,null,null,null,null,null,null,null,null,null,null,null,"https://.com/i/parts/cordaSE1008_parts_01.jpg|https://.com/i/parts/cordaSE1008_parts_02.jpg|https://.com/i/parts/cordaSE1008_parts_03.jpg",null,null,null,null,240.99]
[null,null,null,null,null,null,null,"Variation","Model=SE1008|Part=Mad|Pt=Mt|KP=LP",null,null,null,null,null,null,null,null,null,null,null,null,null,null,null,"https://.com/i/parts/cordaSE1008_parts_01.jpg|https://.com/i/parts/cordaSE1008_parts_02.jpg|https://.com/i/parts/cordaSE1008_parts_03.jpg",null,null,null,null,240.99]
[null,null,null,null,null,null,null,"Variation","Model=SE1008|Part=Mad|Pt=Pt|KP=Mp",null,null,null,null,null,null,null,null,null,null,null,null,null,null,null,"https://.com/i/parts/cordaSE1008_parts_01.jpg|https://.com/i/parts/cordaSE1008_parts_02.jpg|https://.com/i/parts/cordaSE1008_parts_03.jpg",null,null,null,null,240.99]
[null,null,null,null,null,null,null,"Variation","Model=SE1008|Part=Mad|Pt=Pt|KP=LP",null,null,null,null,null,null,null,null,null,null,null,null,null,null,null,"https://.com/i/parts/cordaSE1008_parts_01.jpg|https://.com/i/parts/cordaSE1008_parts_02.jpg|https://.com/i/parts/cordaSE1008_parts_03.jpg",null,null,null,null,240.99]
[null,null,null,null,null,null,null,"Variation","Model=SE1008|Part=Power|Pt=Mt|KP=Mp",null,null,null,null,null,null,null,null,null,null,null,null,null,null,null,"https://.com/i/parts/cordaSE1008_parts_01.jpg|https://.com/i/parts/cordaSE1008_parts_02.jpg|https://.com/i/parts/cordaSE1008_parts_03.jpg",null,null,null,null,240.99]
[null,null,null,null,null,null,null,"Variation","Model=SE1008|Part=Power|Pt=Mt|KP=LP",null,null,null,null,null,null,null,null,null,null,null,null,null,null,null,"https://.com/i/parts/cordaSE1008_parts_01.jpg|https://.com/i/parts/cordaSE1008_parts_02.jpg|https://.com/i/parts/cordaSE1008_parts_03.jpg",null,null,null,null,240.99]
[null,null,null,null,null,null,null,"Variation","Model=SE1008|Part=Power|Pt=Pt|KP=Mp",null,null,null,null,null,null,null,null,null,null,null,null,null,null,null,"https://.com/i/parts/cordaSE1008_parts_01.jpg|https://.com/i/parts/cordaSE1008_parts_02.jpg|https://.com/i/parts/cordaSE1008_parts_03.jpg",null,null,null,null,240.99]
[null,null,null,null,null,null,null,"Variation","Model=SE1008|Part=Power|Pt=Pt|KP=LP",null,null,null,null,null,null,null,null,null,null,null,null,null,null,null,"https://.com/i/parts/cordaSE1008_parts_01.jpg|https://.com/i/parts/cordaSE1008_parts_02.jpg|https://.com/i/parts/cordaSE1008_parts_03.jpg",null,null,null,null,240.99]
[null,null,null,null,null,null,null,"Variation","Model=SE1008|Part=Lad|Pt=Mt|KP=Mp",null,null,null,null,null,null,null,null,null,null,null,null,null,null,null,"https://.com/i/parts/cordaSE1008_parts_01.jpg|https://.com/i/parts/cordaSE1008_parts_02.jpg|https://.com/i/parts/cordaSE1008_parts_03.jpg",null,null,null,null,240.99]
[null,null,null,null,null,null,null,"Variation","Model=SE1008|Part=Lad|Pt=Mt|KP=LP",null,null,null,null,null,null,null,null,null,null,null,null,null,null,null,"https://.com/i/parts/cordaSE1008_parts_01.jpg|https://.com/i/parts/cordaSE1008_parts_02.jpg|https://.com/i/parts/cordaSE1008_parts_03.jpg",null,null,null,null,240.99]
[null,null,null,null,null,null,null,"Variation","Model=SE1008|Part=Lad|Pt=Pt|KP=Mp",null,null,null,null,null,null,null,null,null,null,null,null,null,null,null,"https://.com/i/parts/cordaSE1008_parts_01.jpg|https://.com/i/parts/cordaSE1008_parts_02.jpg|https://.com/i/parts/cordaSE1008_parts_03.jpg",null,null,null,null,240.99]
[null,null,null,null,null,null,null,"Variation","Model=SE1008|Part=Lad|Pt=Pt|KP=LP",null,null,null,null,null,null,null,null,null,null,null,null,null,null,null,"https://.com/i/parts/cordaSE1008_parts_01.jpg|https://.com/i/parts/cordaSE1008_parts_02.jpg|https://.com/i/parts/cordaSE1008_parts_03.jpg",null,null,null,null,240.99]
[null,null,null,null,null,null,null,"Variation","Model=SE1008|Part=Colol|Pt=Mt|KP=Mp",null,null,null,null,null,null,null,null,null,null,null,null,null,null,null,"https://.com/i/parts/cordaSE1008_parts_01.jpg|https://.com/i/parts/cordaSE1008_parts_02.jpg|https://.com/i/parts/cordaSE1008_parts_03.jpg",null,null,null,null,240.99]
[null,null,null,null,null,null,null,"Variation","Model=SE1008|Part=Colol|Pt=Mt|KP=LP",null,null,null,null,null,null,null,null,null,null,null,null,null,null,null,"https://.com/i/parts/cordaSE1008_parts_01.jpg|https://.com/i/parts/cordaSE1008_parts_02.jpg|https://.com/i/parts/cordaSE1008_parts_03.jpg",null,null,null,null,240.99]
[null,null,null,null,null,null,null,"Variation","Model=SE1008|Part=Colol|Pt=Pt|KP=Mp",null,null,null,null,null,null,null,null,null,null,null,null,null,null,null,"https://.com/i/parts/cordaSE1008_parts_01.jpg|https://.com/i/parts/cordaSE1008_parts_02.jpg|https://.com/i/parts/cordaSE1008_parts_03.jpg",null,null,null,null,240.99]
[null,null,null,null,null,null,null,"Variation","Model=SE1008|Part=Colol|Pt=Pt|KP=LP",null,null,null,null,null,null,null,null,null,null,null,null,null,null,null,"https://.com/i/parts/cordaSE1008_parts_01.jpg|https://.com/i/parts/cordaSE1008_parts_02.jpg|https://.com/i/parts/cordaSE1008_parts_03.jpg",null,null,null,null,240.99]
[null,null,null,null,null,null,null,"Variation","Model=TE2007|Part=Mad|Pt=Mt|KP=Mp",null,null,null,null,null,null,null,null,null,null,null,null,null,null,null,"https://.com/i/parts/cordaSE1008_parts_01.jpg|https://.com/i/parts/cordaSE1008_parts_02.jpg|https://.com/i/parts/cordaSE1008_parts_03.jpg",null,null,null,null,240.99]
[null,null,null,null,null,null,null,"Variation","Model=TE2007|Part=Mad|Pt=Mt|KP=LP",null,null,null,null,null,null,null,null,null,null,null,null,null,null,null,"https://.com/i/parts/cordaSE1008_parts_01.jpg|https://.com/i/parts/cordaSE1008_parts_02.jpg|https://.com/i/parts/cordaSE1008_parts_03.jpg",null,null,null,null,240.99]
[null,null,null,null,null,null,null,"Variation","Model=TE2007|Part=Mad|Pt=Pt|KP=Mp",null,null,null,null,null,null,null,null,null,null,null,null,null,null,null,"https://.com/i/parts/cordaSE1008_parts_01.jpg|https://.com/i/parts/cordaSE1008_parts_02.jpg|https://.com/i/parts/cordaSE1008_parts_03.jpg",null,null,null,null,240.99]
[null,null,null,null,null,null,null,"Variation","Model=TE2007|Part=Mad|Pt=Pt|KP=LP",null,null,null,null,null,null,null,null,null,null,null,null,null,null,null,"https://.com/i/parts/cordaSE1008_parts_01.jpg|https://.com/i/parts/cordaSE1008_parts_02.jpg|https://.com/i/parts/cordaSE1008_parts_03.jpg",null,null,null,null,240.99]
[null,null,null,null,null,null,null,"Variation","Model=TE2007|Part=Power|Pt=Mt|KP=Mp",null,null,null,null,null,null,null,null,null,null,null,null,null,null,null,"https://.com/i/parts/cordaSE1008_parts_01.jpg|https://.com/i/parts/cordaSE1008_parts_02.jpg|https://.com/i/parts/cordaSE1008_parts_03.jpg",null,null,null,null,240.99]
[null,null,null,null,null,null,null,"Variation","Model=TE2007|Part=Power|Pt=Mt|KP=LP",null,null,null,null,null,null,null,null,null,null,null,null,null,null,null,"https://.com/i/parts/cordaSE1008_parts_01.jpg|https://.com/i/parts/cordaSE1008_parts_02.jpg|https://.com/i/parts/cordaSE1008_parts_03.jpg",null,null,null,null,240.99]
[null,null,null,null,null,null,null,"Variation","Model=TE2007|Part=Power|Pt=Pt|KP=Mp",null,null,null,null,null,null,null,null,null,null,null,null,null,null,null,"https://.com/i/parts/cordaSE1008_parts_01.jpg|https://.com/i/parts/cordaSE1008_parts_02.jpg|https://.com/i/parts/cordaSE1008_parts_03.jpg",null,null,null,null,240.99]
[null,null,null,null,null,null,null,"Variation","Model=TE2007|Part=Power|Pt=Pt|KP=LP",null,null,null,null,null,null,null,null,null,null,null,null,null,null,null,"https://.com/i/parts/cordaSE1008_parts_01.jpg|https://.com/i/parts/cordaSE1008_parts_02.jpg|https://.com/i/parts/cordaSE1008_parts_03.jpg",null,null,null,null,240.99]
[null,null,null,null,null,null,null,"Variation","Model=TE2007|Part=Lad|Pt=Mt|KP=Mp",null,null,null,null,null,null,null,null,null,null,null,null,null,null,null,"https://.com/i/parts/cordaSE1008_parts_01.jpg|https://.com/i/parts/cordaSE1008_parts_02.jpg|https://.com/i/parts/cordaSE1008_parts_03.jpg",null,null,null,null,240.99]
[null,null,null,null,null,null,null,"Variation","Model=TE2007|Part=Lad|Pt=Mt|KP=LP",null,null,null,null,null,null,null,null,null,null,null,null,null,null,null,"https://.com/i/parts/cordaSE1008_parts_01.jpg|https://.com/i/parts/cordaSE1008_parts_02.jpg|https://.com/i/parts/cordaSE1008_parts_03.jpg",null,null,null,null,240.99]
[null,null,null,null,null,null,null,"Variation","Model=TE2007|Part=Lad|Pt=Pt|KP=Mp",null,null,null,null,null,null,null,null,null,null,null,null,null,null,null,"https://.com/i/parts/cordaSE1008_parts_01.jpg|https://.com/i/parts/cordaSE1008_parts_02.jpg|https://.com/i/parts/cordaSE1008_parts_03.jpg",null,null,null,null,240.99]
[null,null,null,null,null,null,null,"Variation","Model=TE2007|Part=Lad|Pt=Pt|KP=LP",null,null,null,null,null,null,null,null,null,null,null,null,null,null,null,"https://.com/i/parts/cordaSE1008_parts_01.jpg|https://.com/i/parts/cordaSE1008_parts_02.jpg|https://.com/i/parts/cordaSE1008_parts_03.jpg",null,null,null,null,240.99]
[null,null,null,null,null,null,null,"Variation","Model=TE2007|Part=Colol|Pt=Mt|KP=Mp",null,null,null,null,null,null,null,null,null,null,null,null,null,null,null,"https://.com/i/parts/cordaSE1008_parts_01.jpg|https://.com/i/parts/cordaSE1008_parts_02.jpg|https://.com/i/parts/cordaSE1008_parts_03.jpg",null,null,null,null,240.99]
[null,null,null,null,null,null,null,"Variation","Model=TE2007|Part=Colol|Pt=Mt|KP=LP",null,null,null,null,null,null,null,null,null,null,null,null,null,null,null,"https://.com/i/parts/cordaSE1008_parts_01.jpg|https://.com/i/parts/cordaSE1008_parts_02.jpg|https://.com/i/parts/cordaSE1008_parts_03.jpg",null,null,null,null,240.99]
[null,null,null,null,null,null,null,"Variation","Model=TE2007|Part=Colol|Pt=Pt|KP=Mp",null,null,null,null,null,null,null,null,null,null,null,null,null,null,null,"https://.com/i/parts/cordaSE1008_parts_01.jpg|https://.com/i/parts/cordaSE1008_parts_02.jpg|https://.com/i/parts/cordaSE1008_parts_03.jpg",null,null,null,null,240.99]
[null,null,null,null,null,null,null,"Variation","Model=TE2007|Part=Colol|Pt=Pt|KP=LP",null,null,null,null,null,null,null,null,null,null,null,null,null,null,null,"https://.com/i/parts/cordaSE1008_parts_01.jpg|https://.com/i/parts/cordaSE1008_parts_02.jpg|https://.com/i/parts/cordaSE1008_parts_03.jpg",null,null,null,null,240.99]
["save",null,null,"67-85365",null,null,"Bertonika 2001 9000 for cleaing astrartciaons set of 27",null,"Model=SE1009;TE2008|Part=Mad;Power;Lad;Colol|Pt=Mt;Pt|KP=Mp;LP","own",null,null,null,null,null,null,null,0.8,null,null,null,null,null,null,"https://.com/i/parts/cordaSE1009_parts_01.jpg|https://.com/i/parts/cordaSE1009_parts_02.jpg|https://.com/i/parts/cordaSE1009_parts_03.jpg","You get one part of your choice that you specify in your message. ","r iron is called \"drag soldering\".. Its an art to learn but once you do you can solder multiple leads in seconds.."]
[null,null,null,null,null,null,null,"Variation","Model=SE1009|Part=Mad|Pt=Mt|KP=Mp",null,null,null,null,null,null,null,null,null,null,null,null,null,null,null,"https://.com/i/parts/cordaSE1009_parts_01.jpg|https://.com/i/parts/cordaSE1009_parts_02.jpg|https://.com/i/parts/cordaSE1009_parts_03.jpg",null,null,null,null,240.99]
[null,null,null,null,null,null,null,"Variation","Model=SE1009|Part=Mad|Pt=Mt|KP=LP",null,null,null,null,null,null,null,null,null,null,null,null,null,null,null,"https://.com/i/parts/cordaSE1009_parts_01.jpg|https://.com/i/parts/cordaSE1009_parts_02.jpg|https://.com/i/parts/cordaSE1009_parts_03.jpg",null,null,null,null,240.99]
[null,null,null,null,null,null,null,"Variation","Model=SE1009|Part=Mad|Pt=Pt|KP=Mp",null,null,null,null,null,null,null,null,null,null,null,null,null,null,null,"https://.com/i/parts/cordaSE1009_parts_01.jpg|https://.com/i/parts/cordaSE1009_parts_02.jpg|https://.com/i/parts/cordaSE1009_parts_03.jpg",null,null,null,null,240.99]
[null,null,null,null,null,null,null,"Variation","Model=SE1009|Part=Mad|Pt=Pt|KP=LP",null,null,null,null,null,null,null,null,null,null,null,null,null,null,null,"https://.com/i/parts/cordaSE1009_parts_01.jpg|https://.com/i/parts/cordaSE1009_parts_02.jpg|https://.com/i/parts/cordaSE1009_parts_03.jpg",null,null,null,null,240.99]
[null,null,null,null,null,null,null,"Variation","Model=SE1009|Part=Power|Pt=Mt|KP=Mp",null,null,null,null,null,null,null,null,null,null,null,null,null,null,null,"https://.com/i/parts/cordaSE1009_parts_01.jpg|https://.com/i/parts/cordaSE1009_parts_02.jpg|https://.com/i/parts/cordaSE1009_parts_03.jpg",null,null,null,null,240.99]
[null,null,null,null,null,null,null,"Variation","Model=SE1009|Part=Power|Pt=Mt|KP=LP",null,null,null,null,null,null,null,null,null,null,null,null,null,null,null,"https://.com/i/parts/cordaSE1009_parts_01.jpg|https://.com/i/parts/cordaSE1009_parts_02.jpg|https://.com/i/parts/cordaSE1009_parts_03.jpg",null,null,null,null,240.99]
[null,null,null,null,null,null,null,"Variation","Model=SE1009|Part=Power|Pt=Pt|KP=Mp",null,null,null,null,null,null,null,null,null,null,null,null,null,null,null,"https://.com/i/parts/cordaSE1009_parts_01.jpg|https://.com/i/parts/cordaSE1009_parts_02.jpg|https://.com/i/parts/cordaSE1009_parts_03.jpg",null,null,null,null,240.99]
[null,null,null,null,null,null,null,"Variation","Model=SE1009|Part=Power|Pt=Pt|KP=LP",null,null,null,null,null,null,null,null,null,null,null,null,null,null,null,"https://.com/i/parts/cordaSE1009_parts_01.jpg|https://.com/i/parts/cordaSE1009_parts_02.jpg|https://.com/i/parts/cordaSE1009_parts_03.jpg",null,null,null,null,240.99]
[null,null,null,null,null,null,null,"Variation","Model=SE1009|Part=Lad|Pt=Mt|KP=Mp",null,null,null,null,null,null,null,null,null,null,null,null,null,null,null,"https://.com/i/parts/cordaSE1009_parts_01.jpg|https://.com/i/parts/cordaSE1009_parts_02.jpg|https://.com/i/parts/cordaSE1009_parts_03.jpg",null,null,null,null,240.99]
[null,null,null,null,null,null,null,"Variation","Model=SE1009|Part=Lad|Pt=Mt|KP=LP",null,null,null,null,null,null,null,null,null,null,null,null,null,null,null,"https://.com/i/parts/cordaSE1009_parts_01.jpg|https://.com/i/parts/cordaSE1009_parts_02.jpg|https://.com/i/parts/cordaSE1009_parts_03.jpg",null,null,null,null,240.99]
[null,null,null,null,null,null,null,"Variation","Model=SE1009|Part=Lad|Pt=Pt|KP=Mp",null,null,null,null,null,null,null,null,null,null,null,null,null,null,null,"https://.com/i/parts/cordaSE1009_parts_01.jpg|https://.com/i/parts/cordaSE1009_parts_02.jpg|https://.com/i/parts/cordaSE1009_parts_03.jpg",null,null,null,null,240.99]
[null,null,null,null,null,null,null,"Variation","Model=SE1009|Part=Lad|Pt=Pt|KP=LP",null,null,null,null,null,null,null,null,null,null,null,null,null,null,null,"https://.com/i/parts/cordaSE1009_parts_01.jpg|https://.com/i/parts/cordaSE1009_parts_02.jpg|https://.com/i/parts/cordaSE1009_parts_03.jpg",null,null,null,null,240.99]
[null,null,null,null,null,null,null,"Variation","Model=SE1009|Part=Colol|Pt=Mt|KP=Mp",null,null,null,null,null,null,null,null,null,null,null,null,null,null,null,"https://.com/i/parts/cordaSE1009_parts_01.jpg|https://.com/i/parts/cordaSE1009_parts_02.jpg|https://.com/i/parts/cordaSE1009_parts_03.jpg",null,null,null,null,240.99]
[null,null,null,null,null,null,null,"Variation","Model=SE1009|Part=Colol|Pt=Mt|KP=LP",null,null,null,null,null,null,null,null,null,null,null,null,null,null,null,"https://.com/i/parts/cordaSE1009_parts_01.jpg|https://.com/i/parts/cordaSE1009_parts_02.jpg|https://.com/i/parts/cordaSE1009_parts_03.jpg",null,null,null,null,240.99]
[null,null,null,null,null,null,null,"Variation","Model=SE1009|Part=Colol|Pt=Pt|KP=Mp",null,null,null,null,null,null,null,null,null,null,null,null,null,null,null,"https://.com/i/parts/cordaSE1009_parts_01.jpg|https://.com/i/parts/cordaSE1009_parts_02.jpg|https://.com/i/parts/cordaSE1009_parts_03.jpg",null,null,null,null,240.99]
[null,null,null,null,null,null,null,"Variation","Model=SE1009|Part=Colol|Pt=Pt|KP=LP",null,null,null,null,null,null,null,null,null,null,null,null,null,null,null,"https://.com/i/parts/cordaSE1009_parts_01.jpg|https://.com/i/parts/cordaSE1009_parts_02.jpg|https://.com/i/parts/cordaSE1009_parts_03.jpg",null,null,null,null,240.99]
[null,null,null,null,null,null,null,"Variation","Model=TE2008|Part=Mad|Pt=Mt|KP=Mp",null,null,null,null,null,null,null,null,null,null,null,null,null,null,null,"https://.com/i/parts/cordaSE1009_parts_01.jpg|https://.com/i/parts/cordaSE1009_parts_02.jpg|https://.com/i/parts/cordaSE1009_parts_03.jpg",null,null,null,null,240.99]
[null,null,null,null,null,null,null,"Variation","Model=TE2008|Part=Mad|Pt=Mt|KP=LP",null,null,null,null,null,null,null,null,null,null,null,null,null,null,null,"https://.com/i/parts/cordaSE1009_parts_01.jpg|https://.com/i/parts/cordaSE1009_parts_02.jpg|https://.com/i/parts/cordaSE1009_parts_03.jpg",null,null,null,null,240.99]
[null,null,null,null,null,null,null,"Variation","Model=TE2008|Part=Mad|Pt=Pt|KP=Mp",null,null,null,null,null,null,null,null,null,null,null,null,null,null,null,"https://.com/i/parts/cordaSE1009_parts_01.jpg|https://.com/i/parts/cordaSE1009_parts_02.jpg|https://.com/i/parts/cordaSE1009_parts_03.jpg",null,null,null,null,240.99]
[null,null,null,null,null,null,null,"Variation","Model=TE2008|Part=Mad|Pt=Pt|KP=LP",null,null,null,null,null,null,null,null,null,null,null,null,null,null,null,"https://.com/i/parts/cordaSE1009_parts_01.jpg|https://.com/i/parts/cordaSE1009_parts_02.jpg|https://.com/i/parts/cordaSE1009_parts_03.jpg",null,null,null,null,240.99]
[null,null,null,null,null,null,null,"Variation","Model=TE2008|Part=Power|Pt=Mt|KP=Mp",null,null,null,null,null,null,null,null,null,null,null,null,null,null,null,"https://.com/i/parts/cordaSE1009_parts_01.jpg|https://.com/i/parts/cordaSE1009_parts_02.jpg|https://.com/i/parts/cordaSE1009_parts_03.jpg",null,null,null,null,240.99]
[null,null,null,null,null,null,null,"Variation","Model=TE2008|Part=Power|Pt=Mt|KP=LP",null,null,null,null,null,null,null,null,null,null,null,null,null,null,null,"https://.com/i/parts/cordaSE1009_parts_01.jpg|https://.com/i/parts/cordaSE1009_parts_02.jpg|https://.com/i/parts/cordaSE1009_parts_03.jpg",null,null,null,null,240.99]
[null,null,null,null,null,null,null,"Variation","Model=TE2008|Part=Power|Pt=Pt|KP=Mp",null,null,null,null,null,null,null,null,null,null,null,null,null,null,null,"https://.com/i/parts/cordaSE1009_parts_01.jpg|https://.com/i/parts/cordaSE1009_parts_02.jpg|https://.com/i/parts/cordaSE1009_parts_03.jpg",null,null,null,null,240.99]
[null,null,null,null,null,null,null,"Variation","Model=TE2008|Part=Power|Pt=Pt|KP=LP",null,null,null,null,null,null,null,null,null,null,null,null,null,null,null,"https://.com/i/parts/cordaSE1009_parts_01.jpg|https://.com/i/parts/cordaSE1009_parts_02.jpg|https://.com/i/parts/cordaSE1009_parts_03.jpg",null,null,null,null,240.99]
[null,null,null,null,null,null,null,"Variation","Model=TE2008|Part=Lad|Pt=Mt|KP=Mp",null,null,null,null,null,null,null,null,null,null,null,null,null,null,null,"https://.com/i/parts/cordaSE1009_parts_01.jpg|https://.com/i/parts/cordaSE1009_parts_02.jpg|https://.com/i/parts/cordaSE1009_parts_03.jpg",null,null,null,null,240.99]
[null,null,null,null,null,null,null,"Variation","Model=TE2008|Part=Lad|Pt=Mt|KP=LP",null,null,null,null,null,null,null,null,null,null,null,null,null,null,null,"https://.com/i/parts/cordaSE1009_parts_01.jpg|https://.com/i/parts/cordaSE1009_parts_02.jpg|https://.com/i/parts/cordaSE1009_parts_03.jpg",null,null,null,null,240.99]
[null,null,null,null,null,null,null,"Variation","Model=TE2008|Part=Lad|Pt=Pt|KP=Mp",null,null,null,null,null,null,null,null,null,null,null,null,null,null,null,"https://.com/i/parts/cordaSE1009_parts_01.jpg|https://.com/i/parts/cordaSE1009_parts_02.jpg|https://.com/i/parts/cordaSE1009_parts_03.jpg",null,null,null,null,240.99]
[null,null,null,null,null,null,null,"Variation","Model=TE2008|Part=Lad|Pt=Pt|KP=LP",null,null,null,null,null,null,null,null,null,null,null,null,null,null,null,"https://.com/i/parts/cordaSE1009_parts_01.jpg|https://.com/i/parts/cordaSE1009_parts_02.jpg|https://.com/i/parts/cordaSE1009_parts_03.jpg",null,null,null,null,240.99]
[null,null,null,null,null,null,null,"Variation","Model=TE2008|Part=Colol|Pt=Mt|KP=Mp",null,null,null,null,null,null,null,null,null,null,null,null,null,null,null,"https://.com/i/parts/cordaSE1009_parts_01.jpg|https://.com/i/parts/cordaSE1009_parts_02.jpg|https://.com/i/parts/cordaSE1009_parts_03.jpg",null,null,null,null,240.99]
[null,null,null,null,null,null,null,"Variation","Model=TE2008|Part=Colol|Pt=Mt|KP=LP",null,null,null,null,null,null,null,null,null,null,null,null,null,null,null,"https://.com/i/parts/cordaSE1009_parts_01.jpg|https://.com/i/parts/cordaSE1009_parts_02.jpg|https://.com/i/parts/cordaSE1009_parts_03.jpg",null,null,null,null,240.99]
[null,null,null,null,null,null,null,"Variation","Model=TE2008|Part=Colol|Pt=Pt|KP=Mp",null,null,null,null,null,null,null,null,null,null,null,null,null,null,null,"https://.com/i/parts/cordaSE1009_parts_01.jpg|https://.com/i/parts/cordaSE1009_parts_02.jpg|https://.com/i/parts/cordaSE1009_parts_03.jpg",null,null,null,null,240.99]
[null,null,null,null,null,null,null,"Variation","Model=TE2008|Part=Colol|Pt=Pt|KP=LP",null,null,null,null,null,null,null,null,null,null,null,null,null,null,null,"https://.com/i/parts/cordaSE1009_parts_01.jpg|https://.com/i/parts/cordaSE1009_parts_02.jpg|https://.com/i/parts/cordaSE1009_parts_03.jpg",null,null,null,null,240.99]
["save",null,null,"67-94606",null,null,"Bertonika 2001 9000 for cleaing astrartciaons set of 28",null,"Model=SE1010;TE2009|Part=Mad;Power;Lad;Colol|Pt=Mt;Pt|KP=Mp;LP","own",null,null,null,null,null,null,null,0.8,null,null,null,null,null,null,"https://.com/i/parts/cordaSE1010_parts_01.jpg|https://.com/i/parts/cordaSE1010_parts_02.jpg|https://.com/i/parts/cordaSE1010_parts_03.jpg","You get one part of your choice that you specify in your message. ","r iron is called \"drag soldering\".. Its an art to learn but once you do you can solder multiple leads in seconds.."]
[null,null,null,null,null,null,null,"Variation","Model=SE1010|Part=Mad|Pt=Mt|KP=Mp",null,null,null,null,null,null,null,null,null,null,null,null,null,null,null,"https://.com/i/parts/cordaSE1010_parts_01.jpg|https://.com/i/parts/cordaSE1010_parts_02.jpg|https://.com/i/parts/cordaSE1010_parts_03.jpg",null,null,null,null,240.99]
[null,null,null,null,null,null,null,"Variation","Model=SE1010|Part=Mad|Pt=Mt|KP=LP",null,null,null,null,null,null,null,null,null,null,null,null,null,null,null,"https://.com/i/parts/cordaSE1010_parts_01.jpg|https://.com/i/parts/cordaSE1010_parts_02.jpg|https://.com/i/parts/cordaSE1010_parts_03.jpg",null,null,null,null,240.99]
[null,null,null,null,null,null,null,"Variation","Model=SE1010|Part=Mad|Pt=Pt|KP=Mp",null,null,null,null,null,null,null,null,null,null,null,null,null,null,null,"https://.com/i/parts/cordaSE1010_parts_01.jpg|https://.com/i/parts/cordaSE1010_parts_02.jpg|https://.com/i/parts/cordaSE1010_parts_03.jpg",null,null,null,null,240.99]
[null,null,null,null,null,null,null,"Variation","Model=SE1010|Part=Mad|Pt=Pt|KP=LP",null,null,null,null,null,null,null,null,null,null,null,null,null,null,null,"https://.com/i/parts/cordaSE1010_parts_01.jpg|https://.com/i/parts/cordaSE1010_parts_02.jpg|https://.com/i/parts/cordaSE1010_parts_03.jpg",null,null,null,null,240.99]
[null,null,null,null,null,null,null,"Variation","Model=SE1010|Part=Power|Pt=Mt|KP=Mp",null,null,null,null,null,null,null,null,null,null,null,null,null,null,null,"https://.com/i/parts/cordaSE1010_parts_01.jpg|https://.com/i/parts/cordaSE1010_parts_02.jpg|https://.com/i/parts/cordaSE1010_parts_03.jpg",null,null,null,null,240.99]
[null,null,null,null,null,null,null,"Variation","Model=SE1010|Part=Power|Pt=Mt|KP=LP",null,null,null,null,null,null,null,null,null,null,null,null,null,null,null,"https://.com/i/parts/cordaSE1010_parts_01.jpg|https://.com/i/parts/cordaSE1010_parts_02.jpg|https://.com/i/parts/cordaSE1010_parts_03.jpg",null,null,null,null,240.99]
[null,null,null,null,null,null,null,"Variation","Model=SE1010|Part=Power|Pt=Pt|KP=Mp",null,null,null,null,null,null,null,null,null,null,null,null,null,null,null,"https://.com/i/parts/cordaSE1010_parts_01.jpg|https://.com/i/parts/cordaSE1010_parts_02.jpg|https://.com/i/parts/cordaSE1010_parts_03.jpg",null,null,null,null,240.99]
[null,null,null,null,null,null,null,"Variation","Model=SE1010|Part=Power|Pt=Pt|KP=LP",null,null,null,null,null,null,null,null,null,null,null,null,null,null,null,"https://.com/i/parts/cordaSE1010_parts_01.jpg|https://.com/i/parts/cordaSE1010_parts_02.jpg|https://.com/i/parts/cordaSE1010_parts_03.jpg",null,null,null,null,240.99]
[null,null,null,null,null,null,null,"Variation","Model=SE1010|Part=Lad|Pt=Mt|KP=Mp",null,null,null,null,null,null,null,null,null,null,null,null,null,null,null,"https://.com/i/parts/cordaSE1010_parts_01.jpg|https://.com/i/parts/cordaSE1010_parts_02.jpg|https://.com/i/parts/cordaSE1010_parts_03.jpg",null,null,null,null,240.99]
[null,null,null,null,null,null,null,"Variation","Model=SE1010|Part=Lad|Pt=Mt|KP=LP",null,null,null,null,null,null,null,null,null,null,null,null,null,null,null,"https://.com/i/parts/cordaSE1010_parts_01.jpg|https://.com/i/parts/cordaSE1010_parts_02.jpg|https://.com/i/parts/cordaSE1010_parts_03.jpg",null,null,null,null,240.99]
[null,null,null,null,null,null,null,"Variation","Model=SE1010|Part=Lad|Pt=Pt|KP=Mp",null,null,null,null,null,null,null,null,null,null,null,null,null,null,null,"https://.com/i/parts/cordaSE1010_parts_01.jpg|https://.com/i/parts/cordaSE1010_parts_02.jpg|https://.com/i/parts/cordaSE1010_parts_03.jpg",null,null,null,null,240.99]
[null,null,null,null,null,null,null,"Variation","Model=SE1010|Part=Lad|Pt=Pt|KP=LP",null,null,null,null,null,null,null,null,null,null,null,null,null,null,null,"https://.com/i/parts/cordaSE1010_parts_01.jpg|https://.com/i/parts/cordaSE1010_parts_02.jpg|https://.com/i/parts/cordaSE1010_parts_03.jpg",null,null,null,null,240.99]
[null,null,null,null,null,null,null,"Variation","Model=SE1010|Part=Colol|Pt=Mt|KP=Mp",null,null,null,null,null,null,null,null,null,null,null,null,null,null,null,"https://.com/i/parts/cordaSE1010_parts_01.jpg|https://.com/i/parts/cordaSE1010_parts_02.jpg|https://.com/i/parts/cordaSE1010_parts_03.jpg",null,null,null,null,240.99]
[null,null,null,null,null,null,null,"Variation","Model=SE1010|Part=Colol|Pt=Mt|KP=LP",null,null,null,null,null,null,null,null,null,null,null,null,null,null,null,"https://.com/i/parts/cordaSE1010_parts_01.jpg|https://.com/i/parts/cordaSE1010_parts_02.jpg|https://.com/i/parts/cordaSE1010_parts_03.jpg",null,null,null,null,240.99]
[null,null,null,null,null,null,null,"Variation","Model=SE1010|Part=Colol|Pt=Pt|KP=Mp",null,null,null,null,null,null,null,null,null,null,null,null,null,null,null,"https://.com/i/parts/cordaSE1010_parts_01.jpg|https://.com/i/parts/cordaSE1010_parts_02.jpg|https://.com/i/parts/cordaSE1010_parts_03.jpg",null,null,null,null,240.99]
[null,null,null,null,null,null,null,"Variation","Model=SE1010|Part=Colol|Pt=Pt|KP=LP",null,null,null,null,null,null,null,null,null,null,null,null,null,null,null,"https://.com/i/parts/cordaSE1010_parts_01.jpg|https://.com/i/parts/cordaSE1010_parts_02.jpg|https://.com/i/parts/cordaSE1010_parts_03.jpg",null,null,null,null,240.99]
[null,null,null,null,null,null,null,"Variation","Model=TE2009|Part=Mad|Pt=Mt|KP=Mp",null,null,null,null,null,null,null,null,null,null,null,null,null,null,null,"https://.com/i/parts/cordaSE1010_parts_01.jpg|https://.com/i/parts/cordaSE1010_parts_02.jpg|https://.com/i/parts/cordaSE1010_parts_03.jpg",null,null,null,null,240.99]
[null,null,null,null,null,null,null,"Variation","Model=TE2009|Part=Mad|Pt=Mt|KP=LP",null,null,null,null,null,null,null,null,null,null,null,null,null,null,null,"https://.com/i/parts/cordaSE1010_parts_01.jpg|https://.com/i/parts/cordaSE1010_parts_02.jpg|https://.com/i/parts/cordaSE1010_parts_03.jpg",null,null,null,null,240.99]
[null,null,null,null,null,null,null,"Variation","Model=TE2009|Part=Mad|Pt=Pt|KP=Mp",null,null,null,null,null,null,null,null,null,null,null,null,null,null,null,"https://.com/i/parts/cordaSE1010_parts_01.jpg|https://.com/i/parts/cordaSE1010_parts_02.jpg|https://.com/i/parts/cordaSE1010_parts_03.jpg",null,null,null,null,240.99]
[null,null,null,null,null,null,null,"Variation","Model=TE2009|Part=Mad|Pt=Pt|KP=LP",null,null,null,null,null,null,null,null,null,null,null,null,null,null,null,"https://.com/i/parts/cordaSE1010_parts_01.jpg|https://.com/i/parts/cordaSE1010_parts_02.jpg|https://.com/i/parts/cordaSE1010_parts_03.jpg",null,null,null,null,240.99]
[null,null,null,null,null,null,null,"Variation","Model=TE2009|Part=Power|Pt=Mt|KP=Mp",null,null,null,null,null,null,null,null,null,null,null,null,null,null,null,"https://.com/i/parts/cordaSE1010_parts_01.jpg|https://.com/i/parts/cordaSE1010_parts_02.jpg|https://.com/i/parts/cordaSE1010_parts_03.jpg",null,null,null,null,240.99]
[null,null,null,null,null,null,null,"Variation","Model=TE2009|Part=Power|Pt=Mt|KP=LP",null,null,null,null,null,null,null,null,null,null,null,null,null,null,null,"https://.com/i/parts/cordaSE1010_parts_01.jpg|https://.com/i/parts/cordaSE1010_parts_02.jpg|https://.com/i/parts/cordaSE1010_parts_03.jpg",null,null,null,null,240.99]
[null,null,null,null,null,null,null,"Variation","Model=TE2009|Part=Power|Pt=Pt|KP=Mp",null,null,null,null,null,null,null,null,null,null,null,null,null,null,null,"https://.com/i/parts/cordaSE1010_parts_01.jpg|https://.com/i/parts/cordaSE1010_parts_02.jpg|https://.com/i/parts/cordaSE1010_parts_03.jpg",null,null,null,null,240.99]
[null,null,null,null,null,null,null,"Variation","Model=TE2009|Part=Power|Pt=Pt|KP=LP",null,null,null,null,null,null,null,null,null,null,null,null,null,null,null,"https://.com/i/parts/cordaSE1010_parts_01.jpg|https://.com/i/parts/cordaSE1010_parts_02.jpg|https://.com/i/parts/cordaSE1010_parts_03.jpg",null,null,null,null,240.99]
[null,null,null,null,null,null,null,"Variation","Model=TE2009|Part=Lad|Pt=Mt|KP=Mp",null,null,null,null,null,null,null,null,null,null,null,null,null,null,null,"https://.com/i/parts/cordaSE1010_parts_01.jpg|https://.com/i/parts/cordaSE1010_parts_02.jpg|https://.com/i/parts/cordaSE1010_parts_03.jpg",null,null,null,null,240.99]
[null,null,null,null,null,null,null,"Variation","Model=TE2009|Part=Lad|Pt=Mt|KP=LP",null,null,null,null,null,null,null,null,null,null,null,null,null,null,null,"https://.com/i/parts/cordaSE1010_parts_01.jpg|https://.com/i/parts/cordaSE1010_parts_02.jpg|https://.com/i/parts/cordaSE1010_parts_03.jpg",null,null,null,null,240.99]
[null,null,null,null,null,null,null,"Variation","Model=TE2009|Part=Lad|Pt=Pt|KP=Mp",null,null,null,null,null,null,null,null,null,null,null,null,null,null,null,"https://.com/i/parts/cordaSE1010_parts_01.jpg|https://.com/i/parts/cordaSE1010_parts_02.jpg|https://.com/i/parts/cordaSE1010_parts_03.jpg",null,null,null,null,240.99]
[null,null,null,null,null,null,null,"Variation","Model=TE2009|Part=Lad|Pt=Pt|KP=LP",null,null,null,null,null,null,null,null,null,null,null,null,null,null,null,"https://.com/i/parts/cordaSE1010_parts_01.jpg|https://.com/i/parts/cordaSE1010_parts_02.jpg|https://.com/i/parts/cordaSE1010_parts_03.jpg",null,null,null,null,240.99]
[null,null,null,null,null,null,null,"Variation","Model=TE2009|Part=Colol|Pt=Mt|KP=Mp",null,null,null,null,null,null,null,null,null,null,null,null,null,null,null,"https://.com/i/parts/cordaSE1010_parts_01.jpg|https://.com/i/parts/cordaSE1010_parts_02.jpg|https://.com/i/parts/cordaSE1010_parts_03.jpg",null,null,null,null,240.99]
[null,null,null,null,null,null,null,"Variation","Model=TE2009|Part=Colol|Pt=Mt|KP=LP",null,null,null,null,null,null,null,null,null,null,null,null,null,null,null,"https://.com/i/parts/cordaSE1010_parts_01.jpg|https://.com/i/parts/cordaSE1010_parts_02.jpg|https://.com/i/parts/cordaSE1010_parts_03.jpg",null,null,null,null,240.99]
[null,null,null,null,null,null,null,"Variation","Model=TE2009|Part=Colol|Pt=Pt|KP=Mp",null,null,null,null,null,null,null,null,null,null,null,null,null,null,null,"https://.com/i/parts/cordaSE1010_parts_01.jpg|https://.com/i/parts/cordaSE1010_parts_02.jpg|https://.com/i/parts/cordaSE1010_parts_03.jpg",null,null,null,null,240.99]
[null,null,null,null,null,null,null,"Variation","Model=TE2009|Part=Colol|Pt=Pt|KP=LP",null,null,null,null,null,null,null,null,null,null,null,null,null,null,null,"https://.com/i/parts/cordaSE1010_parts_01.jpg|https://.com/i/parts/cordaSE1010_parts_02.jpg|https://.com/i/parts/cordaSE1010_parts_03.jpg",null,null,null,null,240.99]
["save",null,null,"68-04183",null,null,"Bertonika 2001 9000 for cleaing astrartciaons set of 29",null,"Model=SE1011;TE2010|Part=Mad;Power;Lad;Colol|Pt=Mt;Pt|KP=Mp;LP","own",null,null,null,null,null,null,null,0.8,null,null,null,null,null,null,"https://.com/i/parts/cordaSE1011_parts_01.jpg|https://.com/i/parts/cordaSE1011_parts_02.jpg|https://.com/i/parts/cordaSE1011_parts_03.jpg","You get one part of your choice that you specify in your message. ","r iron is called \"drag soldering\".. Its an art to learn but once you do you can solder multiple leads in seconds.."]
[null,null,null,null,null,null,null,"Variation","Model=SE1011|Part=Mad|Pt=Mt|KP=Mp",null,null,null,null,null,null,null,null,null,null,null,null,null,null,null,"https://.com/i/parts/cordaSE1011_parts_01.jpg|https://.com/i/parts/cordaSE1011_parts_02.jpg|https://.com/i/parts/cordaSE1011_parts_03.jpg",null,null,null,null,240.99]
[null,null,null,null,null,null,null,"Variation","Model=SE1011|Part=Mad|Pt=Mt|KP=LP",null,null,null,null,null,null,null,null,null,null,null,null,null,null,null,"https://.com/i/parts/cordaSE1011_parts_01.jpg|https://.com/i/parts/cordaSE1011_parts_02.jpg|https://.com/i/parts/cordaSE1011_parts_03.jpg",null,null,null,null,240.99]
[null,null,null,null,null,null,null,"Variation","Model=SE1011|Part=Mad|Pt=Pt|KP=Mp",null,null,null,null,null,null,null,null,null,null,null,null,null,null,null,"https://.com/i/parts/cordaSE1011_parts_01.jpg|https://.com/i/parts/cordaSE1011_parts_02.jpg|https://.com/i/parts/cordaSE1011_parts_03.jpg",null,null,null,null,240.99]
[null,null,null,null,null,null,null,"Variation","Model=SE1011|Part=Mad|Pt=Pt|KP=LP",null,null,null,null,null,null,null,null,null,null,null,null,null,null,null,"https://.com/i/parts/cordaSE1011_parts_01.jpg|https://.com/i/parts/cordaSE1011_parts_02.jpg|https://.com/i/parts/cordaSE1011_parts_03.jpg",null,null,null,null,240.99]
[null,null,null,null,null,null,null,"Variation","Model=SE1011|Part=Power|Pt=Mt|KP=Mp",null,null,null,null,null,null,null,null,null,null,null,null,null,null,null,"https://.com/i/parts/cordaSE1011_parts_01.jpg|https://.com/i/parts/cordaSE1011_parts_02.jpg|https://.com/i/parts/cordaSE1011_parts_03.jpg",null,null,null,null,240.99]
[null,null,null,null,null,null,null,"Variation","Model=SE1011|Part=Power|Pt=Mt|KP=LP",null,null,null,null,null,null,null,null,null,null,null,null,null,null,null,"https://.com/i/parts/cordaSE1011_parts_01.jpg|https://.com/i/parts/cordaSE1011_parts_02.jpg|https://.com/i/parts/cordaSE1011_parts_03.jpg",null,null,null,null,240.99]
[null,null,null,null,null,null,null,"Variation","Model=SE1011|Part=Power|Pt=Pt|KP=Mp",null,null,null,null,null,null,null,null,null,null,null,null,null,null,null,"https://.com/i/parts/cordaSE1011_parts_01.jpg|https://.com/i/parts/cordaSE1011_parts_02.jpg|https://.com/i/parts/cordaSE1011_parts_03.jpg",null,null,null,null,240.99]
[null,null,null,null,null,null,null,"Variation","Model=SE1011|Part=Power|Pt=Pt|KP=LP",null,null,null,null,null,null,null,null,null,null,null,null,null,null,null,"https://.com/i/parts/cordaSE1011_parts_01.jpg|https://.com/i/parts/cordaSE1011_parts_02.jpg|https://.com/i/parts/cordaSE1011_parts_03.jpg",null,null,null,null,240.99]
[null,null,null,null,null,null,null,"Variation","Model=SE1011|Part=Lad|Pt=Mt|KP=Mp",null,null,null,null,null,null,null,null,null,null,null,null,null,null,null,"https://.com/i/parts/cordaSE1011_parts_01.jpg|https://.com/i/parts/cordaSE1011_parts_02.jpg|https://.com/i/parts/cordaSE1011_parts_03.jpg",null,null,null,null,240.99]
[null,null,null,null,null,null,null,"Variation","Model=SE1011|Part=Lad|Pt=Mt|KP=LP",null,null,null,null,null,null,null,null,null,null,null,null,null,null,null,"https://.com/i/parts/cordaSE1011_parts_01.jpg|https://.com/i/parts/cordaSE1011_parts_02.jpg|https://.com/i/parts/cordaSE1011_parts_03.jpg",null,null,null,null,240.99]
[null,null,null,null,null,null,null,"Variation","Model=SE1011|Part=Lad|Pt=Pt|KP=Mp",null,null,null,null,null,null,null,null,null,null,null,null,null,null,null,"https://.com/i/parts/cordaSE1011_parts_01.jpg|https://.com/i/parts/cordaSE1011_parts_02.jpg|https://.com/i/parts/cordaSE1011_parts_03.jpg",null,null,null,null,240.99]
[null,null,null,null,null,null,null,"Variation","Model=SE1011|Part=Lad|Pt=Pt|KP=LP",null,null,null,null,null,null,null,null,null,null,null,null,null,null,null,"https://.com/i/parts/cordaSE1011_parts_01.jpg|https://.com/i/parts/cordaSE1011_parts_02.jpg|https://.com/i/parts/cordaSE1011_parts_03.jpg",null,null,null,null,240.99]
[null,null,null,null,null,null,null,"Variation","Model=SE1011|Part=Colol|Pt=Mt|KP=Mp",null,null,null,null,null,null,null,null,null,null,null,null,null,null,null,"https://.com/i/parts/cordaSE1011_parts_01.jpg|https://.com/i/parts/cordaSE1011_parts_02.jpg|https://.com/i/parts/cordaSE1011_parts_03.jpg",null,null,null,null,240.99]
[null,null,null,null,null,null,null,"Variation","Model=SE1011|Part=Colol|Pt=Mt|KP=LP",null,null,null,null,null,null,null,null,null,null,null,null,null,null,null,"https://.com/i/parts/cordaSE1011_parts_01.jpg|https://.com/i/parts/cordaSE1011_parts_02.jpg|https://.com/i/parts/cordaSE1011_parts_03.jpg",null,null,null,null,240.99]
[null,null,null,null,null,null,null,"Variation","Model=SE1011|Part=Colol|Pt=Pt|KP=Mp",null,null,null,null,null,null,null,null,null,null,null,null,null,null,null,"https://.com/i/parts/cordaSE1011_parts_01.jpg|https://.com/i/parts/cordaSE1011_parts_02.jpg|https://.com/i/parts/cordaSE1011_parts_03.jpg",null,null,null,null,240.99]
[null,null,null,null,null,null,null,"Variation","Model=SE1011|Part=Colol|Pt=Pt|KP=LP",null,null,null,null,null,null,null,null,null,null,null,null,null,null,null,"https://.com/i/parts/cordaSE1011_parts_01.jpg|https://.com/i/parts/cordaSE1011_parts_02.jpg|https://.com/i/parts/cordaSE1011_parts_03.jpg",null,null,null,null,240.99]
[null,null,null,null,null,null,null,"Variation","Model=TE2010|Part=Mad|Pt=Mt|KP=Mp",null,null,null,null,null,null,null,null,null,null,null,null,null,null,null,"https://.com/i/parts/cordaSE1011_parts_01.jpg|https://.com/i/parts/cordaSE1011_parts_02.jpg|https://.com/i/parts/cordaSE1011_parts_03.jpg",null,null,null,null,240.99]
[null,null,null,null,null,null,null,"Variation","Model=TE2010|Part=Mad|Pt=Mt|KP=LP",null,null,null,null,null,null,null,null,null,null,null,null,null,null,null,"https://.com/i/parts/cordaSE1011_parts_01.jpg|https://.com/i/parts/cordaSE1011_parts_02.jpg|https://.com/i/parts/cordaSE1011_parts_03.jpg",null,null,null,null,240.99]
[null,null,null,null,null,null,null,"Variation","Model=TE2010|Part=Mad|Pt=Pt|KP=Mp",null,null,null,null,null,null,null,null,null,null,null,null,null,null,null,"https://.com/i/parts/cordaSE1011_parts_01.jpg|https://.com/i/parts/cordaSE1011_parts_02.jpg|https://.com/i/parts/cordaSE1011_parts_03.jpg",null,null,null,null,240.99]
[null,null,null,null,null,null,null,"Variation","Model=TE2010|Part=Mad|Pt=Pt|KP=LP",null,null,null,null,null,null,null,null,null,null,null,null,null,null,null,"https://.com/i/parts/cordaSE1011_parts_01.jpg|https://.com/i/parts/cordaSE1011_parts_02.jpg|https://.com/i/parts/cordaSE1011_parts_03.jpg",null,null,null,null,240.99]
[null,null,null,null,null,null,null,"Variation","Model=TE2010|Part=Power|Pt=Mt|KP=Mp",null,null,null,null,null,null,null,null,null,null,null,null,null,null,null,"https://.com/i/parts/cordaSE1011_parts_01.jpg|https://.com/i/parts/cordaSE1011_parts_02.jpg|https://.com/i/parts/cordaSE1011_parts_03.jpg",null,null,null,null,240.99]
[null,null,null,null,null,null,null,"Variation","Model=TE2010|Part=Power|Pt=Mt|KP=LP",null,null,null,null,null,null,null,null,null,null,null,null,null,null,null,"https://.com/i/parts/cordaSE1011_parts_01.jpg|https://.com/i/parts/cordaSE1011_parts_02.jpg|https://.com/i/parts/cordaSE1011_parts_03.jpg",null,null,null,null,240.99]
[null,null,null,null,null,null,null,"Variation","Model=TE2010|Part=Power|Pt=Pt|KP=Mp",null,null,null,null,null,null,null,null,null,null,null,null,null,null,null,"https://.com/i/parts/cordaSE1011_parts_01.jpg|https://.com/i/parts/cordaSE1011_parts_02.jpg|https://.com/i/parts/cordaSE1011_parts_03.jpg",null,null,null,null,240.99]
[null,null,null,null,null,null,null,"Variation","Model=TE2010|Part=Power|Pt=Pt|KP=LP",null,null,null,null,null,null,null,null,null,null,null,null,null,null,null,"https://.com/i/parts/cordaSE1011_parts_01.jpg|https://.com/i/parts/cordaSE1011_parts_02.jpg|https://.com/i/parts/cordaSE1011_parts_03.jpg",null,null,null,null,240.99]
[null,null,null,null,null,null,null,"Variation","Model=TE2010|Part=Lad|Pt=Mt|KP=Mp",null,null,null,null,null,null,null,null,null,null,null,null,null,null,null,"https://.com/i/parts/cordaSE1011_parts_01.jpg|https://.com/i/parts/cordaSE1011_parts_02.jpg|https://.com/i/parts/cordaSE1011_parts_03.jpg",null,null,null,null,240.99]
[null,null,null,null,null,null,null,"Variation","Model=TE2010|Part=Lad|Pt=Mt|KP=LP",null,null,null,null,null,null,null,null,null,null,null,null,null,null,null,"https://.com/i/parts/cordaSE1011_parts_01.jpg|https://.com/i/parts/cordaSE1011_parts_02.jpg|https://.com/i/parts/cordaSE1011_parts_03.jpg",null,null,null,null,240.99]
[null,null,null,null,null,null,null,"Variation","Model=TE2010|Part=Lad|Pt=Pt|KP=Mp",null,null,null,null,null,null,null,null,null,null,null,null,null,null,null,"https://.com/i/parts/cordaSE1011_parts_01.jpg|https://.com/i/parts/cordaSE1011_parts_02.jpg|https://.com/i/parts/cordaSE1011_parts_03.jpg",null,null,null,null,240.99]
[null,null,null,null,null,null,null,"Variation","Model=TE2010|Part=Lad|Pt=Pt|KP=LP",null,null,null,null,null,null,null,null,null,null,null,null,null,null,null,"https://.com/i/parts/cordaSE1011_parts_01.jpg|https://.com/i/parts/cordaSE1011_parts_02.jpg|https://.com/i/parts/cordaSE1011_parts_03.jpg",null,null,null,null,240.99]
[null,null,null,null,null,null,null,"Variation","Model=TE2010|Part=Colol|Pt=Mt|KP=Mp",null,null,null,null,null,null,null,null,null,null,null,null,null,null,null,"https://.com/i/parts/cordaSE1011_parts_01.jpg|https://.com/i/parts/cordaSE1011_parts_02.jpg|https://.com/i/parts/cordaSE1011_parts_03.jpg",null,null,null,null,240.99]
[null,null,null,null,null,null,null,"Variation","Model=TE2010|Part=Colol|Pt=Mt|KP=LP",null,null,null,null,null,null,null,null,null,null,null,null,null,null,null,"https://.com/i/parts/cordaSE1011_parts_01.jpg|https://.com/i/parts/cordaSE1011_parts_02.jpg|https://.com/i/parts/cordaSE1011_parts_03.jpg",null,null,null,null,240.99]
[null,null,null,null,null,null,null,"Variation","Model=TE2010|Part=Colol|Pt=Pt|KP=Mp",null,null,null,null,null,null,null,null,null,null,null,null,null,null,null,"https://.com/i/parts/cordaSE1011_parts_01.jpg|https://.com/i/parts/cordaSE1011_parts_02.jpg|https://.com/i/parts/cordaSE1011_parts_03.jpg",null,null,null,null,240.99]
[null,null,null,null,null,null,null,"Variation","Model=TE2010|Part=Colol|Pt=Pt|KP=LP",null,null,null,null,null,null,null,null,null,null,null,null,null,null,null,"https://.com/i/parts/cordaSE1011_parts_01.jpg|https://.com/i/parts/cordaSE1011_parts_02.jpg|https://.com/i/parts/cordaSE1011_parts_03.jpg",null,null,null,null,240.99]
["save",null,null,"67-37233",null,null,"Bertonika 2001 9000 for cleaing astrartciaons set of 30",null,"Model=SE1012;TE2011|Part=Mad;Power;Lad;Colol|Pt=Mt;Pt|KP=Mp;LP","own",null,null,null,null,null,null,null,0.8,null,null,null,null,null,null,"https://.com/i/parts/cordaSE1012_parts_01.jpg|https://.com/i/parts/cordaSE1012_parts_02.jpg|https://.com/i/parts/cordaSE1012_parts_03.jpg","You get one part of your choice that you specify in your message. ","r iron is called \"drag soldering\".. Its an art to learn but once you do you can solder multiple leads in seconds.."]
[null,null,null,null,null,null,null,"Variation","Model=SE1012|Part=Mad|Pt=Mt|KP=Mp",null,null,null,null,null,null,null,null,null,null,null,null,null,null,null,"https://.com/i/parts/cordaSE1012_parts_01.jpg|https://.com/i/parts/cordaSE1012_parts_02.jpg|https://.com/i/parts/cordaSE1012_parts_03.jpg",null,null,null,null,240.99]
[null,null,null,null,null,null,null,"Variation","Model=SE1012|Part=Mad|Pt=Mt|KP=LP",null,null,null,null,null,null,null,null,null,null,null,null,null,null,null,"https://.com/i/parts/cordaSE1012_parts_01.jpg|https://.com/i/parts/cordaSE1012_parts_02.jpg|https://.com/i/parts/cordaSE1012_parts_03.jpg",null,null,null,null,240.99]
[null,null,null,null,null,null,null,"Variation","Model=SE1012|Part=Mad|Pt=Pt|KP=Mp",null,null,null,null,null,null,null,null,null,null,null,null,null,null,null,"https://.com/i/parts/cordaSE1012_parts_01.jpg|https://.com/i/parts/cordaSE1012_parts_02.jpg|https://.com/i/parts/cordaSE1012_parts_03.jpg",null,null,null,null,240.99]
[null,null,null,null,null,null,null,"Variation","Model=SE1012|Part=Mad|Pt=Pt|KP=LP",null,null,null,null,null,null,null,null,null,null,null,null,null,null,null,"https://.com/i/parts/cordaSE1012_parts_01.jpg|https://.com/i/parts/cordaSE1012_parts_02.jpg|https://.com/i/parts/cordaSE1012_parts_03.jpg",null,null,null,null,240.99]
[null,null,null,null,null,null,null,"Variation","Model=SE1012|Part=Power|Pt=Mt|KP=Mp",null,null,null,null,null,null,null,null,null,null,null,null,null,null,null,"https://.com/i/parts/cordaSE1012_parts_01.jpg|https://.com/i/parts/cordaSE1012_parts_02.jpg|https://.com/i/parts/cordaSE1012_parts_03.jpg",null,null,null,null,240.99]
[null,null,null,null,null,null,null,"Variation","Model=SE1012|Part=Power|Pt=Mt|KP=LP",null,null,null,null,null,null,null,null,null,null,null,null,null,null,null,"https://.com/i/parts/cordaSE1012_parts_01.jpg|https://.com/i/parts/cordaSE1012_parts_02.jpg|https://.com/i/parts/cordaSE1012_parts_03.jpg",null,null,null,null,240.99]
[null,null,null,null,null,null,null,"Variation","Model=SE1012|Part=Power|Pt=Pt|KP=Mp",null,null,null,null,null,null,null,null,null,null,null,null,null,null,null,"https://.com/i/parts/cordaSE1012_parts_01.jpg|https://.com/i/parts/cordaSE1012_parts_02.jpg|https://.com/i/parts/cordaSE1012_parts_03.jpg",null,null,null,null,240.99]
[null,null,null,null,null,null,null,"Variation","Model=SE1012|Part=Power|Pt=Pt|KP=LP",null,null,null,null,null,null,null,null,null,null,null,null,null,null,null,"https://.com/i/parts/cordaSE1012_parts_01.jpg|https://.com/i/parts/cordaSE1012_parts_02.jpg|https://.com/i/parts/cordaSE1012_parts_03.jpg",null,null,null,null,240.99]
[null,null,null,null,null,null,null,"Variation","Model=SE1012|Part=Lad|Pt=Mt|KP=Mp",null,null,null,null,null,null,null,null,null,null,null,null,null,null,null,"https://.com/i/parts/cordaSE1012_parts_01.jpg|https://.com/i/parts/cordaSE1012_parts_02.jpg|https://.com/i/parts/cordaSE1012_parts_03.jpg",null,null,null,null,240.99]
[null,null,null,null,null,null,null,"Variation","Model=SE1012|Part=Lad|Pt=Mt|KP=LP",null,null,null,null,null,null,null,null,null,null,null,null,null,null,null,"https://.com/i/parts/cordaSE1012_parts_01.jpg|https://.com/i/parts/cordaSE1012_parts_02.jpg|https://.com/i/parts/cordaSE1012_parts_03.jpg",null,null,null,null,240.99]
[null,null,null,null,null,null,null,"Variation","Model=SE1012|Part=Lad|Pt=Pt|KP=Mp",null,null,null,null,null,null,null,null,null,null,null,null,null,null,null,"https://.com/i/parts/cordaSE1012_parts_01.jpg|https://.com/i/parts/cordaSE1012_parts_02.jpg|https://.com/i/parts/cordaSE1012_parts_03.jpg",null,null,null,null,240.99]
[null,null,null,null,null,null,null,"Variation","Model=SE1012|Part=Lad|Pt=Pt|KP=LP",null,null,null,null,null,null,null,null,null,null,null,null,null,null,null,"https://.com/i/parts/cordaSE1012_parts_01.jpg|https://.com/i/parts/cordaSE1012_parts_02.jpg|https://.com/i/parts/cordaSE1012_parts_03.jpg",null,null,null,null,240.99]
[null,null,null,null,null,null,null,"Variation","Model=SE1012|Part=Colol|Pt=Mt|KP=Mp",null,null,null,null,null,null,null,null,null,null,null,null,null,null,null,"https://.com/i/parts/cordaSE1012_parts_01.jpg|https://.com/i/parts/cordaSE1012_parts_02.jpg|https://.com/i/parts/cordaSE1012_parts_03.jpg",null,null,null,null,240.99]
[null,null,null,null,null,null,null,"Variation","Model=SE1012|Part=Colol|Pt=Mt|KP=LP",null,null,null,null,null,null,null,null,null,null,null,null,null,null,null,"https://.com/i/parts/cordaSE1012_parts_01.jpg|https://.com/i/parts/cordaSE1012_parts_02.jpg|https://.com/i/parts/cordaSE1012_parts_03.jpg",null,null,null,null,240.99]
[null,null,null,null,null,null,null,"Variation","Model=SE1012|Part=Colol|Pt=Pt|KP=Mp",null,null,null,null,null,null,null,null,null,null,null,null,null,null,null,"https://.com/i/parts/cordaSE1012_parts_01.jpg|https://.com/i/parts/cordaSE1012_parts_02.jpg|https://.com/i/parts/cordaSE1012_parts_03.jpg",null,null,null,null,240.99]
[null,null,null,null,null,null,null,"Variation","Model=SE1012|Part=Colol|Pt=Pt|KP=LP",null,null,null,null,null,null,null,null,null,null,null,null,null,null,null,"https://.com/i/parts/cordaSE1012_parts_01.jpg|https://.com/i/parts/cordaSE1012_parts_02.jpg|https://.com/i/parts/cordaSE1012_parts_03.jpg",null,null,null,null,240.99]
[null,null,null,null,null,null,null,"Variation","Model=TE2011|Part=Mad|Pt=Mt|KP=Mp",null,null,null,null,null,null,null,null,null,null,null,null,null,null,null,"https://.com/i/parts/cordaSE1012_parts_01.jpg|https://.com/i/parts/cordaSE1012_parts_02.jpg|https://.com/i/parts/cordaSE1012_parts_03.jpg",null,null,null,null,240.99]
[null,null,null,null,null,null,null,"Variation","Model=TE2011|Part=Mad|Pt=Mt|KP=LP",null,null,null,null,null,null,null,null,null,null,null,null,null,null,null,"https://.com/i/parts/cordaSE1012_parts_01.jpg|https://.com/i/parts/cordaSE1012_parts_02.jpg|https://.com/i/parts/cordaSE1012_parts_03.jpg",null,null,null,null,240.99]
[null,null,null,null,null,null,null,"Variation","Model=TE2011|Part=Mad|Pt=Pt|KP=Mp",null,null,null,null,null,null,null,null,null,null,null,null,null,null,null,"https://.com/i/parts/cordaSE1012_parts_01.jpg|https://.com/i/parts/cordaSE1012_parts_02.jpg|https://.com/i/parts/cordaSE1012_parts_03.jpg",null,null,null,null,240.99]
[null,null,null,null,null,null,null,"Variation","Model=TE2011|Part=Mad|Pt=Pt|KP=LP",null,null,null,null,null,null,null,null,null,null,null,null,null,null,null,"https://.com/i/parts/cordaSE1012_parts_01.jpg|https://.com/i/parts/cordaSE1012_parts_02.jpg|https://.com/i/parts/cordaSE1012_parts_03.jpg",null,null,null,null,240.99]
[null,null,null,null,null,null,null,"Variation","Model=TE2011|Part=Power|Pt=Mt|KP=Mp",null,null,null,null,null,null,null,null,null,null,null,null,null,null,null,"https://.com/i/parts/cordaSE1012_parts_01.jpg|https://.com/i/parts/cordaSE1012_parts_02.jpg|https://.com/i/parts/cordaSE1012_parts_03.jpg",null,null,null,null,240.99]
[null,null,null,null,null,null,null,"Variation","Model=TE2011|Part=Power|Pt=Mt|KP=LP",null,null,null,null,null,null,null,null,null,null,null,null,null,null,null,"https://.com/i/parts/cordaSE1012_parts_01.jpg|https://.com/i/parts/cordaSE1012_parts_02.jpg|https://.com/i/parts/cordaSE1012_parts_03.jpg",null,null,null,null,240.99]
[null,null,null,null,null,null,null,"Variation","Model=TE2011|Part=Power|Pt=Pt|KP=Mp",null,null,null,null,null,null,null,null,null,null,null,null,null,null,null,"https://.com/i/parts/cordaSE1012_parts_01.jpg|https://.com/i/parts/cordaSE1012_parts_02.jpg|https://.com/i/parts/cordaSE1012_parts_03.jpg",null,null,null,null,240.99]
[null,null,null,null,null,null,null,"Variation","Model=TE2011|Part=Power|Pt=Pt|KP=LP",null,null,null,null,null,null,null,null,null,null,null,null,null,null,null,"https://.com/i/parts/cordaSE1012_parts_01.jpg|https://.com/i/parts/cordaSE1012_parts_02.jpg|https://.com/i/parts/cordaSE1012_parts_03.jpg",null,null,null,null,240.99]
[null,null,null,null,null,null,null,"Variation","Model=TE2011|Part=Lad|Pt=Mt|KP=Mp",null,null,null,null,null,null,null,null,null,null,null,null,null,null,null,"https://.com/i/parts/cordaSE1012_parts_01.jpg|https://.com/i/parts/cordaSE1012_parts_02.jpg|https://.com/i/parts/cordaSE1012_parts_03.jpg",null,null,null,null,240.99]
[null,null,null,null,null,null,null,"Variation","Model=TE2011|Part=Lad|Pt=Mt|KP=LP",null,null,null,null,null,null,null,null,null,null,null,null,null,null,null,"https://.com/i/parts/cordaSE1012_parts_01.jpg|https://.com/i/parts/cordaSE1012_parts_02.jpg|https://.com/i/parts/cordaSE1012_parts_03.jpg",null,null,null,null,240.99]
[null,null,null,null,null,null,null,"Variation","Model=TE2011|Part=Lad|Pt=Pt|KP=Mp",null,null,null,null,null,null,null,null,null,null,null,null,null,null,null,"https://.com/i/parts/cordaSE1012_parts_01.jpg|https://.com/i/parts/cordaSE1012_parts_02.jpg|https://.com/i/parts/cordaSE1012_parts_03.jpg",null,null,null,null,240.99]
[null,null,null,null,null,null,null,"Variation","Model=TE2011|Part=Lad|Pt=Pt|KP=LP",null,null,null,null,null,null,null,null,null,null,null,null,null,null,null,"https://.com/i/parts/cordaSE1012_parts_01.jpg|https://.com/i/parts/cordaSE1012_parts_02.jpg|https://.com/i/parts/cordaSE1012_parts_03.jpg",null,null,null,null,240.99]
[null,null,null,null,null,null,null,"Variation","Model=TE2011|Part=Colol|Pt=Mt|KP=Mp",null,null,null,null,null,null,null,null,null,null,null,null,null,null,null,"https://.com/i/parts/cordaSE1012_parts_01.jpg|https://.com/i/parts/cordaSE1012_parts_02.jpg|https://.com/i/parts/cordaSE1012_parts_03.jpg",null,null,null,null,240.99]
[null,null,null,null,null,null,null,"Variation","Model=TE2011|Part=Colol|Pt=Mt|KP=LP",null,null,null,null,null,null,null,null,null,null,null,null,null,null,null,"https://.com/i/parts/cordaSE1012_parts_01.jpg|https://.com/i/parts/cordaSE1012_parts_02.jpg|https://.com/i/parts/cordaSE1012_parts_03.jpg",null,null,null,null,240.99]
[null,null,null,null,null,null,null,"Variation","Model=TE2011|Part=Colol|Pt=Pt|KP=Mp",null,null,null,null,null,null,null,null,null,null,null,null,null,null,null,"https://.com/i/parts/cordaSE1012_parts_01.jpg|https://.com/i/parts/cordaSE1012_parts_02.jpg|https://.com/i/parts/cordaSE1012_parts_03.jpg",null,null,null,null,240.99]
[null,null,null,null,null,null,null,"Variation","Model=TE2011|Part=Colol|Pt=Pt|KP=LP",null,null,null,null,null,null,null,null,null,null,null,null,null,null,null,"https://.com/i/parts/cordaSE1012_parts_01.jpg|https://.com/i/parts/cordaSE1012_parts_02.jpg|https://.com/i/parts/cordaSE1012_parts_03.jpg",null,null,null,null,240.99]
["save",null,null,"67-44290",null,null,"Bertonika 2001 9000 for cleaing astrartciaons set of 31",null,"Model=SE1013;TE2012|Part=Mad;Power;Lad;Colol|Pt=Mt;Pt|KP=Mp;LP","own",null,null,null,null,null,null,null,0.8,null,null,null,null,null,null,"https://.com/i/parts/cordaSE1013_parts_01.jpg|https://.com/i/parts/cordaSE1013_parts_02.jpg|https://.com/i/parts/cordaSE1013_parts_03.jpg","You get one part of your choice that you specify in your message. ","r iron is called \"drag soldering\".. Its an art to learn but once you do you can solder multiple leads in seconds.."]
[null,null,null,null,null,null,null,"Variation","Model=SE1013|Part=Mad|Pt=Mt|KP=Mp",null,null,null,null,null,null,null,null,null,null,null,null,null,null,null,"https://.com/i/parts/cordaSE1013_parts_01.jpg|https://.com/i/parts/cordaSE1013_parts_02.jpg|https://.com/i/parts/cordaSE1013_parts_03.jpg",null,null,null,null,240.99]
[null,null,null,null,null,null,null,"Variation","Model=SE1013|Part=Mad|Pt=Mt|KP=LP",null,null,null,null,null,null,null,null,null,null,null,null,null,null,null,"https://.com/i/parts/cordaSE1013_parts_01.jpg|https://.com/i/parts/cordaSE1013_parts_02.jpg|https://.com/i/parts/cordaSE1013_parts_03.jpg",null,null,null,null,240.99]
[null,null,null,null,null,null,null,"Variation","Model=SE1013|Part=Mad|Pt=Pt|KP=Mp",null,null,null,null,null,null,null,null,null,null,null,null,null,null,null,"https://.com/i/parts/cordaSE1013_parts_01.jpg|https://.com/i/parts/cordaSE1013_parts_02.jpg|https://.com/i/parts/cordaSE1013_parts_03.jpg",null,null,null,null,240.99]
[null,null,null,null,null,null,null,"Variation","Model=SE1013|Part=Mad|Pt=Pt|KP=LP",null,null,null,null,null,null,null,null,null,null,null,null,null,null,null,"https://.com/i/parts/cordaSE1013_parts_01.jpg|https://.com/i/parts/cordaSE1013_parts_02.jpg|https://.com/i/parts/cordaSE1013_parts_03.jpg",null,null,null,null,240.99]
[null,null,null,null,null,null,null,"Variation","Model=SE1013|Part=Power|Pt=Mt|KP=Mp",null,null,null,null,null,null,null,null,null,null,null,null,null,null,null,"https://.com/i/parts/cordaSE1013_parts_01.jpg|https://.com/i/parts/cordaSE1013_parts_02.jpg|https://.com/i/parts/cordaSE1013_parts_03.jpg",null,null,null,null,240.99]
[null,null,null,null,null,null,null,"Variation","Model=SE1013|Part=Power|Pt=Mt|KP=LP",null,null,null,null,null,null,null,null,null,null,null,null,null,null,null,"https://.com/i/parts/cordaSE1013_parts_01.jpg|https://.com/i/parts/cordaSE1013_parts_02.jpg|https://.com/i/parts/cordaSE1013_parts_03.jpg",null,null,null,null,240.99]
[null,null,null,null,null,null,null,"Variation","Model=SE1013|Part=Power|Pt=Pt|KP=Mp",null,null,null,null,null,null,null,null,null,null,null,null,null,null,null,"https://.com/i/parts/cordaSE1013_parts_01.jpg|https://.com/i/parts/cordaSE1013_parts_02.jpg|https://.com/i/parts/cordaSE1013_parts_03.jpg",null,null,null,null,240.99]
[null,null,null,null,null,null,null,"Variation","Model=SE1013|Part=Power|Pt=Pt|KP=LP",null,null,null,null,null,null,null,null,null,null,null,null,null,null,null,"https://.com/i/parts/cordaSE1013_parts_01.jpg|https://.com/i/parts/cordaSE1013_parts_02.jpg|https://.com/i/parts/cordaSE1013_parts_03.jpg",null,null,null,null,240.99]
[null,null,null,null,null,null,null,"Variation","Model=SE1013|Part=Lad|Pt=Mt|KP=Mp",null,null,null,null,null,null,null,null,null,null,null,null,null,null,null,"https://.com/i/parts/cordaSE1013_parts_01.jpg|https://.com/i/parts/cordaSE1013_parts_02.jpg|https://.com/i/parts/cordaSE1013_parts_03.jpg",null,null,null,null,240.99]
[null,null,null,null,null,null,null,"Variation","Model=SE1013|Part=Lad|Pt=Mt|KP=LP",null,null,null,null,null,null,null,null,null,null,null,null,null,null,null,"https://.com/i/parts/cordaSE1013_parts_01.jpg|https://.com/i/parts/cordaSE1013_parts_02.jpg|https://.com/i/parts/cordaSE1013_parts_03.jpg",null,null,null,null,240.99]
[null,null,null,null,null,null,null,"Variation","Model=SE1013|Part=Lad|Pt=Pt|KP=Mp",null,null,null,null,null,null,null,null,null,null,null,null,null,null,null,"https://.com/i/parts/cordaSE1013_parts_01.jpg|https://.com/i/parts/cordaSE1013_parts_02.jpg|https://.com/i/parts/cordaSE1013_parts_03.jpg",null,null,null,null,240.99]
[null,null,null,null,null,null,null,"Variation","Model=SE1013|Part=Lad|Pt=Pt|KP=LP",null,null,null,null,null,null,null,null,null,null,null,null,null,null,null,"https://.com/i/parts/cordaSE1013_parts_01.jpg|https://.com/i/parts/cordaSE1013_parts_02.jpg|https://.com/i/parts/cordaSE1013_parts_03.jpg",null,null,null,null,240.99]
[null,null,null,null,null,null,null,"Variation","Model=SE1013|Part=Colol|Pt=Mt|KP=Mp",null,null,null,null,null,null,null,null,null,null,null,null,null,null,null,"https://.com/i/parts/cordaSE1013_parts_01.jpg|https://.com/i/parts/cordaSE1013_parts_02.jpg|https://.com/i/parts/cordaSE1013_parts_03.jpg",null,null,null,null,240.99]
[null,null,null,null,null,null,null,"Variation","Model=SE1013|Part=Colol|Pt=Mt|KP=LP",null,null,null,null,null,null,null,null,null,null,null,null,null,null,null,"https://.com/i/parts/cordaSE1013_parts_01.jpg|https://.com/i/parts/cordaSE1013_parts_02.jpg|https://.com/i/parts/cordaSE1013_parts_03.jpg",null,null,null,null,240.99]
[null,null,null,null,null,null,null,"Variation","Model=SE1013|Part=Colol|Pt=Pt|KP=Mp",null,null,null,null,null,null,null,null,null,null,null,null,null,null,null,"https://.com/i/parts/cordaSE1013_parts_01.jpg|https://.com/i/parts/cordaSE1013_parts_02.jpg|https://.com/i/parts/cordaSE1013_parts_03.jpg",null,null,null,null,240.99]
[null,null,null,null,null,null,null,"Variation","Model=SE1013|Part=Colol|Pt=Pt|KP=LP",null,null,null,null,null,null,null,null,null,null,null,null,null,null,null,"https://.com/i/parts/cordaSE1013_parts_01.jpg|https://.com/i/parts/cordaSE1013_parts_02.jpg|https://.com/i/parts/cordaSE1013_parts_03.jpg",null,null,null,null,240.99]
[null,null,null,null,null,null,null,"Variation","Model=TE2012|Part=Mad|Pt=Mt|KP=Mp",null,null,null,null,null,null,null,null,null,null,null,null,null,null,null,"https://.com/i/parts/cordaSE1013_parts_01.jpg|https://.com/i/parts/cordaSE1013_parts_02.jpg|https://.com/i/parts/cordaSE1013_parts_03.jpg",null,null,null,null,240.99]
[null,null,null,null,null,null,null,"Variation","Model=TE2012|Part=Mad|Pt=Mt|KP=LP",null,null,null,null,null,null,null,null,null,null,null,null,null,null,null,"https://.com/i/parts/cordaSE1013_parts_01.jpg|https://.com/i/parts/cordaSE1013_parts_02.jpg|https://.com/i/parts/cordaSE1013_parts_03.jpg",null,null,null,null,240.99]
[null,null,null,null,null,null,null,"Variation","Model=TE2012|Part=Mad|Pt=Pt|KP=Mp",null,null,null,null,null,null,null,null,null,null,null,null,null,null,null,"https://.com/i/parts/cordaSE1013_parts_01.jpg|https://.com/i/parts/cordaSE1013_parts_02.jpg|https://.com/i/parts/cordaSE1013_parts_03.jpg",null,null,null,null,240.99]
[null,null,null,null,null,null,null,"Variation","Model=TE2012|Part=Mad|Pt=Pt|KP=LP",null,null,null,null,null,null,null,null,null,null,null,null,null,null,null,"https://.com/i/parts/cordaSE1013_parts_01.jpg|https://.com/i/parts/cordaSE1013_parts_02.jpg|https://.com/i/parts/cordaSE1013_parts_03.jpg",null,null,null,null,240.99]
[null,null,null,null,null,null,null,"Variation","Model=TE2012|Part=Power|Pt=Mt|KP=Mp",null,null,null,null,null,null,null,null,null,null,null,null,null,null,null,"https://.com/i/parts/cordaSE1013_parts_01.jpg|https://.com/i/parts/cordaSE1013_parts_02.jpg|https://.com/i/parts/cordaSE1013_parts_03.jpg",null,null,null,null,240.99]
[null,null,null,null,null,null,null,"Variation","Model=TE2012|Part=Power|Pt=Mt|KP=LP",null,null,null,null,null,null,null,null,null,null,null,null,null,null,null,"https://.com/i/parts/cordaSE1013_parts_01.jpg|https://.com/i/parts/cordaSE1013_parts_02.jpg|https://.com/i/parts/cordaSE1013_parts_03.jpg",null,null,null,null,240.99]
[null,null,null,null,null,null,null,"Variation","Model=TE2012|Part=Power|Pt=Pt|KP=Mp",null,null,null,null,null,null,null,null,null,null,null,null,null,null,null,"https://.com/i/parts/cordaSE1013_parts_01.jpg|https://.com/i/parts/cordaSE1013_parts_02.jpg|https://.com/i/parts/cordaSE1013_parts_03.jpg",null,null,null,null,240.99]
[null,null,null,null,null,null,null,"Variation","Model=TE2012|Part=Power|Pt=Pt|KP=LP",null,null,null,null,null,null,null,null,null,null,null,null,null,null,null,"https://.com/i/parts/cordaSE1013_parts_01.jpg|https://.com/i/parts/cordaSE1013_parts_02.jpg|https://.com/i/parts/cordaSE1013_parts_03.jpg",null,null,null,null,240.99]
[null,null,null,null,null,null,null,"Variation","Model=TE2012|Part=Lad|Pt=Mt|KP=Mp",null,null,null,null,null,null,null,null,null,null,null,null,null,null,null,"https://.com/i/parts/cordaSE1013_parts_01.jpg|https://.com/i/parts/cordaSE1013_parts_02.jpg|https://.com/i/parts/cordaSE1013_parts_03.jpg",null,null,null,null,240.99]
[null,null,null,null,null,null,null,"Variation","Model=TE2012|Part=Lad|Pt=Mt|KP=LP",null,null,null,null,null,null,null,null,null,null,null,null,null,null,null,"https://.com/i/parts/cordaSE1013_parts_01.jpg|https://.com/i/parts/cordaSE1013_parts_02.jpg|https://.com/i/parts/cordaSE1013_parts_03.jpg",null,null,null,null,240.99]
[null,null,null,null,null,null,null,"Variation","Model=TE2012|Part=Lad|Pt=Pt|KP=Mp",null,null,null,null,null,null,null,null,null,null,null,null,null,null,null,"https://.com/i/parts/cordaSE1013_parts_01.jpg|https://.com/i/parts/cordaSE1013_parts_02.jpg|https://.com/i/parts/cordaSE1013_parts_03.jpg",null,null,null,null,240.99]
[null,null,null,null,null,null,null,"Variation","Model=TE2012|Part=Lad|Pt=Pt|KP=LP",null,null,null,null,null,null,null,null,null,null,null,null,null,null,null,"https://.com/i/parts/cordaSE1013_parts_01.jpg|https://.com/i/parts/cordaSE1013_parts_02.jpg|https://.com/i/parts/cordaSE1013_parts_03.jpg",null,null,null,null,240.99]
[null,null,null,null,null,null,null,"Variation","Model=TE2012|Part=Colol|Pt=Mt|KP=Mp",null,null,null,null,null,null,null,null,null,null,null,null,null,null,null,"https://.com/i/parts/cordaSE1013_parts_01.jpg|https://.com/i/parts/cordaSE1013_parts_02.jpg|https://.com/i/parts/cordaSE1013_parts_03.jpg",null,null,null,null,240.99]
[null,null,null,null,null,null,null,"Variation","Model=TE2012|Part=Colol|Pt=Mt|KP=LP",null,null,null,null,null,null,null,null,null,null,null,null,null,null,null,"https://.com/i/parts/cordaSE1013_parts_01.jpg|https://.com/i/parts/cordaSE1013_parts_02.jpg|https://.com/i/parts/cordaSE1013_parts_03.jpg",null,null,null,null,240.99]
[null,null,null,null,null,null,null,"Variation","Model=TE2012|Part=Colol|Pt=Pt|KP=Mp",null,null,null,null,null,null,null,null,null,null,null,null,null,null,null,"https://.com/i/parts/cordaSE1013_parts_01.jpg|https://.com/i/parts/cordaSE1013_parts_02.jpg|https://.com/i/parts/cordaSE1013_parts_03.jpg",null,null,null,null,240.99]
[null,null,null,null,null,null,null,"Variation","Model=TE2012|Part=Colol|Pt=Pt|KP=LP",null,null,null,null,null,null,null,null,null,null,null,null,null,null,null,"https://.com/i/parts/cordaSE1013_parts_01.jpg|https://.com/i/parts/cordaSE1013_parts_02.jpg|https://.com/i/parts/cordaSE1013_parts_03.jpg",null,null,null,null,240.99]
["save",null,null,"67-51641",null,null,"Bertonika 2001 9000 for cleaing astrartciaons set of 32",null,"Model=SE1014;TE2013|Part=Mad;Power;Lad;Colol|Pt=Mt;Pt|KP=Mp;LP","own",null,null,null,null,null,null,null,0.8,null,null,null,null,null,null,"https://.com/i/parts/cordaSE1014_parts_01.jpg|https://.com/i/parts/cordaSE1014_parts_02.jpg|https://.com/i/parts/cordaSE1014_parts_03.jpg","You get one part of your choice that you specify in your message. ","r iron is called \"drag soldering\".. Its an art to learn but once you do you can solder multiple leads in seconds.."]
[null,null,null,null,null,null,null,"Variation","Model=SE1014|Part=Mad|Pt=Mt|KP=Mp",null,null,null,null,null,null,null,null,null,null,null,null,null,null,null,"https://.com/i/parts/cordaSE1014_parts_01.jpg|https://.com/i/parts/cordaSE1014_parts_02.jpg|https://.com/i/parts/cordaSE1014_parts_03.jpg",null,null,null,null,240.99]
[null,null,null,null,null,null,null,"Variation","Model=SE1014|Part=Mad|Pt=Mt|KP=LP",null,null,null,null,null,null,null,null,null,null,null,null,null,null,null,"https://.com/i/parts/cordaSE1014_parts_01.jpg|https://.com/i/parts/cordaSE1014_parts_02.jpg|https://.com/i/parts/cordaSE1014_parts_03.jpg",null,null,null,null,240.99]
[null,null,null,null,null,null,null,"Variation","Model=SE1014|Part=Mad|Pt=Pt|KP=Mp",null,null,null,null,null,null,null,null,null,null,null,null,null,null,null,"https://.com/i/parts/cordaSE1014_parts_01.jpg|https://.com/i/parts/cordaSE1014_parts_02.jpg|https://.com/i/parts/cordaSE1014_parts_03.jpg",null,null,null,null,240.99]
[null,null,null,null,null,null,null,"Variation","Model=SE1014|Part=Mad|Pt=Pt|KP=LP",null,null,null,null,null,null,null,null,null,null,null,null,null,null,null,"https://.com/i/parts/cordaSE1014_parts_01.jpg|https://.com/i/parts/cordaSE1014_parts_02.jpg|https://.com/i/parts/cordaSE1014_parts_03.jpg",null,null,null,null,240.99]
[null,null,null,null,null,null,null,"Variation","Model=SE1014|Part=Power|Pt=Mt|KP=Mp",null,null,null,null,null,null,null,null,null,null,null,null,null,null,null,"https://.com/i/parts/cordaSE1014_parts_01.jpg|https://.com/i/parts/cordaSE1014_parts_02.jpg|https://.com/i/parts/cordaSE1014_parts_03.jpg",null,null,null,null,240.99]
[null,null,null,null,null,null,null,"Variation","Model=SE1014|Part=Power|Pt=Mt|KP=LP",null,null,null,null,null,null,null,null,null,null,null,null,null,null,null,"https://.com/i/parts/cordaSE1014_parts_01.jpg|https://.com/i/parts/cordaSE1014_parts_02.jpg|https://.com/i/parts/cordaSE1014_parts_03.jpg",null,null,null,null,240.99]
[null,null,null,null,null,null,null,"Variation","Model=SE1014|Part=Power|Pt=Pt|KP=Mp",null,null,null,null,null,null,null,null,null,null,null,null,null,null,null,"https://.com/i/parts/cordaSE1014_parts_01.jpg|https://.com/i/parts/cordaSE1014_parts_02.jpg|https://.com/i/parts/cordaSE1014_parts_03.jpg",null,null,null,null,240.99]
[null,null,null,null,null,null,null,"Variation","Model=SE1014|Part=Power|Pt=Pt|KP=LP",null,null,null,null,null,null,null,null,null,null,null,null,null,null,null,"https://.com/i/parts/cordaSE1014_parts_01.jpg|https://.com/i/parts/cordaSE1014_parts_02.jpg|https://.com/i/parts/cordaSE1014_parts_03.jpg",null,null,null,null,240.99]
[null,null,null,null,null,null,null,"Variation","Model=SE1014|Part=Lad|Pt=Mt|KP=Mp",null,null,null,null,null,null,null,null,null,null,null,null,null,null,null,"https://.com/i/parts/cordaSE1014_parts_01.jpg|https://.com/i/parts/cordaSE1014_parts_02.jpg|https://.com/i/parts/cordaSE1014_parts_03.jpg",null,null,null,null,240.99]
[null,null,null,null,null,null,null,"Variation","Model=SE1014|Part=Lad|Pt=Mt|KP=LP",null,null,null,null,null,null,null,null,null,null,null,null,null,null,null,"https://.com/i/parts/cordaSE1014_parts_01.jpg|https://.com/i/parts/cordaSE1014_parts_02.jpg|https://.com/i/parts/cordaSE1014_parts_03.jpg",null,null,null,null,240.99]
[null,null,null,null,null,null,null,"Variation","Model=SE1014|Part=Lad|Pt=Pt|KP=Mp",null,null,null,null,null,null,null,null,null,null,null,null,null,null,null,"https://.com/i/parts/cordaSE1014_parts_01.jpg|https://.com/i/parts/cordaSE1014_parts_02.jpg|https://.com/i/parts/cordaSE1014_parts_03.jpg",null,null,null,null,240.99]
[null,null,null,null,null,null,null,"Variation","Model=SE1014|Part=Lad|Pt=Pt|KP=LP",null,null,null,null,null,null,null,null,null,null,null,null,null,null,null,"https://.com/i/parts/cordaSE1014_parts_01.jpg|https://.com/i/parts/cordaSE1014_parts_02.jpg|https://.com/i/parts/cordaSE1014_parts_03.jpg",null,null,null,null,240.99]
[null,null,null,null,null,null,null,"Variation","Model=SE1014|Part=Colol|Pt=Mt|KP=Mp",null,null,null,null,null,null,null,null,null,null,null,null,null,null,null,"https://.com/i/parts/cordaSE1014_parts_01.jpg|https://.com/i/parts/cordaSE1014_parts_02.jpg|https://.com/i/parts/cordaSE1014_parts_03.jpg",null,null,null,null,240.99]
[null,null,null,null,null,null,null,"Variation","Model=SE1014|Part=Colol|Pt=Mt|KP=LP",null,null,null,null,null,null,null,null,null,null,null,null,null,null,null,"https://.com/i/parts/cordaSE1014_parts_01.jpg|https://.com/i/parts/cordaSE1014_parts_02.jpg|https://.com/i/parts/cordaSE1014_parts_03.jpg",null,null,null,null,240.99]
[null,null,null,null,null,null,null,"Variation","Model=SE1014|Part=Colol|Pt=Pt|KP=Mp",null,null,null,null,null,null,null,null,null,null,null,null,null,null,null,"https://.com/i/parts/cordaSE1014_parts_01.jpg|https://.com/i/parts/cordaSE1014_parts_02.jpg|https://.com/i/parts/cordaSE1014_parts_03.jpg",null,null,null,null,240.99]
[null,null,null,null,null,null,null,"Variation","Model=SE1014|Part=Colol|Pt=Pt|KP=LP",null,null,null,null,null,null,null,null,null,null,null,null,null,null,null,"https://.com/i/parts/cordaSE1014_parts_01.jpg|https://.com/i/parts/cordaSE1014_parts_02.jpg|https://.com/i/parts/cordaSE1014_parts_03.jpg",null,null,null,null,240.99]
[null,null,null,null,null,null,null,"Variation","Model=TE2013|Part=Mad|Pt=Mt|KP=Mp",null,null,null,null,null,null,null,null,null,null,null,null,null,null,null,"https://.com/i/parts/cordaSE1014_parts_01.jpg|https://.com/i/parts/cordaSE1014_parts_02.jpg|https://.com/i/parts/cordaSE1014_parts_03.jpg",null,null,null,null,240.99]
[null,null,null,null,null,null,null,"Variation","Model=TE2013|Part=Mad|Pt=Mt|KP=LP",null,null,null,null,null,null,null,null,null,null,null,null,null,null,null,"https://.com/i/parts/cordaSE1014_parts_01.jpg|https://.com/i/parts/cordaSE1014_parts_02.jpg|https://.com/i/parts/cordaSE1014_parts_03.jpg",null,null,null,null,240.99]
[null,null,null,null,null,null,null,"Variation","Model=TE2013|Part=Mad|Pt=Pt|KP=Mp",null,null,null,null,null,null,null,null,null,null,null,null,null,null,null,"https://.com/i/parts/cordaSE1014_parts_01.jpg|https://.com/i/parts/cordaSE1014_parts_02.jpg|https://.com/i/parts/cordaSE1014_parts_03.jpg",null,null,null,null,240.99]
[null,null,null,null,null,null,null,"Variation","Model=TE2013|Part=Mad|Pt=Pt|KP=LP",null,null,null,null,null,null,null,null,null,null,null,null,null,null,null,"https://.com/i/parts/cordaSE1014_parts_01.jpg|https://.com/i/parts/cordaSE1014_parts_02.jpg|https://.com/i/parts/cordaSE1014_parts_03.jpg",null,null,null,null,240.99]
[null,null,null,null,null,null,null,"Variation","Model=TE2013|Part=Power|Pt=Mt|KP=Mp",null,null,null,null,null,null,null,null,null,null,null,null,null,null,null,"https://.com/i/parts/cordaSE1014_parts_01.jpg|https://.com/i/parts/cordaSE1014_parts_02.jpg|https://.com/i/parts/cordaSE1014_parts_03.jpg",null,null,null,null,240.99]
[null,null,null,null,null,null,null,"Variation","Model=TE2013|Part=Power|Pt=Mt|KP=LP",null,null,null,null,null,null,null,null,null,null,null,null,null,null,null,"https://.com/i/parts/cordaSE1014_parts_01.jpg|https://.com/i/parts/cordaSE1014_parts_02.jpg|https://.com/i/parts/cordaSE1014_parts_03.jpg",null,null,null,null,240.99]
[null,null,null,null,null,null,null,"Variation","Model=TE2013|Part=Power|Pt=Pt|KP=Mp",null,null,null,null,null,null,null,null,null,null,null,null,null,null,null,"https://.com/i/parts/cordaSE1014_parts_01.jpg|https://.com/i/parts/cordaSE1014_parts_02.jpg|https://.com/i/parts/cordaSE1014_parts_03.jpg",null,null,null,null,240.99]
[null,null,null,null,null,null,null,"Variation","Model=TE2013|Part=Power|Pt=Pt|KP=LP",null,null,null,null,null,null,null,null,null,null,null,null,null,null,null,"https://.com/i/parts/cordaSE1014_parts_01.jpg|https://.com/i/parts/cordaSE1014_parts_02.jpg|https://.com/i/parts/cordaSE1014_parts_03.jpg",null,null,null,null,240.99]
[null,null,null,null,null,null,null,"Variation","Model=TE2013|Part=Lad|Pt=Mt|KP=Mp",null,null,null,null,null,null,null,null,null,null,null,null,null,null,null,"https://.com/i/parts/cordaSE1014_parts_01.jpg|https://.com/i/parts/cordaSE1014_parts_02.jpg|https://.com/i/parts/cordaSE1014_parts_03.jpg",null,null,null,null,240.99]
[null,null,null,null,null,null,null,"Variation","Model=TE2013|Part=Lad|Pt=Mt|KP=LP",null,null,null,null,null,null,null,null,null,null,null,null,null,null,null,"https://.com/i/parts/cordaSE1014_parts_01.jpg|https://.com/i/parts/cordaSE1014_parts_02.jpg|https://.com/i/parts/cordaSE1014_parts_03.jpg",null,null,null,null,240.99]
[null,null,null,null,null,null,null,"Variation","Model=TE2013|Part=Lad|Pt=Pt|KP=Mp",null,null,null,null,null,null,null,null,null,null,null,null,null,null,null,"https://.com/i/parts/cordaSE1014_parts_01.jpg|https://.com/i/parts/cordaSE1014_parts_02.jpg|https://.com/i/parts/cordaSE1014_parts_03.jpg",null,null,null,null,240.99]
[null,null,null,null,null,null,null,"Variation","Model=TE2013|Part=Lad|Pt=Pt|KP=LP",null,null,null,null,null,null,null,null,null,null,null,null,null,null,null,"https://.com/i/parts/cordaSE1014_parts_01.jpg|https://.com/i/parts/cordaSE1014_parts_02.jpg|https://.com/i/parts/cordaSE1014_parts_03.jpg",null,null,null,null,240.99]
[null,null,null,null,null,null,null,"Variation","Model=TE2013|Part=Colol|Pt=Mt|KP=Mp",null,null,null,null,null,null,null,null,null,null,null,null,null,null,null,"https://.com/i/parts/cordaSE1014_parts_01.jpg|https://.com/i/parts/cordaSE1014_parts_02.jpg|https://.com/i/parts/cordaSE1014_parts_03.jpg",null,null,null,null,240.99]
[null,null,null,null,null,null,null,"Variation","Model=TE2013|Part=Colol|Pt=Mt|KP=LP",null,null,null,null,null,null,null,null,null,null,null,null,null,null,null,"https://.com/i/parts/cordaSE1014_parts_01.jpg|https://.com/i/parts/cordaSE1014_parts_02.jpg|https://.com/i/parts/cordaSE1014_parts_03.jpg",null,null,null,null,240.99]
[null,null,null,null,null,null,null,"Variation","Model=TE2013|Part=Colol|Pt=Pt|KP=Mp",null,null,null,null,null,null,null,null,null,null,null,null,null,null,null,"https://.com/i/parts/cordaSE1014_parts_01.jpg|https://.com/i/parts/cordaSE1014_parts_02.jpg|https://.com/i/parts/cordaSE1014_parts_03.jpg",null,null,null,null,240.99]
[null,null,null,null,null,null,null,"Variation","Model=TE2013|Part=Colol|Pt=Pt|KP=LP",null,null,null,null,null,null,null,null,null,null,null,null,null,null,null,"https://.com/i/parts/cordaSE1014_parts_01.jpg|https://.com/i/parts/cordaSE1014_parts_02.jpg|https://.com/i/parts/cordaSE1014_parts_03.jpg",null,null,null,null,240.99]
["save",null,null,"67-59292",null,null,"Bertonika 2001 9000 for cleaing astrartciaons set of 33",null,"Model=SE1015;TE2014|Part=Mad;Power;Lad;Colol|Pt=Mt;Pt|KP=Mp;LP","own",null,null,null,null,null,null,null,0.8,null,null,null,null,null,null,"https://.com/i/parts/cordaSE1015_parts_01.jpg|https://.com/i/parts/cordaSE1015_parts_02.jpg|https://.com/i/parts/cordaSE1015_parts_03.jpg","You get one part of your choice that you specify in your message. ","r iron is called \"drag soldering\".. Its an art to learn but once you do you can solder multiple leads in seconds.."]
[null,null,null,null,null,null,null,"Variation","Model=SE1015|Part=Mad|Pt=Mt|KP=Mp",null,null,null,null,null,null,null,null,null,null,null,null,null,null,null,"https://.com/i/parts/cordaSE1015_parts_01.jpg|https://.com/i/parts/cordaSE1015_parts_02.jpg|https://.com/i/parts/cordaSE1015_parts_03.jpg",null,null,null,null,240.99]
[null,null,null,null,null,null,null,"Variation","Model=SE1015|Part=Mad|Pt=Mt|KP=LP",null,null,null,null,null,null,null,null,null,null,null,null,null,null,null,"https://.com/i/parts/cordaSE1015_parts_01.jpg|https://.com/i/parts/cordaSE1015_parts_02.jpg|https://.com/i/parts/cordaSE1015_parts_03.jpg",null,null,null,null,240.99]
[null,null,null,null,null,null,null,"Variation","Model=SE1015|Part=Mad|Pt=Pt|KP=Mp",null,null,null,null,null,null,null,null,null,null,null,null,null,null,null,"https://.com/i/parts/cordaSE1015_parts_01.jpg|https://.com/i/parts/cordaSE1015_parts_02.jpg|https://.com/i/parts/cordaSE1015_parts_03.jpg",null,null,null,null,240.99]
[null,null,null,null,null,null,null,"Variation","Model=SE1015|Part=Mad|Pt=Pt|KP=LP",null,null,null,null,null,null,null,null,null,null,null,null,null,null,null,"https://.com/i/parts/cordaSE1015_parts_01.jpg|https://.com/i/parts/cordaSE1015_parts_02.jpg|https://.com/i/parts/cordaSE1015_parts_03.jpg",null,null,null,null,240.99]
[null,null,null,null,null,null,null,"Variation","Model=SE1015|Part=Power|Pt=Mt|KP=Mp",null,null,null,null,null,null,null,null,null,null,null,null,null,null,null,"https://.com/i/parts/cordaSE1015_parts_01.jpg|https://.com/i/parts/cordaSE1015_parts_02.jpg|https://.com/i/parts/cordaSE1015_parts_03.jpg",null,null,null,null,240.99]
[null,null,null,null,null,null,null,"Variation","Model=SE1015|Part=Power|Pt=Mt|KP=LP",null,null,null,null,null,null,null,null,null,null,null,null,null,null,null,"https://.com/i/parts/cordaSE1015_parts_01.jpg|https://.com/i/parts/cordaSE1015_parts_02.jpg|https://.com/i/parts/cordaSE1015_parts_03.jpg",null,null,null,null,240.99]
[null,null,null,null,null,null,null,"Variation","Model=SE1015|Part=Power|Pt=Pt|KP=Mp",null,null,null,null,null,null,null,null,null,null,null,null,null,null,null,"https://.com/i/parts/cordaSE1015_parts_01.jpg|https://.com/i/parts/cordaSE1015_parts_02.jpg|https://.com/i/parts/cordaSE1015_parts_03.jpg",null,null,null,null,240.99]
[null,null,null,null,null,null,null,"Variation","Model=SE1015|Part=Power|Pt=Pt|KP=LP",null,null,null,null,null,null,null,null,null,null,null,null,null,null,null,"https://.com/i/parts/cordaSE1015_parts_01.jpg|https://.com/i/parts/cordaSE1015_parts_02.jpg|https://.com/i/parts/cordaSE1015_parts_03.jpg",null,null,null,null,240.99]
[null,null,null,null,null,null,null,"Variation","Model=SE1015|Part=Lad|Pt=Mt|KP=Mp",null,null,null,null,null,null,null,null,null,null,null,null,null,null,null,"https://.com/i/parts/cordaSE1015_parts_01.jpg|https://.com/i/parts/cordaSE1015_parts_02.jpg|https://.com/i/parts/cordaSE1015_parts_03.jpg",null,null,null,null,240.99]
[null,null,null,null,null,null,null,"Variation","Model=SE1015|Part=Lad|Pt=Mt|KP=LP",null,null,null,null,null,null,null,null,null,null,null,null,null,null,null,"https://.com/i/parts/cordaSE1015_parts_01.jpg|https://.com/i/parts/cordaSE1015_parts_02.jpg|https://.com/i/parts/cordaSE1015_parts_03.jpg",null,null,null,null,240.99]
[null,null,null,null,null,null,null,"Variation","Model=SE1015|Part=Lad|Pt=Pt|KP=Mp",null,null,null,null,null,null,null,null,null,null,null,null,null,null,null,"https://.com/i/parts/cordaSE1015_parts_01.jpg|https://.com/i/parts/cordaSE1015_parts_02.jpg|https://.com/i/parts/cordaSE1015_parts_03.jpg",null,null,null,null,240.99]
[null,null,null,null,null,null,null,"Variation","Model=SE1015|Part=Lad|Pt=Pt|KP=LP",null,null,null,null,null,null,null,null,null,null,null,null,null,null,null,"https://.com/i/parts/cordaSE1015_parts_01.jpg|https://.com/i/parts/cordaSE1015_parts_02.jpg|https://.com/i/parts/cordaSE1015_parts_03.jpg",null,null,null,null,240.99]
[null,null,null,null,null,null,null,"Variation","Model=SE1015|Part=Colol|Pt=Mt|KP=Mp",null,null,null,null,null,null,null,null,null,null,null,null,null,null,null,"https://.com/i/parts/cordaSE1015_parts_01.jpg|https://.com/i/parts/cordaSE1015_parts_02.jpg|https://.com/i/parts/cordaSE1015_parts_03.jpg",null,null,null,null,240.99]
[null,null,null,null,null,null,null,"Variation","Model=SE1015|Part=Colol|Pt=Mt|KP=LP",null,null,null,null,null,null,null,null,null,null,null,null,null,null,null,"https://.com/i/parts/cordaSE1015_parts_01.jpg|https://.com/i/parts/cordaSE1015_parts_02.jpg|https://.com/i/parts/cordaSE1015_parts_03.jpg",null,null,null,null,240.99]
[null,null,null,null,null,null,null,"Variation","Model=SE1015|Part=Colol|Pt=Pt|KP=Mp",null,null,null,null,null,null,null,null,null,null,null,null,null,null,null,"https://.com/i/parts/cordaSE1015_parts_01.jpg|https://.com/i/parts/cordaSE1015_parts_02.jpg|https://.com/i/parts/cordaSE1015_parts_03.jpg",null,null,null,null,240.99]
[null,null,null,null,null,null,null,"Variation","Model=SE1015|Part=Colol|Pt=Pt|KP=LP",null,null,null,null,null,null,null,null,null,null,null,null,null,null,null,"https://.com/i/parts/cordaSE1015_parts_01.jpg|https://.com/i/parts/cordaSE1015_parts_02.jpg|https://.com/i/parts/cordaSE1015_parts_03.jpg",null,null,null,null,240.99]
[null,null,null,null,null,null,null,"Variation","Model=TE2014|Part=Mad|Pt=Mt|KP=Mp",null,null,null,null,null,null,null,null,null,null,null,null,null,null,null,"https://.com/i/parts/cordaSE1015_parts_01.jpg|https://.com/i/parts/cordaSE1015_parts_02.jpg|https://.com/i/parts/cordaSE1015_parts_03.jpg",null,null,null,null,240.99]
[null,null,null,null,null,null,null,"Variation","Model=TE2014|Part=Mad|Pt=Mt|KP=LP",null,null,null,null,null,null,null,null,null,null,null,null,null,null,null,"https://.com/i/parts/cordaSE1015_parts_01.jpg|https://.com/i/parts/cordaSE1015_parts_02.jpg|https://.com/i/parts/cordaSE1015_parts_03.jpg",null,null,null,null,240.99]
[null,null,null,null,null,null,null,"Variation","Model=TE2014|Part=Mad|Pt=Pt|KP=Mp",null,null,null,null,null,null,null,null,null,null,null,null,null,null,null,"https://.com/i/parts/cordaSE1015_parts_01.jpg|https://.com/i/parts/cordaSE1015_parts_02.jpg|https://.com/i/parts/cordaSE1015_parts_03.jpg",null,null,null,null,240.99]
[null,null,null,null,null,null,null,"Variation","Model=TE2014|Part=Mad|Pt=Pt|KP=LP",null,null,null,null,null,null,null,null,null,null,null,null,null,null,null,"https://.com/i/parts/cordaSE1015_parts_01.jpg|https://.com/i/parts/cordaSE1015_parts_02.jpg|https://.com/i/parts/cordaSE1015_parts_03.jpg",null,null,null,null,240.99]
[null,null,null,null,null,null,null,"Variation","Model=TE2014|Part=Power|Pt=Mt|KP=Mp",null,null,null,null,null,null,null,null,null,null,null,null,null,null,null,"https://.com/i/parts/cordaSE1015_parts_01.jpg|https://.com/i/parts/cordaSE1015_parts_02.jpg|https://.com/i/parts/cordaSE1015_parts_03.jpg",null,null,null,null,240.99]
[null,null,null,null,null,null,null,"Variation","Model=TE2014|Part=Power|Pt=Mt|KP=LP",null,null,null,null,null,null,null,null,null,null,null,null,null,null,null,"https://.com/i/parts/cordaSE1015_parts_01.jpg|https://.com/i/parts/cordaSE1015_parts_02.jpg|https://.com/i/parts/cordaSE1015_parts_03.jpg",null,null,null,null,240.99]
[null,null,null,null,null,null,null,"Variation","Model=TE2014|Part=Power|Pt=Pt|KP=Mp",null,null,null,null,null,null,null,null,null,null,null,null,null,null,null,"https://.com/i/parts/cordaSE1015_parts_01.jpg|https://.com/i/parts/cordaSE1015_parts_02.jpg|https://.com/i/parts/cordaSE1015_parts_03.jpg",null,null,null,null,240.99]
[null,null,null,null,null,null,null,"Variation","Model=TE2014|Part=Power|Pt=Pt|KP=LP",null,null,null,null,null,null,null,null,null,null,null,null,null,null,null,"https://.com/i/parts/cordaSE1015_parts_01.jpg|https://.com/i/parts/cordaSE1015_parts_02.jpg|https://.com/i/parts/cordaSE1015_parts_03.jpg",null,null,null,null,240.99]
[null,null,null,null,null,null,null,"Variation","Model=TE2014|Part=Lad|Pt=Mt|KP=Mp",null,null,null,null,null,null,null,null,null,null,null,null,null,null,null,"https://.com/i/parts/cordaSE1015_parts_01.jpg|https://.com/i/parts/cordaSE1015_parts_02.jpg|https://.com/i/parts/cordaSE1015_parts_03.jpg",null,null,null,null,240.99]
[null,null,null,null,null,null,null,"Variation","Model=TE2014|Part=Lad|Pt=Mt|KP=LP",null,null,null,null,null,null,null,null,null,null,null,null,null,null,null,"https://.com/i/parts/cordaSE1015_parts_01.jpg|https://.com/i/parts/cordaSE1015_parts_02.jpg|https://.com/i/parts/cordaSE1015_parts_03.jpg",null,null,null,null,240.99]
[null,null,null,null,null,null,null,"Variation","Model=TE2014|Part=Lad|Pt=Pt|KP=Mp",null,null,null,null,null,null,null,null,null,null,null,null,null,null,null,"https://.com/i/parts/cordaSE1015_parts_01.jpg|https://.com/i/parts/cordaSE1015_parts_02.jpg|https://.com/i/parts/cordaSE1015_parts_03.jpg",null,null,null,null,240.99]
[null,null,null,null,null,null,null,"Variation","Model=TE2014|Part=Lad|Pt=Pt|KP=LP",null,null,null,null,null,null,null,null,null,null,null,null,null,null,null,"https://.com/i/parts/cordaSE1015_parts_01.jpg|https://.com/i/parts/cordaSE1015_parts_02.jpg|https://.com/i/parts/cordaSE1015_parts_03.jpg",null,null,null,null,240.99]
[null,null,null,null,null,null,null,"Variation","Model=TE2014|Part=Colol|Pt=Mt|KP=Mp",null,null,null,null,null,null,null,null,null,null,null,null,null,null,null,"https://.com/i/parts/cordaSE1015_parts_01.jpg|https://.com/i/parts/cordaSE1015_parts_02.jpg|https://.com/i/parts/cordaSE1015_parts_03.jpg",null,null,null,null,240.99]
[null,null,null,null,null,null,null,"Variation","Model=TE2014|Part=Colol|Pt=Mt|KP=LP",null,null,null,null,null,null,null,null,null,null,null,null,null,null,null,"https://.com/i/parts/cordaSE1015_parts_01.jpg|https://.com/i/parts/cordaSE1015_parts_02.jpg|https://.com/i/parts/cordaSE1015_parts_03.jpg",null,null,null,null,240.99]
[null,null,null,null,null,null,null,"Variation","Model=TE2014|Part=Colol|Pt=Pt|KP=Mp",null,null,null,null,null,null,null,null,null,null,null,null,null,null,null,"https://.com/i/parts/cordaSE1015_parts_01.jpg|https://.com/i/parts/cordaSE1015_parts_02.jpg|https://.com/i/parts/cordaSE1015_parts_03.jpg",null,null,null,null,240.99]
[null,null,null,null,null,null,null,"Variation","Model=TE2014|Part=Colol|Pt=Pt|KP=LP",null,null,null,null,null,null,null,null,null,null,null,null,null,null,null,"https://.com/i/parts/cordaSE1015_parts_01.jpg|https://.com/i/parts/cordaSE1015_parts_02.jpg|https://.com/i/parts/cordaSE1015_parts_03.jpg",null,null,null,null,240.99]
["save",null,null,"67-67249",null,null,"Bertonika 2001 9000 for cleaing astrartciaons set of 34",null,"Model=SE1016;TE2015|Part=Mad;Power;Lad;Colol|Pt=Mt;Pt|KP=Mp;LP","own",null,null,null,null,null,null,null,0.8,null,null,null,null,null,null,"https://.com/i/parts/cordaSE1016_parts_01.jpg|https://.com/i/parts/cordaSE1016_parts_02.jpg|https://.com/i/parts/cordaSE1016_parts_03.jpg","You get one part of your choice that you specify in your message. ","r iron is called \"drag soldering\".. Its an art to learn but once you do you can solder multiple leads in seconds.."]
[null,null,null,null,null,null,null,"Variation","Model=SE1016|Part=Mad|Pt=Mt|KP=Mp",null,null,null,null,null,null,null,null,null,null,null,null,null,null,null,"https://.com/i/parts/cordaSE1016_parts_01.jpg|https://.com/i/parts/cordaSE1016_parts_02.jpg|https://.com/i/parts/cordaSE1016_parts_03.jpg",null,null,null,null,240.99]
[null,null,null,null,null,null,null,"Variation","Model=SE1016|Part=Mad|Pt=Mt|KP=LP",null,null,null,null,null,null,null,null,null,null,null,null,null,null,null,"https://.com/i/parts/cordaSE1016_parts_01.jpg|https://.com/i/parts/cordaSE1016_parts_02.jpg|https://.com/i/parts/cordaSE1016_parts_03.jpg",null,null,null,null,240.99]
[null,null,null,null,null,null,null,"Variation","Model=SE1016|Part=Mad|Pt=Pt|KP=Mp",null,null,null,null,null,null,null,null,null,null,null,null,null,null,null,"https://.com/i/parts/cordaSE1016_parts_01.jpg|https://.com/i/parts/cordaSE1016_parts_02.jpg|https://.com/i/parts/cordaSE1016_parts_03.jpg",null,null,null,null,240.99]
[null,null,null,null,null,null,null,"Variation","Model=SE1016|Part=Mad|Pt=Pt|KP=LP",null,null,null,null,null,null,null,null,null,null,null,null,null,null,null,"https://.com/i/parts/cordaSE1016_parts_01.jpg|https://.com/i/parts/cordaSE1016_parts_02.jpg|https://.com/i/parts/cordaSE1016_parts_03.jpg",null,null,null,null,240.99]
[null,null,null,null,null,null,null,"Variation","Model=SE1016|Part=Power|Pt=Mt|KP=Mp",null,null,null,null,null,null,null,null,null,null,null,null,null,null,null,"https://.com/i/parts/cordaSE1016_parts_01.jpg|https://.com/i/parts/cordaSE1016_parts_02.jpg|https://.com/i/parts/cordaSE1016_parts_03.jpg",null,null,null,null,240.99]
[null,null,null,null,null,null,null,"Variation","Model=SE1016|Part=Power|Pt=Mt|KP=LP",null,null,null,null,null,null,null,null,null,null,null,null,null,null,null,"https://.com/i/parts/cordaSE1016_parts_01.jpg|https://.com/i/parts/cordaSE1016_parts_02.jpg|https://.com/i/parts/cordaSE1016_parts_03.jpg",null,null,null,null,240.99]
[null,null,null,null,null,null,null,"Variation","Model=SE1016|Part=Power|Pt=Pt|KP=Mp",null,null,null,null,null,null,null,null,null,null,null,null,null,null,null,"https://.com/i/parts/cordaSE1016_parts_01.jpg|https://.com/i/parts/cordaSE1016_parts_02.jpg|https://.com/i/parts/cordaSE1016_parts_03.jpg",null,null,null,null,240.99]
[null,null,null,null,null,null,null,"Variation","Model=SE1016|Part=Power|Pt=Pt|KP=LP",null,null,null,null,null,null,null,null,null,null,null,null,null,null,null,"https://.com/i/parts/cordaSE1016_parts_01.jpg|https://.com/i/parts/cordaSE1016_parts_02.jpg|https://.com/i/parts/cordaSE1016_parts_03.jpg",null,null,null,null,240.99]
[null,null,null,null,null,null,null,"Variation","Model=SE1016|Part=Lad|Pt=Mt|KP=Mp",null,null,null,null,null,null,null,null,null,null,null,null,null,null,null,"https://.com/i/parts/cordaSE1016_parts_01.jpg|https://.com/i/parts/cordaSE1016_parts_02.jpg|https://.com/i/parts/cordaSE1016_parts_03.jpg",null,null,null,null,240.99]
[null,null,null,null,null,null,null,"Variation","Model=SE1016|Part=Lad|Pt=Mt|KP=LP",null,null,null,null,null,null,null,null,null,null,null,null,null,null,null,"https://.com/i/parts/cordaSE1016_parts_01.jpg|https://.com/i/parts/cordaSE1016_parts_02.jpg|https://.com/i/parts/cordaSE1016_parts_03.jpg",null,null,null,null,240.99]
[null,null,null,null,null,null,null,"Variation","Model=SE1016|Part=Lad|Pt=Pt|KP=Mp",null,null,null,null,null,null,null,null,null,null,null,null,null,null,null,"https://.com/i/parts/cordaSE1016_parts_01.jpg|https://.com/i/parts/cordaSE1016_parts_02.jpg|https://.com/i/parts/cordaSE1016_parts_03.jpg",null,null,null,null,240.99]
[null,null,null,null,null,null,null,"Variation","Model=SE1016|Part=Lad|Pt=Pt|KP=LP",null,null,null,null,null,null,null,null,null,null,null,null,null,null,null,"https://.com/i/parts/cordaSE1016_parts_01.jpg|https://.com/i/parts/cordaSE1016_parts_02.jpg|https://.com/i/parts/cordaSE1016_parts_03.jpg",null,null,null,null,240.99]
[null,null,null,null,null,null,null,"Variation","Model=SE1016|Part=Colol|Pt=Mt|KP=Mp",null,null,null,null,null,null,null,null,null,null,null,null,null,null,null,"https://.com/i/parts/cordaSE1016_parts_01.jpg|https://.com/i/parts/cordaSE1016_parts_02.jpg|https://.com/i/parts/cordaSE1016_parts_03.jpg",null,null,null,null,240.99]
[null,null,null,null,null,null,null,"Variation","Model=SE1016|Part=Colol|Pt=Mt|KP=LP",null,null,null,null,null,null,null,null,null,null,null,null,null,null,null,"https://.com/i/parts/cordaSE1016_parts_01.jpg|https://.com/i/parts/cordaSE1016_parts_02.jpg|https://.com/i/parts/cordaSE1016_parts_03.jpg",null,null,null,null,240.99]
[null,null,null,null,null,null,null,"Variation","Model=SE1016|Part=Colol|Pt=Pt|KP=Mp",null,null,null,null,null,null,null,null,null,null,null,null,null,null,null,"https://.com/i/parts/cordaSE1016_parts_01.jpg|https://.com/i/parts/cordaSE1016_parts_02.jpg|https://.com/i/parts/cordaSE1016_parts_03.jpg",null,null,null,null,240.99]
[null,null,null,null,null,null,null,"Variation","Model=SE1016|Part=Colol|Pt=Pt|KP=LP",null,null,null,null,null,null,null,null,null,null,null,null,null,null,null,"https://.com/i/parts/cordaSE1016_parts_01.jpg|https://.com/i/parts/cordaSE1016_parts_02.jpg|https://.com/i/parts/cordaSE1016_parts_03.jpg",null,null,null,null,240.99]
[null,null,null,null,null,null,null,"Variation","Model=TE2015|Part=Mad|Pt=Mt|KP=Mp",null,null,null,null,null,null,null,null,null,null,null,null,null,null,null,"https://.com/i/parts/cordaSE1016_parts_01.jpg|https://.com/i/parts/cordaSE1016_parts_02.jpg|https://.com/i/parts/cordaSE1016_parts_03.jpg",null,null,null,null,240.99]
[null,null,null,null,null,null,null,"Variation","Model=TE2015|Part=Mad|Pt=Mt|KP=LP",null,null,null,null,null,null,null,null,null,null,null,null,null,null,null,"https://.com/i/parts/cordaSE1016_parts_01.jpg|https://.com/i/parts/cordaSE1016_parts_02.jpg|https://.com/i/parts/cordaSE1016_parts_03.jpg",null,null,null,null,240.99]
[null,null,null,null,null,null,null,"Variation","Model=TE2015|Part=Mad|Pt=Pt|KP=Mp",null,null,null,null,null,null,null,null,null,null,null,null,null,null,null,"https://.com/i/parts/cordaSE1016_parts_01.jpg|https://.com/i/parts/cordaSE1016_parts_02.jpg|https://.com/i/parts/cordaSE1016_parts_03.jpg",null,null,null,null,240.99]
[null,null,null,null,null,null,null,"Variation","Model=TE2015|Part=Mad|Pt=Pt|KP=LP",null,null,null,null,null,null,null,null,null,null,null,null,null,null,null,"https://.com/i/parts/cordaSE1016_parts_01.jpg|https://.com/i/parts/cordaSE1016_parts_02.jpg|https://.com/i/parts/cordaSE1016_parts_03.jpg",null,null,null,null,240.99]
[null,null,null,null,null,null,null,"Variation","Model=TE2015|Part=Power|Pt=Mt|KP=Mp",null,null,null,null,null,null,null,null,null,null,null,null,null,null,null,"https://.com/i/parts/cordaSE1016_parts_01.jpg|https://.com/i/parts/cordaSE1016_parts_02.jpg|https://.com/i/parts/cordaSE1016_parts_03.jpg",null,null,null,null,240.99]
[null,null,null,null,null,null,null,"Variation","Model=TE2015|Part=Power|Pt=Mt|KP=LP",null,null,null,null,null,null,null,null,null,null,null,null,null,null,null,"https://.com/i/parts/cordaSE1016_parts_01.jpg|https://.com/i/parts/cordaSE1016_parts_02.jpg|https://.com/i/parts/cordaSE1016_parts_03.jpg",null,null,null,null,240.99]
[null,null,null,null,null,null,null,"Variation","Model=TE2015|Part=Power|Pt=Pt|KP=Mp",null,null,null,null,null,null,null,null,null,null,null,null,null,null,null,"https://.com/i/parts/cordaSE1016_parts_01.jpg|https://.com/i/parts/cordaSE1016_parts_02.jpg|https://.com/i/parts/cordaSE1016_parts_03.jpg",null,null,null,null,240.99]
[null,null,null,null,null,null,null,"Variation","Model=TE2015|Part=Power|Pt=Pt|KP=LP",null,null,null,null,null,null,null,null,null,null,null,null,null,null,null,"https://.com/i/parts/cordaSE1016_parts_01.jpg|https://.com/i/parts/cordaSE1016_parts_02.jpg|https://.com/i/parts/cordaSE1016_parts_03.jpg",null,null,null,null,240.99]
[null,null,null,null,null,null,null,"Variation","Model=TE2015|Part=Lad|Pt=Mt|KP=Mp",null,null,null,null,null,null,null,null,null,null,null,null,null,null,null,"https://.com/i/parts/cordaSE1016_parts_01.jpg|https://.com/i/parts/cordaSE1016_parts_02.jpg|https://.com/i/parts/cordaSE1016_parts_03.jpg",null,null,null,null,240.99]
[null,null,null,null,null,null,null,"Variation","Model=TE2015|Part=Lad|Pt=Mt|KP=LP",null,null,null,null,null,null,null,null,null,null,null,null,null,null,null,"https://.com/i/parts/cordaSE1016_parts_01.jpg|https://.com/i/parts/cordaSE1016_parts_02.jpg|https://.com/i/parts/cordaSE1016_parts_03.jpg",null,null,null,null,240.99]
[null,null,null,null,null,null,null,"Variation","Model=TE2015|Part=Lad|Pt=Pt|KP=Mp",null,null,null,null,null,null,null,null,null,null,null,null,null,null,null,"https://.com/i/parts/cordaSE1016_parts_01.jpg|https://.com/i/parts/cordaSE1016_parts_02.jpg|https://.com/i/parts/cordaSE1016_parts_03.jpg",null,null,null,null,240.99]
[null,null,null,null,null,null,null,"Variation","Model=TE2015|Part=Lad|Pt=Pt|KP=LP",null,null,null,null,null,null,null,null,null,null,null,null,null,null,null,"https://.com/i/parts/cordaSE1016_parts_01.jpg|https://.com/i/parts/cordaSE1016_parts_02.jpg|https://.com/i/parts/cordaSE1016_parts_03.jpg",null,null,null,null,240.99]
[null,null,null,null,null,null,null,"Variation","Model=TE2015|Part=Colol|Pt=Mt|KP=Mp",null,null,null,null,null,null,null,null,null,null,null,null,null,null,null,"https://.com/i/parts/cordaSE1016_parts_01.jpg|https://.com/i/parts/cordaSE1016_parts_02.jpg|https://.com/i/parts/cordaSE1016_parts_03.jpg",null,null,null,null,240.99]
[null,null,null,null,null,null,null,"Variation","Model=TE2015|Part=Colol|Pt=Mt|KP=LP",null,null,null,null,null,null,null,null,null,null,null,null,null,null,null,"https://.com/i/parts/cordaSE1016_parts_01.jpg|https://.com/i/parts/cordaSE1016_parts_02.jpg|https://.com/i/parts/cordaSE1016_parts_03.jpg",null,null,null,null,240.99]
[null,null,null,null,null,null,null,"Variation","Model=TE2015|Part=Colol|Pt=Pt|KP=Mp",null,null,null,null,null,null,null,null,null,null,null,null,null,null,null,"https://.com/i/parts/cordaSE1016_parts_01.jpg|https://.com/i/parts/cordaSE1016_parts_02.jpg|https://.com/i/parts/cordaSE1016_parts_03.jpg",null,null,null,null,240.99]
[null,null,null,null,null,null,null,"Variation","Model=TE2015|Part=Colol|Pt=Pt|KP=LP",null,null,null,null,null,null,null,null,null,null,null,null,null,null,null,"https://.com/i/parts/cordaSE1016_parts_01.jpg|https://.com/i/parts/cordaSE1016_parts_02.jpg|https://.com/i/parts/cordaSE1016_parts_03.jpg",null,null,null,null,240.99]
["save",null,null,"67-75518",null,null,"Bertonika 2001 9000 for cleaing astrartciaons set of 35",null,"Model=SE1017;TE2016|Part=Mad;Power;Lad;Colol|Pt=Mt;Pt|KP=Mp;LP","own",null,null,null,null,null,null,null,0.8,null,null,null,null,null,null,"https://.com/i/parts/cordaSE1017_parts_01.jpg|https://.com/i/parts/cordaSE1017_parts_02.jpg|https://.com/i/parts/cordaSE1017_parts_03.jpg","You get one part of your choice that you specify in your message. ","r iron is called \"drag soldering\".. Its an art to learn but once you do you can solder multiple leads in seconds.."]
[null,null,null,null,null,null,null,"Variation","Model=SE1017|Part=Mad|Pt=Mt|KP=Mp",null,null,null,null,null,null,null,null,null,null,null,null,null,null,null,"https://.com/i/parts/cordaSE1017_parts_01.jpg|https://.com/i/parts/cordaSE1017_parts_02.jpg|https://.com/i/parts/cordaSE1017_parts_03.jpg",null,null,null,null,240.99]
[null,null,null,null,null,null,null,"Variation","Model=SE1017|Part=Mad|Pt=Mt|KP=LP",null,null,null,null,null,null,null,null,null,null,null,null,null,null,null,"https://.com/i/parts/cordaSE1017_parts_01.jpg|https://.com/i/parts/cordaSE1017_parts_02.jpg|https://.com/i/parts/cordaSE1017_parts_03.jpg",null,null,null,null,240.99]
[null,null,null,null,null,null,null,"Variation","Model=SE1017|Part=Mad|Pt=Pt|KP=Mp",null,null,null,null,null,null,null,null,null,null,null,null,null,null,null,"https://.com/i/parts/cordaSE1017_parts_01.jpg|https://.com/i/parts/cordaSE1017_parts_02.jpg|https://.com/i/parts/cordaSE1017_parts_03.jpg",null,null,null,null,240.99]
[null,null,null,null,null,null,null,"Variation","Model=SE1017|Part=Mad|Pt=Pt|KP=LP",null,null,null,null,null,null,null,null,null,null,null,null,null,null,null,"https://.com/i/parts/cordaSE1017_parts_01.jpg|https://.com/i/parts/cordaSE1017_parts_02.jpg|https://.com/i/parts/cordaSE1017_parts_03.jpg",null,null,null,null,240.99]
[null,null,null,null,null,null,null,"Variation","Model=SE1017|Part=Power|Pt=Mt|KP=Mp",null,null,null,null,null,null,null,null,null,null,null,null,null,null,null,"https://.com/i/parts/cordaSE1017_parts_01.jpg|https://.com/i/parts/cordaSE1017_parts_02.jpg|https://.com/i/parts/cordaSE1017_parts_03.jpg",null,null,null,null,240.99]
[null,null,null,null,null,null,null,"Variation","Model=SE1017|Part=Power|Pt=Mt|KP=LP",null,null,null,null,null,null,null,null,null,null,null,null,null,null,null,"https://.com/i/parts/cordaSE1017_parts_01.jpg|https://.com/i/parts/cordaSE1017_parts_02.jpg|https://.com/i/parts/cordaSE1017_parts_03.jpg",null,null,null,null,240.99]
[null,null,null,null,null,null,null,"Variation","Model=SE1017|Part=Power|Pt=Pt|KP=Mp",null,null,null,null,null,null,null,null,null,null,null,null,null,null,null,"https://.com/i/parts/cordaSE1017_parts_01.jpg|https://.com/i/parts/cordaSE1017_parts_02.jpg|https://.com/i/parts/cordaSE1017_parts_03.jpg",null,null,null,null,240.99]
[null,null,null,null,null,null,null,"Variation","Model=SE1017|Part=Power|Pt=Pt|KP=LP",null,null,null,null,null,null,null,null,null,null,null,null,null,null,null,"https://.com/i/parts/cordaSE1017_parts_01.jpg|https://.com/i/parts/cordaSE1017_parts_02.jpg|https://.com/i/parts/cordaSE1017_parts_03.jpg",null,null,null,null,240.99]
[null,null,null,null,null,null,null,"Variation","Model=SE1017|Part=Lad|Pt=Mt|KP=Mp",null,null,null,null,null,null,null,null,null,null,null,null,null,null,null,"https://.com/i/parts/cordaSE1017_parts_01.jpg|https://.com/i/parts/cordaSE1017_parts_02.jpg|https://.com/i/parts/cordaSE1017_parts_03.jpg",null,null,null,null,240.99]
[null,null,null,null,null,null,null,"Variation","Model=SE1017|Part=Lad|Pt=Mt|KP=LP",null,null,null,null,null,null,null,null,null,null,null,null,null,null,null,"https://.com/i/parts/cordaSE1017_parts_01.jpg|https://.com/i/parts/cordaSE1017_parts_02.jpg|https://.com/i/parts/cordaSE1017_parts_03.jpg",null,null,null,null,240.99]
[null,null,null,null,null,null,null,"Variation","Model=SE1017|Part=Lad|Pt=Pt|KP=Mp",null,null,null,null,null,null,null,null,null,null,null,null,null,null,null,"https://.com/i/parts/cordaSE1017_parts_01.jpg|https://.com/i/parts/cordaSE1017_parts_02.jpg|https://.com/i/parts/cordaSE1017_parts_03.jpg",null,null,null,null,240.99]
[null,null,null,null,null,null,null,"Variation","Model=SE1017|Part=Lad|Pt=Pt|KP=LP",null,null,null,null,null,null,null,null,null,null,null,null,null,null,null,"https://.com/i/parts/cordaSE1017_parts_01.jpg|https://.com/i/parts/cordaSE1017_parts_02.jpg|https://.com/i/parts/cordaSE1017_parts_03.jpg",null,null,null,null,240.99]
[null,null,null,null,null,null,null,"Variation","Model=SE1017|Part=Colol|Pt=Mt|KP=Mp",null,null,null,null,null,null,null,null,null,null,null,null,null,null,null,"https://.com/i/parts/cordaSE1017_parts_01.jpg|https://.com/i/parts/cordaSE1017_parts_02.jpg|https://.com/i/parts/cordaSE1017_parts_03.jpg",null,null,null,null,240.99]
[null,null,null,null,null,null,null,"Variation","Model=SE1017|Part=Colol|Pt=Mt|KP=LP",null,null,null,null,null,null,null,null,null,null,null,null,null,null,null,"https://.com/i/parts/cordaSE1017_parts_01.jpg|https://.com/i/parts/cordaSE1017_parts_02.jpg|https://.com/i/parts/cordaSE1017_parts_03.jpg",null,null,null,null,240.99]
[null,null,null,null,null,null,null,"Variation","Model=SE1017|Part=Colol|Pt=Pt|KP=Mp",null,null,null,null,null,null,null,null,null,null,null,null,null,null,null,"https://.com/i/parts/cordaSE1017_parts_01.jpg|https://.com/i/parts/cordaSE1017_parts_02.jpg|https://.com/i/parts/cordaSE1017_parts_03.jpg",null,null,null,null,240.99]
[null,null,null,null,null,null,null,"Variation","Model=SE1017|Part=Colol|Pt=Pt|KP=LP",null,null,null,null,null,null,null,null,null,null,null,null,null,null,null,"https://.com/i/parts/cordaSE1017_parts_01.jpg|https://.com/i/parts/cordaSE1017_parts_02.jpg|https://.com/i/parts/cordaSE1017_parts_03.jpg",null,null,null,null,240.99]
[null,null,null,null,null,null,null,"Variation","Model=TE2016|Part=Mad|Pt=Mt|KP=Mp",null,null,null,null,null,null,null,null,null,null,null,null,null,null,null,"https://.com/i/parts/cordaSE1017_parts_01.jpg|https://.com/i/parts/cordaSE1017_parts_02.jpg|https://.com/i/parts/cordaSE1017_parts_03.jpg",null,null,null,null,240.99]
[null,null,null,null,null,null,null,"Variation","Model=TE2016|Part=Mad|Pt=Mt|KP=LP",null,null,null,null,null,null,null,null,null,null,null,null,null,null,null,"https://.com/i/parts/cordaSE1017_parts_01.jpg|https://.com/i/parts/cordaSE1017_parts_02.jpg|https://.com/i/parts/cordaSE1017_parts_03.jpg",null,null,null,null,240.99]
[null,null,null,null,null,null,null,"Variation","Model=TE2016|Part=Mad|Pt=Pt|KP=Mp",null,null,null,null,null,null,null,null,null,null,null,null,null,null,null,"https://.com/i/parts/cordaSE1017_parts_01.jpg|https://.com/i/parts/cordaSE1017_parts_02.jpg|https://.com/i/parts/cordaSE1017_parts_03.jpg",null,null,null,null,240.99]
[null,null,null,null,null,null,null,"Variation","Model=TE2016|Part=Mad|Pt=Pt|KP=LP",null,null,null,null,null,null,null,null,null,null,null,null,null,null,null,"https://.com/i/parts/cordaSE1017_parts_01.jpg|https://.com/i/parts/cordaSE1017_parts_02.jpg|https://.com/i/parts/cordaSE1017_parts_03.jpg",null,null,null,null,240.99]
[null,null,null,null,null,null,null,"Variation","Model=TE2016|Part=Power|Pt=Mt|KP=Mp",null,null,null,null,null,null,null,null,null,null,null,null,null,null,null,"https://.com/i/parts/cordaSE1017_parts_01.jpg|https://.com/i/parts/cordaSE1017_parts_02.jpg|https://.com/i/parts/cordaSE1017_parts_03.jpg",null,null,null,null,240.99]
[null,null,null,null,null,null,null,"Variation","Model=TE2016|Part=Power|Pt=Mt|KP=LP",null,null,null,null,null,null,null,null,null,null,null,null,null,null,null,"https://.com/i/parts/cordaSE1017_parts_01.jpg|https://.com/i/parts/cordaSE1017_parts_02.jpg|https://.com/i/parts/cordaSE1017_parts_03.jpg",null,null,null,null,240.99]
[null,null,null,null,null,null,null,"Variation","Model=TE2016|Part=Power|Pt=Pt|KP=Mp",null,null,null,null,null,null,null,null,null,null,null,null,null,null,null,"https://.com/i/parts/cordaSE1017_parts_01.jpg|https://.com/i/parts/cordaSE1017_parts_02.jpg|https://.com/i/parts/cordaSE1017_parts_03.jpg",null,null,null,null,240.99]
[null,null,null,null,null,null,null,"Variation","Model=TE2016|Part=Power|Pt=Pt|KP=LP",null,null,null,null,null,null,null,null,null,null,null,null,null,null,null,"https://.com/i/parts/cordaSE1017_parts_01.jpg|https://.com/i/parts/cordaSE1017_parts_02.jpg|https://.com/i/parts/cordaSE1017_parts_03.jpg",null,null,null,null,240.99]
[null,null,null,null,null,null,null,"Variation","Model=TE2016|Part=Lad|Pt=Mt|KP=Mp",null,null,null,null,null,null,null,null,null,null,null,null,null,null,null,"https://.com/i/parts/cordaSE1017_parts_01.jpg|https://.com/i/parts/cordaSE1017_parts_02.jpg|https://.com/i/parts/cordaSE1017_parts_03.jpg",null,null,null,null,240.99]
[null,null,null,null,null,null,null,"Variation","Model=TE2016|Part=Lad|Pt=Mt|KP=LP",null,null,null,null,null,null,null,null,null,null,null,null,null,null,null,"https://.com/i/parts/cordaSE1017_parts_01.jpg|https://.com/i/parts/cordaSE1017_parts_02.jpg|https://.com/i/parts/cordaSE1017_parts_03.jpg",null,null,null,null,240.99]
[null,null,null,null,null,null,null,"Variation","Model=TE2016|Part=Lad|Pt=Pt|KP=Mp",null,null,null,null,null,null,null,null,null,null,null,null,null,null,null,"https://.com/i/parts/cordaSE1017_parts_01.jpg|https://.com/i/parts/cordaSE1017_parts_02.jpg|https://.com/i/parts/cordaSE1017_parts_03.jpg",null,null,null,null,240.99]
[null,null,null,null,null,null,null,"Variation","Model=TE2016|Part=Lad|Pt=Pt|KP=LP",null,null,null,null,null,null,null,null,null,null,null,null,null,null,null,"https://.com/i/parts/cordaSE1017_parts_01.jpg|https://.com/i/parts/cordaSE1017_parts_02.jpg|https://.com/i/parts/cordaSE1017_parts_03.jpg",null,null,null,null,240.99]
[null,null,null,null,null,null,null,"Variation","Model=TE2016|Part=Colol|Pt=Mt|KP=Mp",null,null,null,null,null,null,null,null,null,null,null,null,null,null,null,"https://.com/i/parts/cordaSE1017_parts_01.jpg|https://.com/i/parts/cordaSE1017_parts_02.jpg|https://.com/i/parts/cordaSE1017_parts_03.jpg",null,null,null,null,240.99]
[null,null,null,null,null,null,null,"Variation","Model=TE2016|Part=Colol|Pt=Mt|KP=LP",null,null,null,null,null,null,null,null,null,null,null,null,null,null,null,"https://.com/i/parts/cordaSE1017_parts_01.jpg|https://.com/i/parts/cordaSE1017_parts_02.jpg|https://.com/i/parts/cordaSE1017_parts_03.jpg",null,null,null,null,240.99]
[null,null,null,null,null,null,null,"Variation","Model=TE2016|Part=Colol|Pt=Pt|KP=Mp",null,null,null,null,null,null,null,null,null,null,null,null,null,null,null,"https://.com/i/parts/cordaSE1017_parts_01.jpg|https://.com/i/parts/cordaSE1017_parts_02.jpg|https://.com/i/parts/cordaSE1017_parts_03.jpg",null,null,null,null,240.99]
[null,null,null,null,null,null,null,"Variation","Model=TE2016|Part=Colol|Pt=Pt|KP=LP",null,null,null,null,null,null,null,null,null,null,null,null,null,null,null,"https://.com/i/parts/cordaSE1017_parts_01.jpg|https://.com/i/parts/cordaSE1017_parts_02.jpg|https://.com/i/parts/cordaSE1017_parts_03.jpg",null,null,null,null,240.99]
["save",null,null,"67-84105",null,null,"Bertonika 2001 9000 for cleaing astrartciaons set of 36",null,"Model=SE1018;TE2017|Part=Mad;Power;Lad;Colol|Pt=Mt;Pt|KP=Mp;LP","own",null,null,null,null,null,null,null,0.8,null,null,null,null,null,null,"https://.com/i/parts/cordaSE1018_parts_01.jpg|https://.com/i/parts/cordaSE1018_parts_02.jpg|https://.com/i/parts/cordaSE1018_parts_03.jpg","You get one part of your choice that you specify in your message. ","r iron is called \"drag soldering\".. Its an art to learn but once you do you can solder multiple leads in seconds.."]
[null,null,null,null,null,null,null,"Variation","Model=SE1018|Part=Mad|Pt=Mt|KP=Mp",null,null,null,null,null,null,null,null,null,null,null,null,null,null,null,"https://.com/i/parts/cordaSE1018_parts_01.jpg|https://.com/i/parts/cordaSE1018_parts_02.jpg|https://.com/i/parts/cordaSE1018_parts_03.jpg",null,null,null,null,240.99]
[null,null,null,null,null,null,null,"Variation","Model=SE1018|Part=Mad|Pt=Mt|KP=LP",null,null,null,null,null,null,null,null,null,null,null,null,null,null,null,"https://.com/i/parts/cordaSE1018_parts_01.jpg|https://.com/i/parts/cordaSE1018_parts_02.jpg|https://.com/i/parts/cordaSE1018_parts_03.jpg",null,null,null,null,240.99]
[null,null,null,null,null,null,null,"Variation","Model=SE1018|Part=Mad|Pt=Pt|KP=Mp",null,null,null,null,null,null,null,null,null,null,null,null,null,null,null,"https://.com/i/parts/cordaSE1018_parts_01.jpg|https://.com/i/parts/cordaSE1018_parts_02.jpg|https://.com/i/parts/cordaSE1018_parts_03.jpg",null,null,null,null,240.99]
[null,null,null,null,null,null,null,"Variation","Model=SE1018|Part=Mad|Pt=Pt|KP=LP",null,null,null,null,null,null,null,null,null,null,null,null,null,null,null,"https://.com/i/parts/cordaSE1018_parts_01.jpg|https://.com/i/parts/cordaSE1018_parts_02.jpg|https://.com/i/parts/cordaSE1018_parts_03.jpg",null,null,null,null,240.99]
[null,null,null,null,null,null,null,"Variation","Model=SE1018|Part=Power|Pt=Mt|KP=Mp",null,null,null,null,null,null,null,null,null,null,null,null,null,null,null,"https://.com/i/parts/cordaSE1018_parts_01.jpg|https://.com/i/parts/cordaSE1018_parts_02.jpg|https://.com/i/parts/cordaSE1018_parts_03.jpg",null,null,null,null,240.99]
[null,null,null,null,null,null,null,"Variation","Model=SE1018|Part=Power|Pt=Mt|KP=LP",null,null,null,null,null,null,null,null,null,null,null,null,null,null,null,"https://.com/i/parts/cordaSE1018_parts_01.jpg|https://.com/i/parts/cordaSE1018_parts_02.jpg|https://.com/i/parts/cordaSE1018_parts_03.jpg",null,null,null,null,240.99]
[null,null,null,null,null,null,null,"Variation","Model=SE1018|Part=Power|Pt=Pt|KP=Mp",null,null,null,null,null,null,null,null,null,null,null,null,null,null,null,"https://.com/i/parts/cordaSE1018_parts_01.jpg|https://.com/i/parts/cordaSE1018_parts_02.jpg|https://.com/i/parts/cordaSE1018_parts_03.jpg",null,null,null,null,240.99]
[null,null,null,null,null,null,null,"Variation","Model=SE1018|Part=Power|Pt=Pt|KP=LP",null,null,null,null,null,null,null,null,null,null,null,null,null,null,null,"https://.com/i/parts/cordaSE1018_parts_01.jpg|https://.com/i/parts/cordaSE1018_parts_02.jpg|https://.com/i/parts/cordaSE1018_parts_03.jpg",null,null,null,null,240.99]
[null,null,null,null,null,null,null,"Variation","Model=SE1018|Part=Lad|Pt=Mt|KP=Mp",null,null,null,null,null,null,null,null,null,null,null,null,null,null,null,"https://.com/i/parts/cordaSE1018_parts_01.jpg|https://.com/i/parts/cordaSE1018_parts_02.jpg|https://.com/i/parts/cordaSE1018_parts_03.jpg",null,null,null,null,240.99]
[null,null,null,null,null,null,null,"Variation","Model=SE1018|Part=Lad|Pt=Mt|KP=LP",null,null,null,null,null,null,null,null,null,null,null,null,null,null,null,"https://.com/i/parts/cordaSE1018_parts_01.jpg|https://.com/i/parts/cordaSE1018_parts_02.jpg|https://.com/i/parts/cordaSE1018_parts_03.jpg",null,null,null,null,240.99]
[null,null,null,null,null,null,null,"Variation","Model=SE1018|Part=Lad|Pt=Pt|KP=Mp",null,null,null,null,null,null,null,null,null,null,null,null,null,null,null,"https://.com/i/parts/cordaSE1018_parts_01.jpg|https://.com/i/parts/cordaSE1018_parts_02.jpg|https://.com/i/parts/cordaSE1018_parts_03.jpg",null,null,null,null,240.99]
[null,null,null,null,null,null,null,"Variation","Model=SE1018|Part=Lad|Pt=Pt|KP=LP",null,null,null,null,null,null,null,null,null,null,null,null,null,null,null,"https://.com/i/parts/cordaSE1018_parts_01.jpg|https://.com/i/parts/cordaSE1018_parts_02.jpg|https://.com/i/parts/cordaSE1018_parts_03.jpg",null,null,null,null,240.99]
[null,null,null,null,null,null,null,"Variation","Model=SE1018|Part=Colol|Pt=Mt|KP=Mp",null,null,null,null,null,null,null,null,null,null,null,null,null,null,null,"https://.com/i/parts/cordaSE1018_parts_01.jpg|https://.com/i/parts/cordaSE1018_parts_02.jpg|https://.com/i/parts/cordaSE1018_parts_03.jpg",null,null,null,null,240.99]
[null,null,null,null,null,null,null,"Variation","Model=SE1018|Part=Colol|Pt=Mt|KP=LP",null,null,null,null,null,null,null,null,null,null,null,null,null,null,null,"https://.com/i/parts/cordaSE1018_parts_01.jpg|https://.com/i/parts/cordaSE1018_parts_02.jpg|https://.com/i/parts/cordaSE1018_parts_03.jpg",null,null,null,null,240.99]
[null,null,null,null,null,null,null,"Variation","Model=SE1018|Part=Colol|Pt=Pt|KP=Mp",null,null,null,null,null,null,null,null,null,null,null,null,null,null,null,"https://.com/i/parts/cordaSE1018_parts_01.jpg|https://.com/i/parts/cordaSE1018_parts_02.jpg|https://.com/i/parts/cordaSE1018_parts_03.jpg",null,null,null,null,240.99]
[null,null,null,null,null,null,null,"Variation","Model=SE1018|Part=Colol|Pt=Pt|KP=LP",null,null,null,null,null,null,null,null,null,null,null,null,null,null,null,"https://.com/i/parts/cordaSE1018_parts_01.jpg|https://.com/i/parts/cordaSE1018_parts_02.jpg|https://.com/i/parts/cordaSE1018_parts_03.jpg",null,null,null,null,240.99]
[null,null,null,null,null,null,null,"Variation","Model=TE2017|Part=Mad|Pt=Mt|KP=Mp",null,null,null,null,null,null,null,null,null,null,null,null,null,null,null,"https://.com/i/parts/cordaSE1018_parts_01.jpg|https://.com/i/parts/cordaSE1018_parts_02.jpg|https://.com/i/parts/cordaSE1018_parts_03.jpg",null,null,null,null,240.99]
[null,null,null,null,null,null,null,"Variation","Model=TE2017|Part=Mad|Pt=Mt|KP=LP",null,null,null,null,null,null,null,null,null,null,null,null,null,null,null,"https://.com/i/parts/cordaSE1018_parts_01.jpg|https://.com/i/parts/cordaSE1018_parts_02.jpg|https://.com/i/parts/cordaSE1018_parts_03.jpg",null,null,null,null,240.99]
[null,null,null,null,null,null,null,"Variation","Model=TE2017|Part=Mad|Pt=Pt|KP=Mp",null,null,null,null,null,null,null,null,null,null,null,null,null,null,null,"https://.com/i/parts/cordaSE1018_parts_01.jpg|https://.com/i/parts/cordaSE1018_parts_02.jpg|https://.com/i/parts/cordaSE1018_parts_03.jpg",null,null,null,null,240.99]
[null,null,null,null,null,null,null,"Variation","Model=TE2017|Part=Mad|Pt=Pt|KP=LP",null,null,null,null,null,null,null,null,null,null,null,null,null,null,null,"https://.com/i/parts/cordaSE1018_parts_01.jpg|https://.com/i/parts/cordaSE1018_parts_02.jpg|https://.com/i/parts/cordaSE1018_parts_03.jpg",null,null,null,null,240.99]
[null,null,null,null,null,null,null,"Variation","Model=TE2017|Part=Power|Pt=Mt|KP=Mp",null,null,null,null,null,null,null,null,null,null,null,null,null,null,null,"https://.com/i/parts/cordaSE1018_parts_01.jpg|https://.com/i/parts/cordaSE1018_parts_02.jpg|https://.com/i/parts/cordaSE1018_parts_03.jpg",null,null,null,null,240.99]
[null,null,null,null,null,null,null,"Variation","Model=TE2017|Part=Power|Pt=Mt|KP=LP",null,null,null,null,null,null,null,null,null,null,null,null,null,null,null,"https://.com/i/parts/cordaSE1018_parts_01.jpg|https://.com/i/parts/cordaSE1018_parts_02.jpg|https://.com/i/parts/cordaSE1018_parts_03.jpg",null,null,null,null,240.99]
[null,null,null,null,null,null,null,"Variation","Model=TE2017|Part=Power|Pt=Pt|KP=Mp",null,null,null,null,null,null,null,null,null,null,null,null,null,null,null,"https://.com/i/parts/cordaSE1018_parts_01.jpg|https://.com/i/parts/cordaSE1018_parts_02.jpg|https://.com/i/parts/cordaSE1018_parts_03.jpg",null,null,null,null,240.99]
[null,null,null,null,null,null,null,"Variation","Model=TE2017|Part=Power|Pt=Pt|KP=LP",null,null,null,null,null,null,null,null,null,null,null,null,null,null,null,"https://.com/i/parts/cordaSE1018_parts_01.jpg|https://.com/i/parts/cordaSE1018_parts_02.jpg|https://.com/i/parts/cordaSE1018_parts_03.jpg",null,null,null,null,240.99]
[null,null,null,null,null,null,null,"Variation","Model=TE2017|Part=Lad|Pt=Mt|KP=Mp",null,null,null,null,null,null,null,null,null,null,null,null,null,null,null,"https://.com/i/parts/cordaSE1018_parts_01.jpg|https://.com/i/parts/cordaSE1018_parts_02.jpg|https://.com/i/parts/cordaSE1018_parts_03.jpg",null,null,null,null,240.99]
[null,null,null,null,null,null,null,"Variation","Model=TE2017|Part=Lad|Pt=Mt|KP=LP",null,null,null,null,null,null,null,null,null,null,null,null,null,null,null,"https://.com/i/parts/cordaSE1018_parts_01.jpg|https://.com/i/parts/cordaSE1018_parts_02.jpg|https://.com/i/parts/cordaSE1018_parts_03.jpg",null,null,null,null,240.99]
[null,null,null,null,null,null,null,"Variation","Model=TE2017|Part=Lad|Pt=Pt|KP=Mp",null,null,null,null,null,null,null,null,null,null,null,null,null,null,null,"https://.com/i/parts/cordaSE1018_parts_01.jpg|https://.com/i/parts/cordaSE1018_parts_02.jpg|https://.com/i/parts/cordaSE1018_parts_03.jpg",null,null,null,null,240.99]
[null,null,null,null,null,null,null,"Variation","Model=TE2017|Part=Lad|Pt=Pt|KP=LP",null,null,null,null,null,null,null,null,null,null,null,null,null,null,null,"https://.com/i/parts/cordaSE1018_parts_01.jpg|https://.com/i/parts/cordaSE1018_parts_02.jpg|https://.com/i/parts/cordaSE1018_parts_03.jpg",null,null,null,null,240.99]
[null,null,null,null,null,null,null,"Variation","Model=TE2017|Part=Colol|Pt=Mt|KP=Mp",null,null,null,null,null,null,null,null,null,null,null,null,null,null,null,"https://.com/i/parts/cordaSE1018_parts_01.jpg|https://.com/i/parts/cordaSE1018_parts_02.jpg|https://.com/i/parts/cordaSE1018_parts_03.jpg",null,null,null,null,240.99]
[null,null,null,null,null,null,null,"Variation","Model=TE2017|Part=Colol|Pt=Mt|KP=LP",null,null,null,null,null,null,null,null,null,null,null,null,null,null,null,"https://.com/i/parts/cordaSE1018_parts_01.jpg|https://.com/i/parts/cordaSE1018_parts_02.jpg|https://.com/i/parts/cordaSE1018_parts_03.jpg",null,null,null,null,240.99]
[null,null,null,null,null,null,null,"Variation","Model=TE2017|Part=Colol|Pt=Pt|KP=Mp",null,null,null,null,null,null,null,null,null,null,null,null,null,null,null,"https://.com/i/parts/cordaSE1018_parts_01.jpg|https://.com/i/parts/cordaSE1018_parts_02.jpg|https://.com/i/parts/cordaSE1018_parts_03.jpg",null,null,null,null,240.99]
[null,null,null,null,null,null,null,"Variation","Model=TE2017|Part=Colol|Pt=Pt|KP=LP",null,null,null,null,null,null,null,null,null,null,null,null,null,null,null,"https://.com/i/parts/cordaSE1018_parts_01.jpg|https://.com/i/parts/cordaSE1018_parts_02.jpg|https://.com/i/parts/cordaSE1018_parts_03.jpg",null,null,null,null,240.99]
["save",null,null,"67-93016",null,null,"Bertonika 2001 9000 for cleaing astrartciaons set of 37",null,"Model=SE1019;TE2018|Part=Mad;Power;Lad;Colol|Pt=Mt;Pt|KP=Mp;LP","own",null,null,null,null,null,null,null,0.8,null,null,null,null,null,null,"https://.com/i/parts/cordaSE1019_parts_01.jpg|https://.com/i/parts/cordaSE1019_parts_02.jpg|https://.com/i/parts/cordaSE1019_parts_03.jpg","You get one part of your choice that you specify in your message. ","r iron is called \"drag soldering\".. Its an art to learn but once you do you can solder multiple leads in seconds.."]
[null,null,null,null,null,null,null,"Variation","Model=SE1019|Part=Mad|Pt=Mt|KP=Mp",null,null,null,null,null,null,null,null,null,null,null,null,null,null,null,"https://.com/i/parts/cordaSE1019_parts_01.jpg|https://.com/i/parts/cordaSE1019_parts_02.jpg|https://.com/i/parts/cordaSE1019_parts_03.jpg",null,null,null,null,240.99]
[null,null,null,null,null,null,null,"Variation","Model=SE1019|Part=Mad|Pt=Mt|KP=LP",null,null,null,null,null,null,null,null,null,null,null,null,null,null,null,"https://.com/i/parts/cordaSE1019_parts_01.jpg|https://.com/i/parts/cordaSE1019_parts_02.jpg|https://.com/i/parts/cordaSE1019_parts_03.jpg",null,null,null,null,240.99]
[null,null,null,null,null,null,null,"Variation","Model=SE1019|Part=Mad|Pt=Pt|KP=Mp",null,null,null,null,null,null,null,null,null,null,null,null,null,null,null,"https://.com/i/parts/cordaSE1019_parts_01.jpg|https://.com/i/parts/cordaSE1019_parts_02.jpg|https://.com/i/parts/cordaSE1019_parts_03.jpg",null,null,null,null,240.99]
[null,null,null,null,null,null,null,"Variation","Model=SE1019|Part=Mad|Pt=Pt|KP=LP",null,null,null,null,null,null,null,null,null,null,null,null,null,null,null,"https://.com/i/parts/cordaSE1019_parts_01.jpg|https://.com/i/parts/cordaSE1019_parts_02.jpg|https://.com/i/parts/cordaSE1019_parts_03.jpg",null,null,null,null,240.99]
[null,null,null,null,null,null,null,"Variation","Model=SE1019|Part=Power|Pt=Mt|KP=Mp",null,null,null,null,null,null,null,null,null,null,null,null,null,null,null,"https://.com/i/parts/cordaSE1019_parts_01.jpg|https://.com/i/parts/cordaSE1019_parts_02.jpg|https://.com/i/parts/cordaSE1019_parts_03.jpg",null,null,null,null,240.99]
[null,null,null,null,null,null,null,"Variation","Model=SE1019|Part=Power|Pt=Mt|KP=LP",null,null,null,null,null,null,null,null,null,null,null,null,null,null,null,"https://.com/i/parts/cordaSE1019_parts_01.jpg|https://.com/i/parts/cordaSE1019_parts_02.jpg|https://.com/i/parts/cordaSE1019_parts_03.jpg",null,null,null,null,240.99]
[null,null,null,null,null,null,null,"Variation","Model=SE1019|Part=Power|Pt=Pt|KP=Mp",null,null,null,null,null,null,null,null,null,null,null,null,null,null,null,"https://.com/i/parts/cordaSE1019_parts_01.jpg|https://.com/i/parts/cordaSE1019_parts_02.jpg|https://.com/i/parts/cordaSE1019_parts_03.jpg",null,null,null,null,240.99]
[null,null,null,null,null,null,null,"Variation","Model=SE1019|Part=Power|Pt=Pt|KP=LP",null,null,null,null,null,null,null,null,null,null,null,null,null,null,null,"https://.com/i/parts/cordaSE1019_parts_01.jpg|https://.com/i/parts/cordaSE1019_parts_02.jpg|https://.com/i/parts/cordaSE1019_parts_03.jpg",null,null,null,null,240.99]
[null,null,null,null,null,null,null,"Variation","Model=SE1019|Part=Lad|Pt=Mt|KP=Mp",null,null,null,null,null,null,null,null,null,null,null,null,null,null,null,"https://.com/i/parts/cordaSE1019_parts_01.jpg|https://.com/i/parts/cordaSE1019_parts_02.jpg|https://.com/i/parts/cordaSE1019_parts_03.jpg",null,null,null,null,240.99]
[null,null,null,null,null,null,null,"Variation","Model=SE1019|Part=Lad|Pt=Mt|KP=LP",null,null,null,null,null,null,null,null,null,null,null,null,null,null,null,"https://.com/i/parts/cordaSE1019_parts_01.jpg|https://.com/i/parts/cordaSE1019_parts_02.jpg|https://.com/i/parts/cordaSE1019_parts_03.jpg",null,null,null,null,240.99]
[null,null,null,null,null,null,null,"Variation","Model=SE1019|Part=Lad|Pt=Pt|KP=Mp",null,null,null,null,null,null,null,null,null,null,null,null,null,null,null,"https://.com/i/parts/cordaSE1019_parts_01.jpg|https://.com/i/parts/cordaSE1019_parts_02.jpg|https://.com/i/parts/cordaSE1019_parts_03.jpg",null,null,null,null,240.99]
[null,null,null,null,null,null,null,"Variation","Model=SE1019|Part=Lad|Pt=Pt|KP=LP",null,null,null,null,null,null,null,null,null,null,null,null,null,null,null,"https://.com/i/parts/cordaSE1019_parts_01.jpg|https://.com/i/parts/cordaSE1019_parts_02.jpg|https://.com/i/parts/cordaSE1019_parts_03.jpg",null,null,null,null,240.99]
[null,null,null,null,null,null,null,"Variation","Model=SE1019|Part=Colol|Pt=Mt|KP=Mp",null,null,null,null,null,null,null,null,null,null,null,null,null,null,null,"https://.com/i/parts/cordaSE1019_parts_01.jpg|https://.com/i/parts/cordaSE1019_parts_02.jpg|https://.com/i/parts/cordaSE1019_parts_03.jpg",null,null,null,null,240.99]
[null,null,null,null,null,null,null,"Variation","Model=SE1019|Part=Colol|Pt=Mt|KP=LP",null,null,null,null,null,null,null,null,null,null,null,null,null,null,null,"https://.com/i/parts/cordaSE1019_parts_01.jpg|https://.com/i/parts/cordaSE1019_parts_02.jpg|https://.com/i/parts/cordaSE1019_parts_03.jpg",null,null,null,null,240.99]
[null,null,null,null,null,null,null,"Variation","Model=SE1019|Part=Colol|Pt=Pt|KP=Mp",null,null,null,null,null,null,null,null,null,null,null,null,null,null,null,"https://.com/i/parts/cordaSE1019_parts_01.jpg|https://.com/i/parts/cordaSE1019_parts_02.jpg|https://.com/i/parts/cordaSE1019_parts_03.jpg",null,null,null,null,240.99]
[null,null,null,null,null,null,null,"Variation","Model=SE1019|Part=Colol|Pt=Pt|KP=LP",null,null,null,null,null,null,null,null,null,null,null,null,null,null,null,"https://.com/i/parts/cordaSE1019_parts_01.jpg|https://.com/i/parts/cordaSE1019_parts_02.jpg|https://.com/i/parts/cordaSE1019_parts_03.jpg",null,null,null,null,240.99]
[null,null,null,null,null,null,null,"Variation","Model=TE2018|Part=Mad|Pt=Mt|KP=Mp",null,null,null,null,null,null,null,null,null,null,null,null,null,null,null,"https://.com/i/parts/cordaSE1019_parts_01.jpg|https://.com/i/parts/cordaSE1019_parts_02.jpg|https://.com/i/parts/cordaSE1019_parts_03.jpg",null,null,null,null,240.99]
[null,null,null,null,null,null,null,"Variation","Model=TE2018|Part=Mad|Pt=Mt|KP=LP",null,null,null,null,null,null,null,null,null,null,null,null,null,null,null,"https://.com/i/parts/cordaSE1019_parts_01.jpg|https://.com/i/parts/cordaSE1019_parts_02.jpg|https://.com/i/parts/cordaSE1019_parts_03.jpg",null,null,null,null,240.99]
[null,null,null,null,null,null,null,"Variation","Model=TE2018|Part=Mad|Pt=Pt|KP=Mp",null,null,null,null,null,null,null,null,null,null,null,null,null,null,null,"https://.com/i/parts/cordaSE1019_parts_01.jpg|https://.com/i/parts/cordaSE1019_parts_02.jpg|https://.com/i/parts/cordaSE1019_parts_03.jpg",null,null,null,null,240.99]
[null,null,null,null,null,null,null,"Variation","Model=TE2018|Part=Mad|Pt=Pt|KP=LP",null,null,null,null,null,null,null,null,null,null,null,null,null,null,null,"https://.com/i/parts/cordaSE1019_parts_01.jpg|https://.com/i/parts/cordaSE1019_parts_02.jpg|https://.com/i/parts/cordaSE1019_parts_03.jpg",null,null,null,null,240.99]
[null,null,null,null,null,null,null,"Variation","Model=TE2018|Part=Power|Pt=Mt|KP=Mp",null,null,null,null,null,null,null,null,null,null,null,null,null,null,null,"https://.com/i/parts/cordaSE1019_parts_01.jpg|https://.com/i/parts/cordaSE1019_parts_02.jpg|https://.com/i/parts/cordaSE1019_parts_03.jpg",null,null,null,null,240.99]
[null,null,null,null,null,null,null,"Variation","Model=TE2018|Part=Power|Pt=Mt|KP=LP",null,null,null,null,null,null,null,null,null,null,null,null,null,null,null,"https://.com/i/parts/cordaSE1019_parts_01.jpg|https://.com/i/parts/cordaSE1019_parts_02.jpg|https://.com/i/parts/cordaSE1019_parts_03.jpg",null,null,null,null,240.99]
[null,null,null,null,null,null,null,"Variation","Model=TE2018|Part=Power|Pt=Pt|KP=Mp",null,null,null,null,null,null,null,null,null,null,null,null,null,null,null,"https://.com/i/parts/cordaSE1019_parts_01.jpg|https://.com/i/parts/cordaSE1019_parts_02.jpg|https://.com/i/parts/cordaSE1019_parts_03.jpg",null,null,null,null,240.99]
[null,null,null,null,null,null,null,"Variation","Model=TE2018|Part=Power|Pt=Pt|KP=LP",null,null,null,null,null,null,null,null,null,null,null,null,null,null,null,"https://.com/i/parts/cordaSE1019_parts_01.jpg|https://.com/i/parts/cordaSE1019_parts_02.jpg|https://.com/i/parts/cordaSE1019_parts_03.jpg",null,null,null,null,240.99]
[null,null,null,null,null,null,null,"Variation","Model=TE2018|Part=Lad|Pt=Mt|KP=Mp",null,null,null,null,null,null,null,null,null,null,null,null,null,null,null,"https://.com/i/parts/cordaSE1019_parts_01.jpg|https://.com/i/parts/cordaSE1019_parts_02.jpg|https://.com/i/parts/cordaSE1019_parts_03.jpg",null,null,null,null,240.99]
[null,null,null,null,null,null,null,"Variation","Model=TE2018|Part=Lad|Pt=Mt|KP=LP",null,null,null,null,null,null,null,null,null,null,null,null,null,null,null,"https://.com/i/parts/cordaSE1019_parts_01.jpg|https://.com/i/parts/cordaSE1019_parts_02.jpg|https://.com/i/parts/cordaSE1019_parts_03.jpg",null,null,null,null,240.99]
[null,null,null,null,null,null,null,"Variation","Model=TE2018|Part=Lad|Pt=Pt|KP=Mp",null,null,null,null,null,null,null,null,null,null,null,null,null,null,null,"https://.com/i/parts/cordaSE1019_parts_01.jpg|https://.com/i/parts/cordaSE1019_parts_02.jpg|https://.com/i/parts/cordaSE1019_parts_03.jpg",null,null,null,null,240.99]
[null,null,null,null,null,null,null,"Variation","Model=TE2018|Part=Lad|Pt=Pt|KP=LP",null,null,null,null,null,null,null,null,null,null,null,null,null,null,null,"https://.com/i/parts/cordaSE1019_parts_01.jpg|https://.com/i/parts/cordaSE1019_parts_02.jpg|https://.com/i/parts/cordaSE1019_parts_03.jpg",null,null,null,null,240.99]
[null,null,null,null,null,null,null,"Variation","Model=TE2018|Part=Colol|Pt=Mt|KP=Mp",null,null,null,null,null,null,null,null,null,null,null,null,null,null,null,"https://.com/i/parts/cordaSE1019_parts_01.jpg|https://.com/i/parts/cordaSE1019_parts_02.jpg|https://.com/i/parts/cordaSE1019_parts_03.jpg",null,null,null,null,240.99]
[null,null,null,null,null,null,null,"Variation","Model=TE2018|Part=Colol|Pt=Mt|KP=LP",null,null,null,null,null,null,null,null,null,null,null,null,null,null,null,"https://.com/i/parts/cordaSE1019_parts_01.jpg|https://.com/i/parts/cordaSE1019_parts_02.jpg|https://.com/i/parts/cordaSE1019_parts_03.jpg",null,null,null,null,240.99]
[null,null,null,null,null,null,null,"Variation","Model=TE2018|Part=Colol|Pt=Pt|KP=Mp",null,null,null,null,null,null,null,null,null,null,null,null,null,null,null,"https://.com/i/parts/cordaSE1019_parts_01.jpg|https://.com/i/parts/cordaSE1019_parts_02.jpg|https://.com/i/parts/cordaSE1019_parts_03.jpg",null,null,null,null,240.99]
[null,null,null,null,null,null,null,"Variation","Model=TE2018|Part=Colol|Pt=Pt|KP=LP",null,null,null,null,null,null,null,null,null,null,null,null,null,null,null,"https://.com/i/parts/cordaSE1019_parts_01.jpg|https://.com/i/parts/cordaSE1019_parts_02.jpg|https://.com/i/parts/cordaSE1019_parts_03.jpg",null,null,null,null,240.99]
["save",null,null,"68-02257",null,null,"Bertonika 2001 9000 for cleaing astrartciaons set of 38",null,"Model=SE1020;TE2019|Part=Mad;Power;Lad;Colol|Pt=Mt;Pt|KP=Mp;LP","own",null,null,null,null,null,null,null,0.8,null,null,null,null,null,null,"https://.com/i/parts/cordaSE1020_parts_01.jpg|https://.com/i/parts/cordaSE1020_parts_02.jpg|https://.com/i/parts/cordaSE1020_parts_03.jpg","You get one part of your choice that you specify in your message. ","r iron is called \"drag soldering\".. Its an art to learn but once you do you can solder multiple leads in seconds.."]
[null,null,null,null,null,null,null,"Variation","Model=SE1020|Part=Mad|Pt=Mt|KP=Mp",null,null,null,null,null,null,null,null,null,null,null,null,null,null,null,"https://.com/i/parts/cordaSE1020_parts_01.jpg|https://.com/i/parts/cordaSE1020_parts_02.jpg|https://.com/i/parts/cordaSE1020_parts_03.jpg",null,null,null,null,240.99]
[null,null,null,null,null,null,null,"Variation","Model=SE1020|Part=Mad|Pt=Mt|KP=LP",null,null,null,null,null,null,null,null,null,null,null,null,null,null,null,"https://.com/i/parts/cordaSE1020_parts_01.jpg|https://.com/i/parts/cordaSE1020_parts_02.jpg|https://.com/i/parts/cordaSE1020_parts_03.jpg",null,null,null,null,240.99]
[null,null,null,null,null,null,null,"Variation","Model=SE1020|Part=Mad|Pt=Pt|KP=Mp",null,null,null,null,null,null,null,null,null,null,null,null,null,null,null,"https://.com/i/parts/cordaSE1020_parts_01.jpg|https://.com/i/parts/cordaSE1020_parts_02.jpg|https://.com/i/parts/cordaSE1020_parts_03.jpg",null,null,null,null,240.99]
[null,null,null,null,null,null,null,"Variation","Model=SE1020|Part=Mad|Pt=Pt|KP=LP",null,null,null,null,null,null,null,null,null,null,null,null,null,null,null,"https://.com/i/parts/cordaSE1020_parts_01.jpg|https://.com/i/parts/cordaSE1020_parts_02.jpg|https://.com/i/parts/cordaSE1020_parts_03.jpg",null,null,null,null,240.99]
[null,null,null,null,null,null,null,"Variation","Model=SE1020|Part=Power|Pt=Mt|KP=Mp",null,null,null,null,null,null,null,null,null,null,null,null,null,null,null,"https://.com/i/parts/cordaSE1020_parts_01.jpg|https://.com/i/parts/cordaSE1020_parts_02.jpg|https://.com/i/parts/cordaSE1020_parts_03.jpg",null,null,null,null,240.99]
[null,null,null,null,null,null,null,"Variation","Model=SE1020|Part=Power|Pt=Mt|KP=LP",null,null,null,null,null,null,null,null,null,null,null,null,null,null,null,"https://.com/i/parts/cordaSE1020_parts_01.jpg|https://.com/i/parts/cordaSE1020_parts_02.jpg|https://.com/i/parts/cordaSE1020_parts_03.jpg",null,null,null,null,240.99]
[null,null,null,null,null,null,null,"Variation","Model=SE1020|Part=Power|Pt=Pt|KP=Mp",null,null,null,null,null,null,null,null,null,null,null,null,null,null,null,"https://.com/i/parts/cordaSE1020_parts_01.jpg|https://.com/i/parts/cordaSE1020_parts_02.jpg|https://.com/i/parts/cordaSE1020_parts_03.jpg",null,null,null,null,240.99]
[null,null,null,null,null,null,null,"Variation","Model=SE1020|Part=Power|Pt=Pt|KP=LP",null,null,null,null,null,null,null,null,null,null,null,null,null,null,null,"https://.com/i/parts/cordaSE1020_parts_01.jpg|https://.com/i/parts/cordaSE1020_parts_02.jpg|https://.com/i/parts/cordaSE1020_parts_03.jpg",null,null,null,null,240.99]
[null,null,null,null,null,null,null,"Variation","Model=SE1020|Part=Lad|Pt=Mt|KP=Mp",null,null,null,null,null,null,null,null,null,null,null,null,null,null,null,"https://.com/i/parts/cordaSE1020_parts_01.jpg|https://.com/i/parts/cordaSE1020_parts_02.jpg|https://.com/i/parts/cordaSE1020_parts_03.jpg",null,null,null,null,240.99]
[null,null,null,null,null,null,null,"Variation","Model=SE1020|Part=Lad|Pt=Mt|KP=LP",null,null,null,null,null,null,null,null,null,null,null,null,null,null,null,"https://.com/i/parts/cordaSE1020_parts_01.jpg|https://.com/i/parts/cordaSE1020_parts_02.jpg|https://.com/i/parts/cordaSE1020_parts_03.jpg",null,null,null,null,240.99]
[null,null,null,null,null,null,null,"Variation","Model=SE1020|Part=Lad|Pt=Pt|KP=Mp",null,null,null,null,null,null,null,null,null,null,null,null,null,null,null,"https://.com/i/parts/cordaSE1020_parts_01.jpg|https://.com/i/parts/cordaSE1020_parts_02.jpg|https://.com/i/parts/cordaSE1020_parts_03.jpg",null,null,null,null,240.99]
[null,null,null,null,null,null,null,"Variation","Model=SE1020|Part=Lad|Pt=Pt|KP=LP",null,null,null,null,null,null,null,null,null,null,null,null,null,null,null,"https://.com/i/parts/cordaSE1020_parts_01.jpg|https://.com/i/parts/cordaSE1020_parts_02.jpg|https://.com/i/parts/cordaSE1020_parts_03.jpg",null,null,null,null,240.99]
[null,null,null,null,null,null,null,"Variation","Model=SE1020|Part=Colol|Pt=Mt|KP=Mp",null,null,null,null,null,null,null,null,null,null,null,null,null,null,null,"https://.com/i/parts/cordaSE1020_parts_01.jpg|https://.com/i/parts/cordaSE1020_parts_02.jpg|https://.com/i/parts/cordaSE1020_parts_03.jpg",null,null,null,null,240.99]
[null,null,null,null,null,null,null,"Variation","Model=SE1020|Part=Colol|Pt=Mt|KP=LP",null,null,null,null,null,null,null,null,null,null,null,null,null,null,null,"https://.com/i/parts/cordaSE1020_parts_01.jpg|https://.com/i/parts/cordaSE1020_parts_02.jpg|https://.com/i/parts/cordaSE1020_parts_03.jpg",null,null,null,null,240.99]
[null,null,null,null,null,null,null,"Variation","Model=SE1020|Part=Colol|Pt=Pt|KP=Mp",null,null,null,null,null,null,null,null,null,null,null,null,null,null,null,"https://.com/i/parts/cordaSE1020_parts_01.jpg|https://.com/i/parts/cordaSE1020_parts_02.jpg|https://.com/i/parts/cordaSE1020_parts_03.jpg",null,null,null,null,240.99]
[null,null,null,null,null,null,null,"Variation","Model=SE1020|Part=Colol|Pt=Pt|KP=LP",null,null,null,null,null,null,null,null,null,null,null,null,null,null,null,"https://.com/i/parts/cordaSE1020_parts_01.jpg|https://.com/i/parts/cordaSE1020_parts_02.jpg|https://.com/i/parts/cordaSE1020_parts_03.jpg",null,null,null,null,240.99]
[null,null,null,null,null,null,null,"Variation","Model=TE2019|Part=Mad|Pt=Mt|KP=Mp",null,null,null,null,null,null,null,null,null,null,null,null,null,null,null,"https://.com/i/parts/cordaSE1020_parts_01.jpg|https://.com/i/parts/cordaSE1020_parts_02.jpg|https://.com/i/parts/cordaSE1020_parts_03.jpg",null,null,null,null,240.99]
[null,null,null,null,null,null,null,"Variation","Model=TE2019|Part=Mad|Pt=Mt|KP=LP",null,null,null,null,null,null,null,null,null,null,null,null,null,null,null,"https://.com/i/parts/cordaSE1020_parts_01.jpg|https://.com/i/parts/cordaSE1020_parts_02.jpg|https://.com/i/parts/cordaSE1020_parts_03.jpg",null,null,null,null,240.99]
[null,null,null,null,null,null,null,"Variation","Model=TE2019|Part=Mad|Pt=Pt|KP=Mp",null,null,null,null,null,null,null,null,null,null,null,null,null,null,null,"https://.com/i/parts/cordaSE1020_parts_01.jpg|https://.com/i/parts/cordaSE1020_parts_02.jpg|https://.com/i/parts/cordaSE1020_parts_03.jpg",null,null,null,null,240.99]
[null,null,null,null,null,null,null,"Variation","Model=TE2019|Part=Mad|Pt=Pt|KP=LP",null,null,null,null,null,null,null,null,null,null,null,null,null,null,null,"https://.com/i/parts/cordaSE1020_parts_01.jpg|https://.com/i/parts/cordaSE1020_parts_02.jpg|https://.com/i/parts/cordaSE1020_parts_03.jpg",null,null,null,null,240.99]
[null,null,null,null,null,null,null,"Variation","Model=TE2019|Part=Power|Pt=Mt|KP=Mp",null,null,null,null,null,null,null,null,null,null,null,null,null,null,null,"https://.com/i/parts/cordaSE1020_parts_01.jpg|https://.com/i/parts/cordaSE1020_parts_02.jpg|https://.com/i/parts/cordaSE1020_parts_03.jpg",null,null,null,null,240.99]
[null,null,null,null,null,null,null,"Variation","Model=TE2019|Part=Power|Pt=Mt|KP=LP",null,null,null,null,null,null,null,null,null,null,null,null,null,null,null,"https://.com/i/parts/cordaSE1020_parts_01.jpg|https://.com/i/parts/cordaSE1020_parts_02.jpg|https://.com/i/parts/cordaSE1020_parts_03.jpg",null,null,null,null,240.99]
[null,null,null,null,null,null,null,"Variation","Model=TE2019|Part=Power|Pt=Pt|KP=Mp",null,null,null,null,null,null,null,null,null,null,null,null,null,null,null,"https://.com/i/parts/cordaSE1020_parts_01.jpg|https://.com/i/parts/cordaSE1020_parts_02.jpg|https://.com/i/parts/cordaSE1020_parts_03.jpg",null,null,null,null,240.99]
[null,null,null,null,null,null,null,"Variation","Model=TE2019|Part=Power|Pt=Pt|KP=LP",null,null,null,null,null,null,null,null,null,null,null,null,null,null,null,"https://.com/i/parts/cordaSE1020_parts_01.jpg|https://.com/i/parts/cordaSE1020_parts_02.jpg|https://.com/i/parts/cordaSE1020_parts_03.jpg",null,null,null,null,240.99]
[null,null,null,null,null,null,null,"Variation","Model=TE2019|Part=Lad|Pt=Mt|KP=Mp",null,null,null,null,null,null,null,null,null,null,null,null,null,null,null,"https://.com/i/parts/cordaSE1020_parts_01.jpg|https://.com/i/parts/cordaSE1020_parts_02.jpg|https://.com/i/parts/cordaSE1020_parts_03.jpg",null,null,null,null,240.99]
[null,null,null,null,null,null,null,"Variation","Model=TE2019|Part=Lad|Pt=Mt|KP=LP",null,null,null,null,null,null,null,null,null,null,null,null,null,null,null,"https://.com/i/parts/cordaSE1020_parts_01.jpg|https://.com/i/parts/cordaSE1020_parts_02.jpg|https://.com/i/parts/cordaSE1020_parts_03.jpg",null,null,null,null,240.99]
[null,null,null,null,null,null,null,"Variation","Model=TE2019|Part=Lad|Pt=Pt|KP=Mp",null,null,null,null,null,null,null,null,null,null,null,null,null,null,null,"https://.com/i/parts/cordaSE1020_parts_01.jpg|https://.com/i/parts/cordaSE1020_parts_02.jpg|https://.com/i/parts/cordaSE1020_parts_03.jpg",null,null,null,null,240.99]
[null,null,null,null,null,null,null,"Variation","Model=TE2019|Part=Lad|Pt=Pt|KP=LP",null,null,null,null,null,null,null,null,null,null,null,null,null,null,null,"https://.com/i/parts/cordaSE1020_parts_01.jpg|https://.com/i/parts/cordaSE1020_parts_02.jpg|https://.com/i/parts/cordaSE1020_parts_03.jpg",null,null,null,null,240.99]
[null,null,null,null,null,null,null,"Variation","Model=TE2019|Part=Colol|Pt=Mt|KP=Mp",null,null,null,null,null,null,null,null,null,null,null,null,null,null,null,"https://.com/i/parts/cordaSE1020_parts_01.jpg|https://.com/i/parts/cordaSE1020_parts_02.jpg|https://.com/i/parts/cordaSE1020_parts_03.jpg",null,null,null,null,240.99]
[null,null,null,null,null,null,null,"Variation","Model=TE2019|Part=Colol|Pt=Mt|KP=LP",null,null,null,null,null,null,null,null,null,null,null,null,null,null,null,"https://.com/i/parts/cordaSE1020_parts_01.jpg|https://.com/i/parts/cordaSE1020_parts_02.jpg|https://.com/i/parts/cordaSE1020_parts_03.jpg",null,null,null,null,240.99]
[null,null,null,null,null,null,null,"Variation","Model=TE2019|Part=Colol|Pt=Pt|KP=Mp",null,null,null,null,null,null,null,null,null,null,null,null,null,null,null,"https://.com/i/parts/cordaSE1020_parts_01.jpg|https://.com/i/parts/cordaSE1020_parts_02.jpg|https://.com/i/parts/cordaSE1020_parts_03.jpg",null,null,null,null,240.99]
[null,null,null,null,null,null,null,"Variation","Model=TE2019|Part=Colol|Pt=Pt|KP=LP",null,null,null,null,null,null,null,null,null,null,null,null,null,null,null,"https://.com/i/parts/cordaSE1020_parts_01.jpg|https://.com/i/parts/cordaSE1020_parts_02.jpg|https://.com/i/parts/cordaSE1020_parts_03.jpg",null,null,null,null,240.99]

{"sheet":"кучабольшая разных диапазонов","index":3,"n_rows":9,"n_cols":4,"rows_kept":9,"cut":false,"hidden":false,"merged":[]}
[]
[]
[]
[]
[null,"Lamp","150%",{"$f":"\"www.sddss.com/\"&TRIM(B5)&\".jpg\"","v":"www.sddss.com/Lamp.jpg"}]
[null,"Mainboard","160%","www.sddss.com/Mainboard.jpg"]
[null,"Gold",14.99,"www.sddss.com/Gold.jpg"]
[null,"plastic",0,"www.sddss.com/plastic.jpg"]
[null,"Power Supply",0,{"$f":"\"www.sddss.com/\"&TRIM(B9)&\".jpg\"","v":"www.sddss.com/Power Supply.jpg"}]